Department family,Entity,Date of payment,Expense type,Expense area,Supplier,Transaction number,Amount in Sterling,Supplier VAT Registration Number
Department of Health,Guys and St Thomas NHS Foundation Trust,01/04/2022,(81200) Medical Surgical Supplies & Equipment,(id:42134) Pathology,NHS SUPPLY CHAIN (MAIDSTONE),id:15028097, 277.85
Department of Health,Guys and St Thomas NHS Foundation Trust,22/04/2022,(89600) Non-Healthcare from other NHS bodies,(id:42134) Pathology,NHS BLOOD AND TRANSPLANT,id:15119517,8120.75
Department of Health,Guys and St Thomas NHS Foundation Trust,28/04/2022,(84650) Establishment,(id:4988419) TAP,MSI GROUP LTD,id:15154875   , 545.80
Department of Health,Guys and St Thomas NHS Foundation Trust,01/04/2022,(81100) Dressings,(id:4621419) TAP,NHS SUPPLY CHAIN (MAIDSTONE),id:15015296  ,   3.82
Department of Health,Guys and St Thomas NHS Foundation Trust,28/04/2022,(81200) Medical Surgical Supplies & Equipment,(id:41905) TAP,NHS SUPPLY CHAIN (MAIDSTONE),id:15056655 ,2755.86
Department of Health,Guys and St Thomas NHS Foundation Trust,22/04/2022,(81200) Medical Surgical Supplies & Equipment,(id:41905) TAP,MEDTRONIC LTD,id:15086636 , 600.00
Department of Health,Guys and St Thomas NHS Foundation Trust,28/04/2022,(82600) Uniforms & Clothing,(id:41905) TAP,NHS SUPPLY CHAIN (MAIDSTONE),id:15056655    ,  44.64
Department of Health,Guys and St Thomas NHS Foundation Trust,01/04/2022,(81100) Dressings,(id:41905) TAP,NHS SUPPLY CHAIN (MAIDSTONE),id:15015296    ,  60.77
Department of Health,Guys and St Thomas NHS Foundation Trust,01/04/2022,(81100) Dressings,(id:41905) TAP,NHS SUPPLY CHAIN (MAIDSTONE),id:15028097    ,  87.11
Department of Health,Guys and St Thomas NHS Foundation Trust,22/04/2022,(50200) Consultants,(id:41905) TAP,KINGS COLLEGE LONDON:03529700,id:15074476 ,2621.95
Department of Health,Guys and St Thomas NHS Foundation Trust,28/04/2022,(82800) Bedding & Linen,(id:41906) TAP,NHS SUPPLY CHAIN (MAIDSTONE),id:15056655   ,  74.96
Department of Health,Guys and St Thomas NHS Foundation Trust,22/04/2022,(82800) Bedding & Linen,(id:41906) TAP,NHS SUPPLY CHAIN (MAIDSTONE),id:15079695   ,  43.27
Department of Health,Guys and St Thomas NHS Foundation Trust,01/04/2022,(82800) Bedding & Linen,(id:41906) TAP,NHS SUPPLY CHAIN (MAIDSTONE),id:15015296   ,  37.39
Department of Health,Guys and St Thomas NHS Foundation Trust,22/04/2022,(81200) Medical Surgical Supplies & Equipment,(id:41906) TAP,NHS SUPPLY CHAIN (MAIDSTONE),id:15105380 ,2924.93
Department of Health,Guys and St Thomas NHS Foundation Trust,22/04/2022,(81200) Medical Surgical Supplies & Equipment,(id:41906) TAP,LIVANOVA UK LTD,id:15110715    , 626.40
Department of Health,Guys and St Thomas NHS Foundation Trust,01/04/2022,(82600) Uniforms & Clothing,(id:41906) TAP,NHS SUPPLY CHAIN (MAIDSTONE),id:15015296    ,  47.52
Department of Health,Guys and St Thomas NHS Foundation Trust,22/04/2022,(82800) Bedding & Linen,(id:41907) TAP,NHS SUPPLY CHAIN (MAIDSTONE),id:15105380   ,   3.72
Department of Health,Guys and St Thomas NHS Foundation Trust,08/04/2022,(81200) Medical Surgical Supplies & Equipment,(id:41907) TAP,ZOLL MEDICAL UK LTD,id:15080157, 568.96
Department of Health,Guys and St Thomas NHS Foundation Trust,22/04/2022,(81200) Medical Surgical Supplies & Equipment,(id:850419) TAP,NHS SUPPLY CHAIN (MAIDSTONE),id:15105380, 444.45
Department of Health,Guys and St Thomas NHS Foundation Trust,01/04/2022,(83400) Office Equipment,(id:850419) TAP,NHS SUPPLY CHAIN (MAIDSTONE),id:15015296 , 437.31
Department of Health,Guys and St Thomas NHS Foundation Trust,01/04/2022,(82800) Bedding & Linen,(id:850419) TAP,NHS SUPPLY CHAIN (MAIDSTONE),id:15015296  ,  32.92
Department of Health,Guys and St Thomas NHS Foundation Trust,01/04/2022,(82600) Uniforms & Clothing,(id:850419) TAP,NHS SUPPLY CHAIN (MAIDSTONE),id:15015296   ,   8.64
Department of Health,Guys and St Thomas NHS Foundation Trust,01/04/2022,(82600) Uniforms & Clothing,(id:41918) TAP,NHS SUPPLY CHAIN (MAIDSTONE),id:15028097    ,  42.48
Department of Health,Guys and St Thomas NHS Foundation Trust,01/04/2022,(82000) Provisions & Kitchens,(id:41918) TAP,NHS SUPPLY CHAIN (MAIDSTONE),id:15028097  ,  44.56
Department of Health,Guys and St Thomas NHS Foundation Trust,14/04/2022,(83610) IT Costs,(id:41918) TAP,CCS MEDIA LTD,id:15104736, 715.20
Department of Health,Guys and St Thomas NHS Foundation Trust,22/04/2022,(81200) Medical Surgical Supplies & Equipment,(id:41918) TAP,NHS SUPPLY CHAIN (MAIDSTONE),id:15105380 ,  50.89
Department of Health,Guys and St Thomas NHS Foundation Trust,28/04/2022,(50562) Qualified Nursing Staff,(id:41918) TAP,MEDICSPRO LTD,id:15153725, 938.56
Department of Health,Guys and St Thomas NHS Foundation Trust,14/04/2022,(50562) Qualified Nursing Staff,(id:41918) TAP,MEDICSPRO LTD,id:15123471,1206.70
Department of Health,Guys and St Thomas NHS Foundation Trust,08/04/2022,(50562) Qualified Nursing Staff,(id:41918) TAP,CARE PROVIDERS HEALTHCARE,id:15110295   , 622.44
Department of Health,Guys and St Thomas NHS Foundation Trust,01/04/2022,(82000) Provisions & Kitchens,(id:41916) TAP,NHS SUPPLY CHAIN (MAIDSTONE),id:15015296  ,  40.70
Department of Health,Guys and St Thomas NHS Foundation Trust,01/04/2022,(81200) Medical Surgical Supplies & Equipment,(id:41916) TAP,NHS SUPPLY CHAIN (MAIDSTONE),id:15015296 ,1871.10
Department of Health,Guys and St Thomas NHS Foundation Trust,28/04/2022,(83400) Office Equipment,(id:41916) TAP,NHS SUPPLY CHAIN (MAIDSTONE),id:15056655  , 494.79
Department of Health,Guys and St Thomas NHS Foundation Trust,22/04/2022,(81275) Medical Surgical Supplies & Equipment,(id:41921) TAP,NHS SUPPLY CHAIN (MAIDSTONE),id:15079695 ,   5.40
Department of Health,Guys and St Thomas NHS Foundation Trust,01/04/2022,(82700) Uniforms & Clothing,(id:41921) TAP,NHS SUPPLY CHAIN (MAIDSTONE),id:15028097    , 451.20
Department of Health,Guys and St Thomas NHS Foundation Trust,01/04/2022,(81200) Medical Surgical Supplies & Equipment,(id:41922) TAP,NHS SUPPLY CHAIN (MAIDSTONE),id:15015296 , 382.58
Department of Health,Guys and St Thomas NHS Foundation Trust,22/04/2022,(81100) Dressings,(id:41923) TAP,NHS SUPPLY CHAIN (MAIDSTONE),id:15105380    , 391.68
Department of Health,Guys and St Thomas NHS Foundation Trust,01/04/2022,(83400) Office Equipment,(id:41924) TAP,NHS SUPPLY CHAIN (MAIDSTONE),id:15028097  ,   3.34
Department of Health,Guys and St Thomas NHS Foundation Trust,01/04/2022,(81700) Lab Equipment Purchase,(id:41924) TAP,NHS SUPPLY CHAIN (MAIDSTONE),id:15028097 ,  59.84
Department of Health,Guys and St Thomas NHS Foundation Trust,22/04/2022,(81275) Medical Surgical Supplies & Equipment,(id:41924) TAP,NHS SUPPLY CHAIN (MAIDSTONE),id:15079695 ,  28.92
Department of Health,Guys and St Thomas NHS Foundation Trust,22/04/2022,(82800) Bedding & Linen,(id:41924) TAP,NHS SUPPLY CHAIN (MAIDSTONE),id:15079695   ,  14.40
Department of Health,Guys and St Thomas NHS Foundation Trust,28/04/2022,(82600) Uniforms & Clothing,(id:41883) TAP,NHS SUPPLY CHAIN (MAIDSTONE),id:15056655    ,  30.60
Department of Health,Guys and St Thomas NHS Foundation Trust,22/04/2022,(82800) Bedding & Linen,(id:41883) TAP,NHS SUPPLY CHAIN (MAIDSTONE),id:15105380   ,  43.13
Department of Health,Guys and St Thomas NHS Foundation Trust,28/04/2022,(81100) Dressings,(id:41883) TAP,ELIS UK LIMITED,id:15150434  , 876.15
Department of Health,Guys and St Thomas NHS Foundation Trust,08/04/2022,(81100) Dressings,(id:41883) TAP,ELIS UK LIMITED,id:15069875  , 850.64
Department of Health,Guys and St Thomas NHS Foundation Trust,01/04/2022,(81200) Medical Surgical Supplies & Equipment,(id:41883) TAP,NHS SUPPLY CHAIN (MAIDSTONE),id:15015296 ,1878.24
Department of Health,Guys and St Thomas NHS Foundation Trust,22/04/2022,(82000) Provisions & Kitchens,(id:41883) TAP,NHS SUPPLY CHAIN (MAIDSTONE),id:15079695  ,  43.01
Department of Health,Guys and St Thomas NHS Foundation Trust,01/04/2022,(50562) Qualified Nursing Staff,(id:41883) TAP,CONTINENTAL NURSE LTD,id:15084590  ,2349.03
Department of Health,Guys and St Thomas NHS Foundation Trust,08/04/2022,(50562) Qualified Nursing Staff,(id:41883) TAP,CONTINENTAL NURSE LTD,id:15110667  ,2644.45
Department of Health,Guys and St Thomas NHS Foundation Trust,22/04/2022,(81200) Medical Surgical Supplies & Equipment,(id:2549419) TAP,NHS SUPPLY CHAIN (MAIDSTONE),id:15079695    ,  78.19
Department of Health,Guys and St Thomas NHS Foundation Trust,01/04/2022,(82000) Provisions & Kitchens,(id:2549419) TAP,NHS SUPPLY CHAIN (MAIDSTONE),id:15028097,  23.52
Department of Health,Guys and St Thomas NHS Foundation Trust,22/04/2022,(83400) Office Equipment,(id:41897) TAP,NHS SUPPLY CHAIN (MAIDSTONE),id:15079695  ,2001.64
Department of Health,Guys and St Thomas NHS Foundation Trust,01/04/2022,(82800) Bedding & Linen,(id:41897) TAP,NHS SUPPLY CHAIN (MAIDSTONE),id:15028097   , 169.10
Department of Health,Guys and St Thomas NHS Foundation Trust,22/04/2022,(81200) Medical Surgical Supplies & Equipment,(id:41897) TAP,BARD LTD,id:15106215 , 530.40
Department of Health,Guys and St Thomas NHS Foundation Trust,14/04/2022,(81200) Medical Surgical Supplies & Equipment,(id:41897) TAP,GETINGE LTD,id:15124039   ,3978.00
Department of Health,Guys and St Thomas NHS Foundation Trust,08/04/2022,(81200) Medical Surgical Supplies & Equipment,(id:41897) TAP,ELIS UK LIMITED,id:15069894    ,  49.00
Department of Health,Guys and St Thomas NHS Foundation Trust,14/04/2022,(81100) Dressings,(id:41897) TAP,ELIS UK LIMITED,id:15069976  , 612.05
Department of Health,Guys and St Thomas NHS Foundation Trust,28/04/2022,(81100) Dressings,(id:41897) TAP,ELIS UK LIMITED,id:15150554  , 865.45
Department of Health,Guys and St Thomas NHS Foundation Trust,01/04/2022,(81100) Dressings,(id:41897) TAP,ELIS UK LIMITED,id:15069752  , 437.72
Department of Health,Guys and St Thomas NHS Foundation Trust,08/04/2022,(81400) Medical Surgical Supplies & Equipment,(id:41897) TAP,OLYMPUS KEYMED,id:15108140,    13386.00
Department of Health,Guys and St Thomas NHS Foundation Trust,22/04/2022,(82800) Bedding & Linen,(id:41894) TAP,NHS SUPPLY CHAIN (MAIDSTONE),id:15105380   ,   5.68
Department of Health,Guys and St Thomas NHS Foundation Trust,28/04/2022,(82600) Uniforms & Clothing,(id:41894) TAP,NHS SUPPLY CHAIN (MAIDSTONE),id:15056655    , 182.84
Department of Health,Guys and St Thomas NHS Foundation Trust,01/04/2022,(82600) Uniforms & Clothing,(id:41894) TAP,NHS SUPPLY CHAIN (MAIDSTONE),id:15028097    , 182.44
Department of Health,Guys and St Thomas NHS Foundation Trust,22/04/2022,(50552) Qualified Nursing Staff,(id:41958) Gastrointestinal Medicine & Surgery,CARE PROVIDERS HEALTHCARE,id:15139998 , 341.65
Department of Health,Guys and St Thomas NHS Foundation Trust,01/04/2022,(50522) Unqualified Nursing Staff,(id:41958) Gastrointestinal Medicine & Surgery,MSI GROUP LTD,id:15084896 ,1033.49
Department of Health,Guys and St Thomas NHS Foundation Trust,01/04/2022,(50522) Unqualified Nursing Staff,(id:41958) Gastrointestinal Medicine & Surgery,MSI GROUP LTD,id:15084966 , 858.64
Department of Health,Guys and St Thomas NHS Foundation Trust,22/04/2022,(50522) Unqualified Nursing Staff,(id:41958) Gastrointestinal Medicine & Surgery,GLOBE LOCUMS LTD,id:15140068   , 246.10
Department of Health,Guys and St Thomas NHS Foundation Trust,08/04/2022,(50522) Unqualified Nursing Staff,(id:41958) Gastrointestinal Medicine & Surgery,CARE PROVIDERS HEALTHCARE,id:15110632    , 467.71
Department of Health,Guys and St Thomas NHS Foundation Trust,14/04/2022,(50522) Unqualified Nursing Staff,(id:41958) Gastrointestinal Medicine & Surgery,MSI GROUP LTD,id:15123614 , 572.42
Department of Health,Guys and St Thomas NHS Foundation Trust,28/04/2022,(81225) Medical Surgical Supplies & Equipment,(id:41958) Gastrointestinal Medicine & Surgery,NHS SUPPLY CHAIN (MAIDSTONE),id:15056655    ,   8.10
Department of Health,Guys and St Thomas NHS Foundation Trust,28/04/2022,(82000) Provisions & Kitchens,(id:41954) Gastrointestinal Medicine & Surgery,NHS SUPPLY CHAIN (MAIDSTONE),id:15056655, 589.13
Department of Health,Guys and St Thomas NHS Foundation Trust,14/04/2022,(50522) Unqualified Nursing Staff,(id:41954) Gastrointestinal Medicine & Surgery,HAYS HEALTHCARE LTD,id:15123561, 247.31
Department of Health,Guys and St Thomas NHS Foundation Trust,28/04/2022,(81200) Medical Surgical Supplies & Equipment,(id:41954) Gastrointestinal Medicine & Surgery,ARJO UK LIMITED,id:15107659  ,1302.00
Department of Health,Guys and St Thomas NHS Foundation Trust,01/04/2022,(81200) Medical Surgical Supplies & Equipment,(id:41954) Gastrointestinal Medicine & Surgery,NHS SUPPLY CHAIN (MAIDSTONE),id:15015296    , 636.55
Department of Health,Guys and St Thomas NHS Foundation Trust,28/04/2022,(81255) Medical Surgical Supplies & Equipment,(id:41954) Gastrointestinal Medicine & Surgery,NHS SUPPLY CHAIN (MAIDSTONE),id:15056655    ,   1.87
Department of Health,Guys and St Thomas NHS Foundation Trust,28/04/2022,(81700) Lab Equipment Purchase,(id:41954) Gastrointestinal Medicine & Surgery,NHS SUPPLY CHAIN (MAIDSTONE),id:15056655    ,   3.10
Department of Health,Guys and St Thomas NHS Foundation Trust,28/04/2022,(81225) Medical Surgical Supplies & Equipment,(id:41954) Gastrointestinal Medicine & Surgery,NHS SUPPLY CHAIN (MAIDSTONE),id:15056655    ,  30.46
Department of Health,Guys and St Thomas NHS Foundation Trust,08/04/2022,(84656) Establishment,(id:41951) Gastrointestinal Medicine & Surgery,DICT8 LIMITED,id:15007526   ,1682.16
Department of Health,Guys and St Thomas NHS Foundation Trust,01/04/2022,(81100) Dressings,(id:41949) Gastrointestinal Medicine & Surgery,NHS SUPPLY CHAIN (MAIDSTONE),id:15015296  , 321.03
Department of Health,Guys and St Thomas NHS Foundation Trust,01/04/2022,(50522) Unqualified Nursing Staff,(id:2367419) Gastrointestinal Medicine & Surgery,GLOBE LOCUMS LTD,id:15084594 , 200.10
Department of Health,Guys and St Thomas NHS Foundation Trust,28/04/2022,(50522) Unqualified Nursing Staff,(id:2367419) Gastrointestinal Medicine & Surgery,MSI GROUP LTD,id:15153955    , 516.74
Department of Health,Guys and St Thomas NHS Foundation Trust,28/04/2022,(50522) Unqualified Nursing Staff,(id:2367419) Gastrointestinal Medicine & Surgery,GLOBE LOCUMS LTD,id:15155502 , 260.57
Department of Health,Guys and St Thomas NHS Foundation Trust,22/04/2022,(82700) Uniforms & Clothing,(id:2367419) Gastrointestinal Medicine & Surgery,NHS SUPPLY CHAIN (MAIDSTONE),id:15079695, 162.20
Department of Health,Guys and St Thomas NHS Foundation Trust,28/04/2022,(82000) Provisions & Kitchens,(id:2367419) Gastrointestinal Medicine & Surgery,NHS SUPPLY CHAIN (MAIDSTONE),id:15056655   , 126.12
Department of Health,Guys and St Thomas NHS Foundation Trust,01/04/2022,(82000) Provisions & Kitchens,(id:2367419) Gastrointestinal Medicine & Surgery,NHS SUPPLY CHAIN (MAIDSTONE),id:15015296   ,  10.60
Department of Health,Guys and St Thomas NHS Foundation Trust,22/04/2022,(81200) Medical Surgical Supplies & Equipment,(id:2367419) Gastrointestinal Medicine & Surgery,NHS SUPPLY CHAIN (MAIDSTONE),id:15105380  , 431.17
Department of Health,Guys and St Thomas NHS Foundation Trust,22/04/2022,(81230) Medical Surgical Supplies & Equipment,(id:2367419) Gastrointestinal Medicine & Surgery,NHS SUPPLY CHAIN (MAIDSTONE),id:15105380  , 269.21
Department of Health,Guys and St Thomas NHS Foundation Trust,22/04/2022,(81255) Medical Surgical Supplies & Equipment,(id:2367419) Gastrointestinal Medicine & Surgery,NHS SUPPLY CHAIN (MAIDSTONE),id:15079695  ,   2.18
Department of Health,Guys and St Thomas NHS Foundation Trust,08/04/2022,(81200) Medical Surgical Supplies & Equipment,(id:41957) Gastrointestinal Medicine & Surgery,FUNCTIONAL GUT DIAGNOSTICS LTD,id:14981118  ,7236.00
Department of Health,Guys and St Thomas NHS Foundation Trust,01/04/2022,(82000) Provisions & Kitchens,(id:41917) Gastrointestinal Medicine & Surgery,NHS SUPPLY CHAIN (MAIDSTONE),id:15015296,  70.20
Department of Health,Guys and St Thomas NHS Foundation Trust,22/04/2022,(82000) Provisions & Kitchens,(id:41917) Gastrointestinal Medicine & Surgery,NHS SUPPLY CHAIN (MAIDSTONE),id:15105380,  78.00
Department of Health,Guys and St Thomas NHS Foundation Trust,01/04/2022,(82800) Bedding & Linen,(id:41917) Gastrointestinal Medicine & Surgery,NHS SUPPLY CHAIN (MAIDSTONE),id:15028097 , 445.28
Department of Health,Guys and St Thomas NHS Foundation Trust,01/04/2022,(81200) Medical Surgical Supplies & Equipment,(id:41917) Gastrointestinal Medicine & Surgery,DIAGMED HEALTHCARE LTD,id:15081486,1458.00
Department of Health,Guys and St Thomas NHS Foundation Trust,01/04/2022,(81200) Medical Surgical Supplies & Equipment,(id:41917) Gastrointestinal Medicine & Surgery,NHS SUPPLY CHAIN (MAIDSTONE),id:15015296    ,    16614.44
Department of Health,Guys and St Thomas NHS Foundation Trust,01/04/2022,(81200) Medical Surgical Supplies & Equipment,(id:41917) Gastrointestinal Medicine & Surgery,MEDTRONIC LTD,id:15028937    ,2760.00
Department of Health,Guys and St Thomas NHS Foundation Trust,01/04/2022,(81200) Medical Surgical Supplies & Equipment,(id:41917) Gastrointestinal Medicine & Surgery,MEDTRONIC LTD,id:15082581    ,4644.00
Department of Health,Guys and St Thomas NHS Foundation Trust,08/04/2022,(81200) Medical Surgical Supplies & Equipment,(id:41917) Gastrointestinal Medicine & Surgery,ERBE MEDICAL UK LTD,id:14976266   ,4669.20
Department of Health,Guys and St Thomas NHS Foundation Trust,08/04/2022,(81200) Medical Surgical Supplies & Equipment,(id:41917) Gastrointestinal Medicine & Surgery,BOSTON SCIENTIFIC LTD,id:15035825 ,1026.96
Department of Health,Guys and St Thomas NHS Foundation Trust,08/04/2022,(81200) Medical Surgical Supplies & Equipment,(id:41917) Gastrointestinal Medicine & Surgery,18 WEEK SUPPORT LIMITED,id:15106777    ,    11900.00
Department of Health,Guys and St Thomas NHS Foundation Trust,08/04/2022,(81200) Medical Surgical Supplies & Equipment,(id:41917) Gastrointestinal Medicine & Surgery,18 WEEK SUPPORT LIMITED,id:15106773    ,    17850.00
Department of Health,Guys and St Thomas NHS Foundation Trust,22/04/2022,(81200) Medical Surgical Supplies & Equipment,(id:41917) Gastrointestinal Medicine & Surgery,BOSTON SCIENTIFIC LTD,id:15082427 , 731.95
Department of Health,Guys and St Thomas NHS Foundation Trust,22/04/2022,(81200) Medical Surgical Supplies & Equipment,(id:41917) Gastrointestinal Medicine & Surgery,BOSTON SCIENTIFIC LTD,id:15089625 ,1124.52
Department of Health,Guys and St Thomas NHS Foundation Trust,22/04/2022,(81200) Medical Surgical Supplies & Equipment,(id:41917) Gastrointestinal Medicine & Surgery,BOSTON SCIENTIFIC LTD,id:15089623 ,3378.24
Department of Health,Guys and St Thomas NHS Foundation Trust,22/04/2022,(81200) Medical Surgical Supplies & Equipment,(id:41917) Gastrointestinal Medicine & Surgery,BOSTON SCIENTIFIC LTD,id:15089621 ,3480.00
Department of Health,Guys and St Thomas NHS Foundation Trust,01/04/2022,(81100) Dressings,(id:41917) Gastrointestinal Medicine & Surgery,NHS SUPPLY CHAIN (MAIDSTONE),id:15015296  , 272.44
Department of Health,Guys and St Thomas NHS Foundation Trust,22/04/2022,(81400) Medical Surgical Supplies & Equipment,(id:41917) Gastrointestinal Medicine & Surgery,NHS SUPPLY CHAIN (MAIDSTONE),id:15105380    , 753.64
Department of Health,Guys and St Thomas NHS Foundation Trust,22/04/2022,(81700) Lab Equipment Purchase,(id:41917) Gastrointestinal Medicine & Surgery,NHS SUPPLY CHAIN (MAIDSTONE),id:15105380    ,  15.48
Department of Health,Guys and St Thomas NHS Foundation Trust,08/04/2022,(50552) Qualified Nursing Staff,(id:41917) Gastrointestinal Medicine & Surgery,CONTINENTAL NURSE LTD,id:15110391,2102.92
Department of Health,Guys and St Thomas NHS Foundation Trust,22/04/2022,(81255) Medical Surgical Supplies & Equipment,(id:41917) Gastrointestinal Medicine & Surgery,NHS SUPPLY CHAIN (MAIDSTONE),id:15105380    , 110.40
Department of Health,Guys and St Thomas NHS Foundation Trust,22/04/2022,(83400) Office Equipment,(id:41942) Gastrointestinal Medicine & Surgery,NHS SUPPLY CHAIN (MAIDSTONE),id:15105380, 141.62
Department of Health,Guys and St Thomas NHS Foundation Trust,22/04/2022,(82600) Uniforms & Clothing,(id:42419) Transplant Renal and Urology,NHS SUPPLY CHAIN (MAIDSTONE),id:15079695    ,  67.36
Department of Health,Guys and St Thomas NHS Foundation Trust,22/04/2022,(82600) Uniforms & Clothing,(id:42419) Transplant Renal and Urology,NHS SUPPLY CHAIN (MAIDSTONE),id:15105380    ,  67.36
Department of Health,Guys and St Thomas NHS Foundation Trust,01/04/2022,(82800) Bedding & Linen,(id:42419) Transplant Renal and Urology,NHS SUPPLY CHAIN (MAIDSTONE),id:15015296   , 225.96
Department of Health,Guys and St Thomas NHS Foundation Trust,28/04/2022,(81200) Medical Surgical Supplies & Equipment,(id:42419) Transplant Renal and Urology,NHS SUPPLY CHAIN (MAIDSTONE),id:15056655 , 813.77
Department of Health,Guys and St Thomas NHS Foundation Trust,01/04/2022,(81700) Lab Equipment Purchase,(id:42419) Transplant Renal and Urology,NHS SUPPLY CHAIN (MAIDSTONE),id:15015296 ,  58.96
Department of Health,Guys and St Thomas NHS Foundation Trust,01/04/2022,(81200) Medical Surgical Supplies & Equipment,(id:42439) Transplant Renal and Urology,LYNTON SERVICES,id:15082619    ,3734.40
Department of Health,Guys and St Thomas NHS Foundation Trust,08/04/2022,(81200) Medical Surgical Supplies & Equipment,(id:42439) Transplant Renal and Urology,KARL STORZ ENDOSCOPY UK LTD,id:15074743  , 876.00
Department of Health,Guys and St Thomas NHS Foundation Trust,22/04/2022,(81200) Medical Surgical Supplies & Equipment,(id:42439) Transplant Renal and Urology,JOHNSON & JOHNSON MEDICAL LTD,id:15105472,1607.94
Department of Health,Guys and St Thomas NHS Foundation Trust,22/04/2022,(82700) Uniforms & Clothing,(id:969419) Transplant Renal and Urology,NHS SUPPLY CHAIN (MAIDSTONE),id:15105380   , 158.90
Department of Health,Guys and St Thomas NHS Foundation Trust,28/04/2022,(81100) Dressings,(id:969419) Transplant Renal and Urology,NHS SUPPLY CHAIN (MAIDSTONE),id:15056655   , 244.44
Department of Health,Guys and St Thomas NHS Foundation Trust,28/04/2022,(82800) Bedding & Linen,(id:969419) Transplant Renal and Urology,NHS SUPPLY CHAIN (MAIDSTONE),id:15056655  ,  86.26
Department of Health,Guys and St Thomas NHS Foundation Trust,14/04/2022,(81200) Medical Surgical Supplies & Equipment,(id:42449) Transplant Renal and Urology,DIGITIMER LTD,id:15113874 , 763.20
Department of Health,Guys and St Thomas NHS Foundation Trust,28/04/2022,(81200) Medical Surgical Supplies & Equipment,(id:42449) Transplant Renal and Urology,NHS SUPPLY CHAIN (MAIDSTONE),id:15056655 , 348.00
Department of Health,Guys and St Thomas NHS Foundation Trust,28/04/2022,(81200) Medical Surgical Supplies & Equipment,(id:42449) Transplant Renal and Urology,DIGITIMER LTD,id:15143823 , 837.00
Department of Health,Guys and St Thomas NHS Foundation Trust,22/04/2022,(81200) Medical Surgical Supplies & Equipment,(id:42449) Transplant Renal and Urology,COOK UK LTD,id:15082478   ,1068.60
Department of Health,Guys and St Thomas NHS Foundation Trust,28/04/2022,(83400) Office Equipment,(id:42449) Transplant Renal and Urology,NHS SUPPLY CHAIN (MAIDSTONE),id:15056655  ,  48.58
Department of Health,Guys and St Thomas NHS Foundation Trust,28/04/2022,(81400) Medical Surgical Supplies & Equipment,(id:42449) Transplant Renal and Urology,NHS SUPPLY CHAIN (MAIDSTONE),id:15056655 , 126.48
Department of Health,Guys and St Thomas NHS Foundation Trust,22/04/2022,(50552) Qualified Nursing Staff,(id:42449) Transplant Renal and Urology,CONTINENTAL NURSE LTD,id:15140301  ,1781.21
Department of Health,Guys and St Thomas NHS Foundation Trust,28/04/2022,(81200) Medical Surgical Supplies & Equipment,(id:2882419) Transplant Renal and Urology,NHS SUPPLY CHAIN (MAIDSTONE),id:15056655    , 364.27
Department of Health,Guys and St Thomas NHS Foundation Trust,22/04/2022,(50552) Qualified Nursing Staff,(id:42442) Transplant Renal and Urology,GLOBE LOCUMS LTD,id:15140167  , 322.29
Department of Health,Guys and St Thomas NHS Foundation Trust,22/04/2022,(81225) Medical Surgical Supplies & Equipment,(id:42442) Transplant Renal and Urology,NHS SUPPLY CHAIN (MAIDSTONE),id:15105380 , 202.80
Department of Health,Guys and St Thomas NHS Foundation Trust,01/04/2022,(82800) Bedding & Linen,(id:42443) Transplant Renal and Urology,NHS SUPPLY CHAIN (MAIDSTONE),id:15028097   ,  43.13
Department of Health,Guys and St Thomas NHS Foundation Trust,28/04/2022,(82800) Bedding & Linen,(id:42443) Transplant Renal and Urology,NHS SUPPLY CHAIN (MAIDSTONE),id:15056655   , 153.82
Department of Health,Guys and St Thomas NHS Foundation Trust,22/04/2022,(81100) Dressings,(id:42443) Transplant Renal and Urology,NHS SUPPLY CHAIN (MAIDSTONE),id:15105380    , 438.58
Department of Health,Guys and St Thomas NHS Foundation Trust,28/04/2022,(81200) Medical Surgical Supplies & Equipment,(id:42443) Transplant Renal and Urology,NHS SUPPLY CHAIN (MAIDSTONE),id:15056655 ,1633.31
Department of Health,Guys and St Thomas NHS Foundation Trust,22/04/2022,(81200) Medical Surgical Supplies & Equipment,(id:42443) Transplant Renal and Urology,NHS SUPPLY CHAIN (MAIDSTONE),id:15079695 ,1149.66
Department of Health,Guys and St Thomas NHS Foundation Trust,22/04/2022,(50522) Unqualified Nursing Staff,(id:42443) Transplant Renal and Urology,GLOBE LOCUMS LTD,id:15140303, 268.60
Department of Health,Guys and St Thomas NHS Foundation Trust,01/04/2022,(50522) Unqualified Nursing Staff,(id:42443) Transplant Renal and Urology,GLOBE LOCUMS LTD,id:15084594, 200.10
Department of Health,Guys and St Thomas NHS Foundation Trust,14/04/2022,(50522) Unqualified Nursing Staff,(id:42443) Transplant Renal and Urology,GLOBE LOCUMS LTD,id:15125703, 801.05
Department of Health,Guys and St Thomas NHS Foundation Trust,01/04/2022,(81200) Medical Surgical Supplies & Equipment,(id:42444) Transplant Renal and Urology,BOSTON SCIENTIFIC LTD,id:15019577   , 843.96
Department of Health,Guys and St Thomas NHS Foundation Trust,01/04/2022,(81200) Medical Surgical Supplies & Equipment,(id:42444) Transplant Renal and Urology,BOSTON SCIENTIFIC LTD,id:15019798   ,1017.36
Department of Health,Guys and St Thomas NHS Foundation Trust,08/04/2022,(83500) Furniture & Fittings,(id:42444) Transplant Renal and Urology,CJ MEDICAL,id:15076440 , 972.00
Department of Health,Guys and St Thomas NHS Foundation Trust,28/04/2022,(81100) Dressings,(id:42446) Transplant Renal and Urology,NHS SUPPLY CHAIN (MAIDSTONE),id:15056655    ,   1.58
Department of Health,Guys and St Thomas NHS Foundation Trust,22/04/2022,(81225) Medical Surgical Supplies & Equipment,(id:42446) Transplant Renal and Urology,NHS SUPPLY CHAIN (MAIDSTONE),id:15105380 ,  25.36
Department of Health,Guys and St Thomas NHS Foundation Trust,28/04/2022,(81200) Medical Surgical Supplies & Equipment,(id:42446) Transplant Renal and Urology,STRYKER UK LTD,id:15147716, 504.00
Department of Health,Guys and St Thomas NHS Foundation Trust,14/04/2022,(81200) Medical Surgical Supplies & Equipment,(id:42446) Transplant Renal and Urology,KARL STORZ ENDOSCOPY UK LTD,id:15083424  ,  16.20
Department of Health,Guys and St Thomas NHS Foundation Trust,01/04/2022,(81200) Medical Surgical Supplies & Equipment,(id:42446) Transplant Renal and Urology,MEDTRONIC LTD,id:15019808 , 543.60
Department of Health,Guys and St Thomas NHS Foundation Trust,01/04/2022,(81200) Medical Surgical Supplies & Equipment,(id:42446) Transplant Renal and Urology,MEDTRONIC LTD,id:15029674 , 986.54
Department of Health,Guys and St Thomas NHS Foundation Trust,22/04/2022,(81200) Medical Surgical Supplies & Equipment,(id:42446) Transplant Renal and Urology,MEDTRONIC LTD,id:15089668 , 986.54
Department of Health,Guys and St Thomas NHS Foundation Trust,22/04/2022,(81200) Medical Surgical Supplies & Equipment,(id:42446) Transplant Renal and Urology,MEDTRONIC LTD,id:15086625 ,2309.47
Department of Health,Guys and St Thomas NHS Foundation Trust,22/04/2022,(81200) Medical Surgical Supplies & Equipment,(id:42446) Transplant Renal and Urology,POLAR SPEED DISTRIBUTION LTD,id:15135927 , 800.00
Department of Health,Guys and St Thomas NHS Foundation Trust,01/04/2022,(83400) Office Equipment,(id:42446) Transplant Renal and Urology,NHS SUPPLY CHAIN (MAIDSTONE),id:15015296  , 193.94
Department of Health,Guys and St Thomas NHS Foundation Trust,01/04/2022,(82000) Provisions & Kitchens,(id:42447) Transplant Renal and Urology,NHS SUPPLY CHAIN (MAIDSTONE),id:15028097  ,   3.47
Department of Health,Guys and St Thomas NHS Foundation Trust,22/04/2022,(83400) Office Equipment,(id:42447) Transplant Renal and Urology,NHS SUPPLY CHAIN (MAIDSTONE),id:15105380  , 155.52
Department of Health,Guys and St Thomas NHS Foundation Trust,22/04/2022,(81200) Medical Surgical Supplies & Equipment,(id:42447) Transplant Renal and Urology,NHS SUPPLY CHAIN (MAIDSTONE),id:15079695 , 549.35
Department of Health,Guys and St Thomas NHS Foundation Trust,01/04/2022,(81100) Dressings,(id:42447) Transplant Renal and Urology,NHS SUPPLY CHAIN (MAIDSTONE),id:15015296    , 203.99
Department of Health,Guys and St Thomas NHS Foundation Trust,01/04/2022,(81100) Dressings,(id:42447) Transplant Renal and Urology,NHS SUPPLY CHAIN (MAIDSTONE),id:15028097    ,   8.91
Department of Health,Guys and St Thomas NHS Foundation Trust,28/04/2022,(81100) Dressings,(id:42447) Transplant Renal and Urology,NHS SUPPLY CHAIN (MAIDSTONE),id:15056655    ,  41.10
Department of Health,Guys and St Thomas NHS Foundation Trust,08/04/2022,(84656) Establishment,(id:42447) Transplant Renal and Urology,DICT8 LIMITED,id:15013859,4399.92
Department of Health,Guys and St Thomas NHS Foundation Trust,28/04/2022,(81225) Medical Surgical Supplies & Equipment,(id:42447) Transplant Renal and Urology,NHS SUPPLY CHAIN (MAIDSTONE),id:15056655 ,  18.72
Department of Health,Guys and St Thomas NHS Foundation Trust,08/04/2022,(50200) Consultants,(id:42447) Transplant Renal and Urology,KING'S COLLEGE HOSPITAL NHS FOUNDATION TRUST,id:12561988 ,4686.75
Department of Health,Guys and St Thomas NHS Foundation Trust,22/04/2022,(82800) Bedding & Linen,(id:42420) Transplant Renal and Urology,NHS SUPPLY CHAIN (MAIDSTONE),id:15079695   , 410.06
Department of Health,Guys and St Thomas NHS Foundation Trust,28/04/2022,(81225) Medical Surgical Supplies & Equipment,(id:42420) Transplant Renal and Urology,NHS SUPPLY CHAIN (MAIDSTONE),id:15056655 ,  73.38
Department of Health,Guys and St Thomas NHS Foundation Trust,22/04/2022,(81100) Dressings,(id:42420) Transplant Renal and Urology,NHS SUPPLY CHAIN (MAIDSTONE),id:15079695    , 390.13
Department of Health,Guys and St Thomas NHS Foundation Trust,01/04/2022,(81700) Lab Equipment Purchase,(id:42420) Transplant Renal and Urology,NHS SUPPLY CHAIN (MAIDSTONE),id:15028097 , 112.61
Department of Health,Guys and St Thomas NHS Foundation Trust,01/04/2022,(81275) Medical Surgical Supplies & Equipment,(id:42435) Transplant Renal and Urology,NHS SUPPLY CHAIN (MAIDSTONE),id:15028097 ,  28.92
Department of Health,Guys and St Thomas NHS Foundation Trust,01/04/2022,(81700) Lab Equipment Purchase,(id:42435) Transplant Renal and Urology,NHS SUPPLY CHAIN (MAIDSTONE),id:15028097 ,  57.77
Department of Health,Guys and St Thomas NHS Foundation Trust,28/04/2022,(50552) Qualified Nursing Staff,(id:42435) Transplant Renal and Urology,MEDICSPRO LTD,id:15154054, 792.12
Department of Health,Guys and St Thomas NHS Foundation Trust,01/04/2022,(81200) Medical Surgical Supplies & Equipment,(id:42428) Transplant Renal and Urology,NHS SUPPLY CHAIN (MAIDSTONE),id:15015296 , 264.58
Department of Health,Guys and St Thomas NHS Foundation Trust,22/04/2022,(81200) Medical Surgical Supplies & Equipment,(id:42428) Transplant Renal and Urology,NHS SUPPLY CHAIN (MAIDSTONE),id:15079695 , 238.02
Department of Health,Guys and St Thomas NHS Foundation Trust,28/04/2022,(81700) Lab Equipment Purchase,(id:42428) Transplant Renal and Urology,NHS SUPPLY CHAIN (MAIDSTONE),id:15056655 , 202.06
Department of Health,Guys and St Thomas NHS Foundation Trust,08/04/2022,(81200) Medical Surgical Supplies & Equipment,(id:42430) Transplant Renal and Urology,RENAL HEALTHCARE SERVICES LTD,id:15111366, 750.00
Department of Health,Guys and St Thomas NHS Foundation Trust,14/04/2022,(81200) Medical Surgical Supplies & Equipment,(id:42422) Transplant Renal and Urology,NXSTAGE MEDICAL UK LIMITED,id:14980748   , 664.15
Department of Health,Guys and St Thomas NHS Foundation Trust,14/04/2022,(81200) Medical Surgical Supplies & Equipment,(id:42422) Transplant Renal and Urology,NXSTAGE MEDICAL UK LIMITED,id:14967025   , 748.32
Department of Health,Guys and St Thomas NHS Foundation Trust,14/04/2022,(81200) Medical Surgical Supplies & Equipment,(id:42422) Transplant Renal and Urology,NXSTAGE MEDICAL UK LIMITED,id:14963108   ,1427.55
Department of Health,Guys and St Thomas NHS Foundation Trust,01/04/2022,(81200) Medical Surgical Supplies & Equipment,(id:42422) Transplant Renal and Urology,NHS SUPPLY CHAIN (MAIDSTONE),id:15015296 , 656.64
Department of Health,Guys and St Thomas NHS Foundation Trust,01/04/2022,(81200) Medical Surgical Supplies & Equipment,(id:42422) Transplant Renal and Urology,NXSTAGE MEDICAL UK LIMITED,id:15050255   ,1346.64
Department of Health,Guys and St Thomas NHS Foundation Trust,14/04/2022,(81200) Medical Surgical Supplies & Equipment,(id:42422) Transplant Renal and Urology,NXSTAGE MEDICAL UK LIMITED,id:15076842   ,1427.55
Department of Health,Guys and St Thomas NHS Foundation Trust,01/04/2022,(84600) Establishment,(id:42422) Transplant Renal and Urology,CLARITY TRAVEL MANAGEMENT,id:15084313   ,  82.37
Department of Health,Guys and St Thomas NHS Foundation Trust,22/04/2022,(81700) Lab Equipment Purchase,(id:42438) Transplant Renal and Urology,NHS SUPPLY CHAIN (MAIDSTONE),id:15079695 , 126.31
Department of Health,Guys and St Thomas NHS Foundation Trust,28/04/2022,(50562) Qualified Nursing Staff,(id:42438) Transplant Renal and Urology,GLOBE LOCUMS LTD,id:15154018  ,1236.21
Department of Health,Guys and St Thomas NHS Foundation Trust,08/04/2022,(81275) Medical Surgical Supplies & Equipment,(id:42438) Transplant Renal and Urology,MAIDSTONE AND TUNBRIDGE WELLS NHS TRUST,id:13296395, 516.69
Department of Health,Guys and St Thomas NHS Foundation Trust,28/04/2022,(81700) Lab Equipment Purchase,(id:42432) Transplant Renal and Urology,NHS SUPPLY CHAIN (MAIDSTONE),id:15056655 ,  22.70
Department of Health,Guys and St Thomas NHS Foundation Trust,22/04/2022,(81200) Medical Surgical Supplies & Equipment,(id:42427) Transplant Renal and Urology,NHS SUPPLY CHAIN (MAIDSTONE),id:15105380 , 235.75
Department of Health,Guys and St Thomas NHS Foundation Trust,14/04/2022,(83765) Rent,(id:42427) Transplant Renal and Urology,CHARTWELL PROPERTIES LIMITED,id:15121874    ,5365.20
Department of Health,Guys and St Thomas NHS Foundation Trust,08/04/2022,(83400) Office Equipment,(id:42417) Transplant Renal and Urology,DSG RETAIL LTD T/A CURRYS PC WORLD BUSINESS,id:15113276  ,1496.98
Department of Health,Guys and St Thomas NHS Foundation Trust,22/04/2022,(81100) Dressings,(id:42481) Surgery,NHS SUPPLY CHAIN (MAIDSTONE),id:15105380,   5.74
Department of Health,Guys and St Thomas NHS Foundation Trust,22/04/2022,(81225) Medical Surgical Supplies & Equipment,(id:42482) Surgery,NHS SUPPLY CHAIN (MAIDSTONE),id:15079695  ,  10.15
Department of Health,Guys and St Thomas NHS Foundation Trust,28/04/2022,(81100) Dressings,(id:42483) Surgery,NHS SUPPLY CHAIN (MAIDSTONE),id:15056655,1096.45
Department of Health,Guys and St Thomas NHS Foundation Trust,22/04/2022,(82800) Bedding & Linen,(id:42483) Surgery,NHS SUPPLY CHAIN (MAIDSTONE),id:15105380    , 160.75
Department of Health,Guys and St Thomas NHS Foundation Trust,14/04/2022,(81200) Medical Surgical Supplies & Equipment,(id:42484) Surgery,MOTIVA IMPLANTS UK LTD,id:15058497   , 770.02
Department of Health,Guys and St Thomas NHS Foundation Trust,22/04/2022,(81200) Medical Surgical Supplies & Equipment,(id:42484) Surgery,NHS SUPPLY CHAIN (MAIDSTONE),id:15105380  ,  20.03
Department of Health,Guys and St Thomas NHS Foundation Trust,22/04/2022,(81200) Medical Surgical Supplies & Equipment,(id:42484) Surgery,MERCIAN SURGICAL SUPPLY CO LTD,id:15076384,2150.28
Department of Health,Guys and St Thomas NHS Foundation Trust,22/04/2022,(81200) Medical Surgical Supplies & Equipment,(id:42484) Surgery,JOHNSON & JOHNSON MEDICAL LTD,id:14985998 ,1067.81
Department of Health,Guys and St Thomas NHS Foundation Trust,01/04/2022,(83400) Office Equipment,(id:42485) Surgery,NHS SUPPLY CHAIN (MAIDSTONE),id:15015296   , 108.86
Department of Health,Guys and St Thomas NHS Foundation Trust,01/04/2022,(82800) Bedding & Linen,(id:42485) Surgery,NHS SUPPLY CHAIN (MAIDSTONE),id:15015296    , 237.07
Department of Health,Guys and St Thomas NHS Foundation Trust,22/04/2022,(81000) Surgical Appliances,(id:42485) Surgery,TALAR MADE ORTHOTICS LTD,id:15136967    ,  91.68
Department of Health,Guys and St Thomas NHS Foundation Trust,01/04/2022,(81000) Surgical Appliances,(id:42485) Surgery,MEDI UK LTD,id:15072694  , 606.96
Department of Health,Guys and St Thomas NHS Foundation Trust,08/04/2022,(81000) Surgical Appliances,(id:42485) Surgery,TALAR MADE ORTHOTICS LTD,id:15104477    ,   8.24
Department of Health,Guys and St Thomas NHS Foundation Trust,08/04/2022,(81000) Surgical Appliances,(id:42485) Surgery,TALAR MADE ORTHOTICS LTD,id:15104735    ,  28.52
Department of Health,Guys and St Thomas NHS Foundation Trust,28/04/2022,(81100) Dressings,(id:42485) Surgery,NHS SUPPLY CHAIN (MAIDSTONE),id:15056655, 675.78
Department of Health,Guys and St Thomas NHS Foundation Trust,22/04/2022,(81100) Dressings,(id:42485) Surgery,NHS SUPPLY CHAIN (MAIDSTONE),id:15079695, 669.56
Department of Health,Guys and St Thomas NHS Foundation Trust,22/04/2022,(81200) Medical Surgical Supplies & Equipment,(id:42485) Surgery,NHS SUPPLY CHAIN (MAIDSTONE),id:15105380  , 995.64
Department of Health,Guys and St Thomas NHS Foundation Trust,28/04/2022,(82800) Bedding & Linen,(id:884419) Surgery,NHS SUPPLY CHAIN (MAIDSTONE),id:15056655   ,  13.68
Department of Health,Guys and St Thomas NHS Foundation Trust,01/04/2022,(82800) Bedding & Linen,(id:884419) Surgery,NHS SUPPLY CHAIN (MAIDSTONE),id:15015296   ,  13.68
Department of Health,Guys and St Thomas NHS Foundation Trust,22/04/2022,(81200) Medical Surgical Supplies & Equipment,(id:42463) Surgery,BONESUPPORT AB,id:15137003 ,3912.00
Department of Health,Guys and St Thomas NHS Foundation Trust,01/04/2022,(81100) Dressings,(id:42463) Surgery,NHS SUPPLY CHAIN (MAIDSTONE),id:15015296,  30.38
Department of Health,Guys and St Thomas NHS Foundation Trust,28/04/2022,(82700) Uniforms & Clothing,(id:42465) Surgery,NHS SUPPLY CHAIN (MAIDSTONE),id:15056655,  31.68
Department of Health,Guys and St Thomas NHS Foundation Trust,01/04/2022,(82700) Uniforms & Clothing,(id:42465) Surgery,NHS SUPPLY CHAIN (MAIDSTONE),id:15015296,  85.23
Department of Health,Guys and St Thomas NHS Foundation Trust,01/04/2022,(83400) Office Equipment,(id:42465) Surgery,NHS SUPPLY CHAIN (MAIDSTONE),id:15015296   , 135.18
Department of Health,Guys and St Thomas NHS Foundation Trust,22/04/2022,(81225) Medical Surgical Supplies & Equipment,(id:42465) Surgery,NHS SUPPLY CHAIN (MAIDSTONE),id:15105380  , 117.18
Department of Health,Guys and St Thomas NHS Foundation Trust,22/04/2022,(81100) Dressings,(id:42465) Surgery,NHS SUPPLY CHAIN (MAIDSTONE),id:15079695, 270.93
Department of Health,Guys and St Thomas NHS Foundation Trust,01/04/2022,(50522) Unqualified Nursing Staff,(id:42465) Surgery,CARE PROVIDERS HEALTHCARE,id:15084637  , 268.75
Department of Health,Guys and St Thomas NHS Foundation Trust,08/04/2022,(81000) Surgical Appliances,(id:42465) Surgery,TALAR MADE ORTHOTICS LTD,id:15105074    , 130.97
Department of Health,Guys and St Thomas NHS Foundation Trust,22/04/2022,(81700) Lab Equipment Purchase,(id:42465) Surgery,NHS SUPPLY CHAIN (MAIDSTONE),id:15079695  ,  19.40
Department of Health,Guys and St Thomas NHS Foundation Trust,28/04/2022,(50552) Qualified Nursing Staff,(id:42465) Surgery,GLOBE LOCUMS LTD,id:15154072   , 336.07
Department of Health,Guys and St Thomas NHS Foundation Trust,01/04/2022,(81200) Medical Surgical Supplies & Equipment,(id:42466) Surgery,NHS SUPPLY CHAIN (MAIDSTONE),id:15028097  ,  16.77
Department of Health,Guys and St Thomas NHS Foundation Trust,22/04/2022,(81225) Medical Surgical Supplies & Equipment,(id:42466) Surgery,NHS SUPPLY CHAIN (MAIDSTONE),id:15079695  , 187.20
Department of Health,Guys and St Thomas NHS Foundation Trust,01/04/2022,(81225) Medical Surgical Supplies & Equipment,(id:42466) Surgery,NHS SUPPLY CHAIN (MAIDSTONE),id:15028097  ,  35.52
Department of Health,Guys and St Thomas NHS Foundation Trust,28/04/2022,(81200) Medical Surgical Supplies & Equipment,(id:42467) Surgery,ARTHREX LTD,id:15150294    , 668.40
Department of Health,Guys and St Thomas NHS Foundation Trust,14/04/2022,(81200) Medical Surgical Supplies & Equipment,(id:42467) Surgery,LEDA ORTHOPAEDICS LTD,id:15054104    ,6284.40
Department of Health,Guys and St Thomas NHS Foundation Trust,01/04/2022,(81200) Medical Surgical Supplies & Equipment,(id:42467) Surgery,JOHNSON & JOHNSON MEDICAL LTD,id:15032043 ,1196.26
Department of Health,Guys and St Thomas NHS Foundation Trust,01/04/2022,(81100) Dressings,(id:42467) Surgery,NHS SUPPLY CHAIN (MAIDSTONE),id:15015296, 178.54
Department of Health,Guys and St Thomas NHS Foundation Trust,01/04/2022,(81225) Medical Surgical Supplies & Equipment,(id:42467) Surgery,NHS SUPPLY CHAIN (MAIDSTONE),id:15015296  ,  91.56
Department of Health,Guys and St Thomas NHS Foundation Trust,28/04/2022,(82700) Uniforms & Clothing,(id:42458) Surgery,NHS SUPPLY CHAIN (MAIDSTONE),id:15056655,  49.89
Department of Health,Guys and St Thomas NHS Foundation Trust,01/04/2022,(81200) Medical Surgical Supplies & Equipment,(id:42458) Surgery,NHS SUPPLY CHAIN (MAIDSTONE),id:15015296  , 409.31
Department of Health,Guys and St Thomas NHS Foundation Trust,01/04/2022,(81700) Lab Equipment Purchase,(id:42458) Surgery,NHS SUPPLY CHAIN (MAIDSTONE),id:15015296  ,  40.69
Department of Health,Guys and St Thomas NHS Foundation Trust,01/04/2022,(82000) Provisions & Kitchens,(id:42459) Surgery,NHS SUPPLY CHAIN (MAIDSTONE),id:15028097   , 300.89
Department of Health,Guys and St Thomas NHS Foundation Trust,01/04/2022,(82800) Bedding & Linen,(id:42459) Surgery,NHS SUPPLY CHAIN (MAIDSTONE),id:15028097    ,  63.63
Department of Health,Guys and St Thomas NHS Foundation Trust,22/04/2022,(81100) Dressings,(id:42459) Surgery,NHS SUPPLY CHAIN (MAIDSTONE),id:15079695,  53.90
Department of Health,Guys and St Thomas NHS Foundation Trust,01/04/2022,(81100) Dressings,(id:42459) Surgery,NHS SUPPLY CHAIN (MAIDSTONE),id:15015296, 131.57
Department of Health,Guys and St Thomas NHS Foundation Trust,01/04/2022,(81100) Dressings,(id:42459) Surgery,NHS SUPPLY CHAIN (MAIDSTONE),id:15028097, 138.48
Department of Health,Guys and St Thomas NHS Foundation Trust,22/04/2022,(81200) Medical Surgical Supplies & Equipment,(id:42459) Surgery,NHS SUPPLY CHAIN (MAIDSTONE),id:15105380  , 595.85
Department of Health,Guys and St Thomas NHS Foundation Trust,22/04/2022,(81000) Surgical Appliances,(id:42459) Surgery,TALAR MADE ORTHOTICS LTD,id:15137154    ,  43.66
Department of Health,Guys and St Thomas NHS Foundation Trust,28/04/2022,(83400) Office Equipment,(id:42459) Surgery,NHS SUPPLY CHAIN (MAIDSTONE),id:15056655   ,  88.60
Department of Health,Guys and St Thomas NHS Foundation Trust,22/04/2022,(81000) Surgical Appliances,(id:42461) Surgery,TALAR MADE ORTHOTICS LTD,id:15137174    ,  24.73
Department of Health,Guys and St Thomas NHS Foundation Trust,22/04/2022,(81000) Surgical Appliances,(id:42461) Surgery,TALAR MADE ORTHOTICS LTD,id:15137330    , 878.29
Department of Health,Guys and St Thomas NHS Foundation Trust,08/04/2022,(81000) Surgical Appliances,(id:42461) Surgery,TALAR MADE ORTHOTICS LTD,id:15103444    , 708.94
Department of Health,Guys and St Thomas NHS Foundation Trust,08/04/2022,(81000) Surgical Appliances,(id:42461) Surgery,TALAR MADE ORTHOTICS LTD,id:15104823    ,  87.31
Department of Health,Guys and St Thomas NHS Foundation Trust,08/04/2022,(81000) Surgical Appliances,(id:42461) Surgery,TALAR MADE ORTHOTICS LTD,id:15105414    ,  93.00
Department of Health,Guys and St Thomas NHS Foundation Trust,08/04/2022,(81000) Surgical Appliances,(id:42461) Surgery,TALAR MADE ORTHOTICS LTD,id:15105074    , 500.52
Department of Health,Guys and St Thomas NHS Foundation Trust,28/04/2022,(83400) Office Equipment,(id:42461) Surgery,NHS SUPPLY CHAIN (MAIDSTONE),id:15056655   ,  88.46
Department of Health,Guys and St Thomas NHS Foundation Trust,01/04/2022,(50200) Consultants,(id:630419) Cancer Supportive Services and R&D,KING'S COLLEGE HOSPITAL NHS FOUNDATION TRUST,id:15077186    ,-533.85
Department of Health,Guys and St Thomas NHS Foundation Trust,08/04/2022,(84200) Rental under Operating Lease,(id:42276) Haematology Cellular Pathology and Supporting Services,WATERLOO CAR SERVICE LTD,id:15106731   ,8385.90
Department of Health,Guys and St Thomas NHS Foundation Trust,28/04/2022,(82700) Uniforms & Clothing,(id:42265) Haematology Cellular Pathology and Supporting Services,NHS SUPPLY CHAIN (MAIDSTONE),id:15056655   ,  31.68
Department of Health,Guys and St Thomas NHS Foundation Trust,01/04/2022,(81100) Dressings,(id:42265) Haematology Cellular Pathology and Supporting Services,NHS SUPPLY CHAIN (MAIDSTONE),id:15015296   , 104.31
Department of Health,Guys and St Thomas NHS Foundation Trust,28/04/2022,(81200) Medical Surgical Supplies & Equipment,(id:42265) Haematology Cellular Pathology and Supporting Services,HOSPITAL METALCRAFT LTD,id:15147535,1058.57
Department of Health,Guys and St Thomas NHS Foundation Trust,08/04/2022,(50522) Unqualified Nursing Staff,(id:42265) Haematology Cellular Pathology and Supporting Services,MSI GROUP LTD,id:15110377  , 516.74
Department of Health,Guys and St Thomas NHS Foundation Trust,22/04/2022,(50522) Unqualified Nursing Staff,(id:42265) Haematology Cellular Pathology and Supporting Services,MSI GROUP LTD,id:15140157  , 563.05
Department of Health,Guys and St Thomas NHS Foundation Trust,22/04/2022,(81700) Lab Equipment Purchase,(id:42265) Haematology Cellular Pathology and Supporting Services,NHS SUPPLY CHAIN (MAIDSTONE),id:15105380,  22.43
Department of Health,Guys and St Thomas NHS Foundation Trust,08/04/2022,(82600) Uniforms & Clothing,(id:42267) Haematology Cellular Pathology and Supporting Services,KINGS COLLEGE LONDON:03529700,id:15027059  , 576.18
Department of Health,Guys and St Thomas NHS Foundation Trust,01/04/2022,(50200) Consultants,(id:42267) Haematology Cellular Pathology and Supporting Services,KING'S COLLEGE HOSPITAL NHS FOUNDATION TRUST,id:15082538,    -1411.75
Department of Health,Guys and St Thomas NHS Foundation Trust,22/04/2022,(81000) Surgical Appliances,(id:42267) Haematology Cellular Pathology and Supporting Services,TALAR MADE ORTHOTICS LTD,id:15137330  ,   8.24
Department of Health,Guys and St Thomas NHS Foundation Trust,08/04/2022,(50522) Unqualified Nursing Staff,(id:42270) Haematology Cellular Pathology and Supporting Services,MSI GROUP LTD,id:15110510  , 665.25
Department of Health,Guys and St Thomas NHS Foundation Trust,01/04/2022,(81200) Medical Surgical Supplies & Equipment,(id:42270) Haematology Cellular Pathology and Supporting Services,NHS SUPPLY CHAIN (MAIDSTONE),id:15015296,4470.63
Department of Health,Guys and St Thomas NHS Foundation Trust,22/04/2022,(81100) Dressings,(id:42270) Haematology Cellular Pathology and Supporting Services,NHS SUPPLY CHAIN (MAIDSTONE),id:15105380   ,  54.82
Department of Health,Guys and St Thomas NHS Foundation Trust,28/04/2022,(81700) Lab Equipment Purchase,(id:42270) Haematology Cellular Pathology and Supporting Services,NHS SUPPLY CHAIN (MAIDSTONE),id:15056655,  33.08
Department of Health,Guys and St Thomas NHS Foundation Trust,01/04/2022,(81700) Lab Equipment Purchase,(id:42270) Haematology Cellular Pathology and Supporting Services,NHS SUPPLY CHAIN (MAIDSTONE),id:15015296, 209.64
Department of Health,Guys and St Thomas NHS Foundation Trust,01/04/2022,(81700) Lab Equipment Purchase,(id:42270) Haematology Cellular Pathology and Supporting Services,NHS SUPPLY CHAIN (MAIDSTONE),id:15028097,   4.07
Department of Health,Guys and St Thomas NHS Foundation Trust,22/04/2022,(81700) Lab Equipment Purchase,(id:42270) Haematology Cellular Pathology and Supporting Services,NHS SUPPLY CHAIN (MAIDSTONE),id:15079695,  52.82
Department of Health,Guys and St Thomas NHS Foundation Trust,22/04/2022,(82600) Uniforms & Clothing,(id:42270) Haematology Cellular Pathology and Supporting Services,NHS SUPPLY CHAIN (MAIDSTONE),id:15105380   ,  36.49
Department of Health,Guys and St Thomas NHS Foundation Trust,22/04/2022,(82800) Bedding & Linen,(id:42270) Haematology Cellular Pathology and Supporting Services,NHS SUPPLY CHAIN (MAIDSTONE),id:15079695  , 167.48
Department of Health,Guys and St Thomas NHS Foundation Trust,01/04/2022,(82800) Bedding & Linen,(id:42270) Haematology Cellular Pathology and Supporting Services,NHS SUPPLY CHAIN (MAIDSTONE),id:15015296  ,  57.64
Department of Health,Guys and St Thomas NHS Foundation Trust,28/04/2022,(82800) Bedding & Linen,(id:42270) Haematology Cellular Pathology and Supporting Services,NHS SUPPLY CHAIN (MAIDSTONE),id:15056655  ,  32.12
Department of Health,Guys and St Thomas NHS Foundation Trust,01/04/2022,(81275) Medical Surgical Supplies & Equipment,(id:42270) Haematology Cellular Pathology and Supporting Services,NHS SUPPLY CHAIN (MAIDSTONE),id:15015296,  24.70
Department of Health,Guys and St Thomas NHS Foundation Trust,01/04/2022,(81200) Medical Surgical Supplies & Equipment,(id:42272) Haematology Cellular Pathology and Supporting Services,NHS SUPPLY CHAIN (MAIDSTONE),id:15028097,  85.49
Department of Health,Guys and St Thomas NHS Foundation Trust,01/04/2022,(89595) Non-Healthcare from Foundation Trusts,(id:42272) Haematology Cellular Pathology and Supporting Services,KING'S COLLEGE HOSPITAL NHS FOUNDATION TRUST,id:12561925    ,5082.00
Department of Health,Guys and St Thomas NHS Foundation Trust,27/04/2022,(80205) Drug Costs,(id:42273) Haematology Cellular Pathology and Supporting Services,HEALTHCARE AT HOME LTD,id:15150116   ,2050.17
Department of Health,Guys and St Thomas NHS Foundation Trust,27/04/2022,(80205) Drug Costs,(id:42273) Haematology Cellular Pathology and Supporting Services,HEALTHCARE AT HOME LTD,id:15150054   ,2830.17
Department of Health,Guys and St Thomas NHS Foundation Trust,27/04/2022,(80205) Drug Costs,(id:42273) Haematology Cellular Pathology and Supporting Services,HEALTHCARE AT HOME LTD,id:15150146   ,3100.80
Department of Health,Guys and St Thomas NHS Foundation Trust,27/04/2022,(80205) Drug Costs,(id:42273) Haematology Cellular Pathology and Supporting Services,HEALTHCARE AT HOME LTD,id:15148174   ,6466.17
Department of Health,Guys and St Thomas NHS Foundation Trust,01/04/2022,(80205) Drug Costs,(id:42273) Haematology Cellular Pathology and Supporting Services,HEALTHCARE AT HOME LTD,id:15087106   ,2984.14
Department of Health,Guys and St Thomas NHS Foundation Trust,01/04/2022,(80205) Drug Costs,(id:42273) Haematology Cellular Pathology and Supporting Services,ALCURA UK LIMITED,id:15087205   ,4820.00
Department of Health,Guys and St Thomas NHS Foundation Trust,01/04/2022,(80205) Drug Costs,(id:42273) Haematology Cellular Pathology and Supporting Services,HEALTHCARE AT HOME LTD,id:15087118   ,4910.57
Department of Health,Guys and St Thomas NHS Foundation Trust,01/04/2022,(80205) Drug Costs,(id:42273) Haematology Cellular Pathology and Supporting Services,HEALTHCARE AT HOME LTD,id:15087094   ,8770.17
Department of Health,Guys and St Thomas NHS Foundation Trust,01/04/2022,(80205) Drug Costs,(id:42273) Haematology Cellular Pathology and Supporting Services,HEALTHCARE AT HOME LTD,id:15087197   ,9600.00
Department of Health,Guys and St Thomas NHS Foundation Trust,01/04/2022,(80205) Drug Costs,(id:42273) Haematology Cellular Pathology and Supporting Services,HEALTHCARE AT HOME LTD,id:15087096   ,    19530.17
Department of Health,Guys and St Thomas NHS Foundation Trust,01/04/2022,(80205) Drug Costs,(id:42273) Haematology Cellular Pathology and Supporting Services,HEALTHCARE AT HOME LTD,id:15074615   ,    52130.17
Department of Health,Guys and St Thomas NHS Foundation Trust,22/04/2022,(80205) Drug Costs,(id:42273) Haematology Cellular Pathology and Supporting Services,HEALTHNET HOMECARE (UK) LTD,id:15114275   ,7096.20
Department of Health,Guys and St Thomas NHS Foundation Trust,08/04/2022,(80205) Drug Costs,(id:42273) Haematology Cellular Pathology and Supporting Services,HEALTHNET HOMECARE (UK) LTD,id:15087145   ,    13820.14
Department of Health,Guys and St Thomas NHS Foundation Trust,08/04/2022,(54052) Technical Officers,(id:42128) Haematology Cellular Pathology and Supporting Services,TOTAL ASSIST RECRUITMENT LTD,id:15084833    ,1024.56
Department of Health,Guys and St Thomas NHS Foundation Trust,14/04/2022,(89200) Other - Patient travel,(id:42130) Haematology Cellular Pathology and Supporting Services,F A ALBIN & SONS,id:15125176  , 925.00
Department of Health,Guys and St Thomas NHS Foundation Trust,14/04/2022,(89200) Other - Patient travel,(id:42130) Haematology Cellular Pathology and Supporting Services,F A ALBIN & SONS,id:15125094  , 925.00
Department of Health,Guys and St Thomas NHS Foundation Trust,14/04/2022,(84500) Establishment,(id:42245) Haematology Cellular Pathology and Supporting Services,4IMPRINT DIRECT LTD,id:15096334   , 390.00
Department of Health,Guys and St Thomas NHS Foundation Trust,22/04/2022,(81000) Surgical Appliances,(id:42257) Oncology Services,TALAR MADE ORTHOTICS LTD,id:15137154    ,  13.97
Department of Health,Guys and St Thomas NHS Foundation Trust,22/04/2022,(81000) Surgical Appliances,(id:42257) Oncology Services,TALAR MADE ORTHOTICS LTD,id:15137074    , 218.04
Department of Health,Guys and St Thomas NHS Foundation Trust,22/04/2022,(82800) Bedding & Linen,(id:42258) Oncology Services,NHS SUPPLY CHAIN (MAIDSTONE),id:15105380    , 194.07
Department of Health,Guys and St Thomas NHS Foundation Trust,28/04/2022,(82800) Bedding & Linen,(id:42258) Oncology Services,NHS SUPPLY CHAIN (MAIDSTONE),id:15056655    , 113.61
Department of Health,Guys and St Thomas NHS Foundation Trust,26/04/2022,(52062) Radiographers,(id:42258) Oncology Services,PRICEWATERHOUSECOOPERS LLP,id:15148814   ,3427.36
Department of Health,Guys and St Thomas NHS Foundation Trust,28/04/2022,(83360) Premises Services,(id:42258) Oncology Services,CITY & KENT CLEANING LTD,id:15153235 ,7389.33
Department of Health,Guys and St Thomas NHS Foundation Trust,22/04/2022,(81100) Dressings,(id:42258) Oncology Services,NHS SUPPLY CHAIN (MAIDSTONE),id:15079695, 127.83
Department of Health,Guys and St Thomas NHS Foundation Trust,01/04/2022,(81100) Dressings,(id:42258) Oncology Services,NHS SUPPLY CHAIN (MAIDSTONE),id:15028097, 173.34
Department of Health,Guys and St Thomas NHS Foundation Trust,28/04/2022,(81100) Dressings,(id:42258) Oncology Services,NHS SUPPLY CHAIN (MAIDSTONE),id:15056655, 367.08
Department of Health,Guys and St Thomas NHS Foundation Trust,22/04/2022,(89595) Non-Healthcare from Foundation Trusts,(id:42261) Oncology Services,KING'S COLLEGE HOSPITAL NHS FOUNDATION TRUST,id:15080652 ,   105922.00
Department of Health,Guys and St Thomas NHS Foundation Trust,01/04/2022,(82600) Uniforms & Clothing,(id:42260) Oncology Services,NHS SUPPLY CHAIN (MAIDSTONE),id:15028097,  25.26
Department of Health,Guys and St Thomas NHS Foundation Trust,28/04/2022,(82800) Bedding & Linen,(id:42260) Oncology Services,NHS SUPPLY CHAIN (MAIDSTONE),id:15056655    , 178.01
Department of Health,Guys and St Thomas NHS Foundation Trust,22/04/2022,(81100) Dressings,(id:42260) Oncology Services,NHS SUPPLY CHAIN (MAIDSTONE),id:15079695,2765.27
Department of Health,Guys and St Thomas NHS Foundation Trust,22/04/2022,(82800) Bedding & Linen,(id:42259) Oncology Services,NHS SUPPLY CHAIN (MAIDSTONE),id:15105380    , 143.35
Department of Health,Guys and St Thomas NHS Foundation Trust,28/04/2022,(82800) Bedding & Linen,(id:42259) Oncology Services,NHS SUPPLY CHAIN (MAIDSTONE),id:15056655    , 143.18
Department of Health,Guys and St Thomas NHS Foundation Trust,22/04/2022,(81100) Dressings,(id:42259) Oncology Services,NHS SUPPLY CHAIN (MAIDSTONE),id:15079695, 199.32
Department of Health,Guys and St Thomas NHS Foundation Trust,01/04/2022,(81200) Medical Surgical Supplies & Equipment,(id:42259) Oncology Services,NHS SUPPLY CHAIN (MAIDSTONE),id:15015296  ,1073.56
Department of Health,Guys and St Thomas NHS Foundation Trust,22/04/2022,(81200) Medical Surgical Supplies & Equipment,(id:42259) Oncology Services,NHS SUPPLY CHAIN (MAIDSTONE),id:15079695  , 621.59
Department of Health,Guys and St Thomas NHS Foundation Trust,28/04/2022,(83400) Office Equipment,(id:42259) Oncology Services,NHS SUPPLY CHAIN (MAIDSTONE),id:15056655   , 206.27
Department of Health,Guys and St Thomas NHS Foundation Trust,22/04/2022,(81255) Medical Surgical Supplies & Equipment,(id:42259) Oncology Services,NHS SUPPLY CHAIN (MAIDSTONE),id:15105380  ,   5.62
Department of Health,Guys and St Thomas NHS Foundation Trust,01/04/2022,(84600) Establishment,(id:1319419) Surgical Oncology,CLARITY TRAVEL MANAGEMENT,id:15084314  , 959.76
Department of Health,Guys and St Thomas NHS Foundation Trust,28/04/2022,(82800) Bedding & Linen,(id:42280) Surgical Oncology,NHS SUPPLY CHAIN (MAIDSTONE),id:15056655    , 107.82
Department of Health,Guys and St Thomas NHS Foundation Trust,01/04/2022,(81200) Medical Surgical Supplies & Equipment,(id:42280) Surgical Oncology,ELEMENTAL HEALTHCARE LTD,id:15072333 ,1655.88
Department of Health,Guys and St Thomas NHS Foundation Trust,01/04/2022,(81200) Medical Surgical Supplies & Equipment,(id:42280) Surgical Oncology,Q MEDICAL TECHNOLOGIES LTD,id:15087874    ,    -1142.40
Department of Health,Guys and St Thomas NHS Foundation Trust,08/04/2022,(81200) Medical Surgical Supplies & Equipment,(id:42280) Surgical Oncology,IDEAL MEDICAL SOLUTIONS LTD,id:15051821   ,5676.00
Department of Health,Guys and St Thomas NHS Foundation Trust,08/04/2022,(81200) Medical Surgical Supplies & Equipment,(id:42280) Surgical Oncology,Q MEDICAL TECHNOLOGIES LTD,id:15087917    ,-857.40
Department of Health,Guys and St Thomas NHS Foundation Trust,01/04/2022,(83400) Office Equipment,(id:243406) Surgical Oncology,NHS SUPPLY CHAIN (MAIDSTONE),id:15028097  ,  26.60
Department of Health,Guys and St Thomas NHS Foundation Trust,22/04/2022,(82000) Provisions & Kitchens,(id:243406) Surgical Oncology,NHS SUPPLY CHAIN (MAIDSTONE),id:15105380  ,  68.59
Department of Health,Guys and St Thomas NHS Foundation Trust,22/04/2022,(82000) Provisions & Kitchens,(id:243406) Surgical Oncology,NHS SUPPLY CHAIN (MAIDSTONE),id:15079695  ,  31.97
Department of Health,Guys and St Thomas NHS Foundation Trust,01/04/2022,(82800) Bedding & Linen,(id:42473) Surgical Oncology,NHS SUPPLY CHAIN (MAIDSTONE),id:15028097    ,  48.26
Department of Health,Guys and St Thomas NHS Foundation Trust,28/04/2022,(81200) Medical Surgical Supplies & Equipment,(id:42473) Surgical Oncology,STRYKER UK LTD,id:15136966 ,1280.40
Department of Health,Guys and St Thomas NHS Foundation Trust,08/04/2022,(81200) Medical Surgical Supplies & Equipment,(id:42473) Surgical Oncology,MEDTRONIC LTD,id:14705725  ,1191.60
Department of Health,Guys and St Thomas NHS Foundation Trust,14/04/2022,(81200) Medical Surgical Supplies & Equipment,(id:42473) Surgical Oncology,NEOMED UK LTD,id:15033321  ,1378.80
Department of Health,Guys and St Thomas NHS Foundation Trust,01/04/2022,(81400) Medical Surgical Supplies & Equipment,(id:42473) Surgical Oncology,KARL STORZ ENDOSCOPY UK LTD,id:15044314   ,2666.00
Department of Health,Guys and St Thomas NHS Foundation Trust,22/04/2022,(81000) Surgical Appliances,(id:42473) Surgical Oncology,NHS SUPPLY CHAIN (MAIDSTONE),id:15105380, 184.29
Department of Health,Guys and St Thomas NHS Foundation Trust,14/04/2022,(81700) Lab Equipment Purchase,(id:42473) Surgical Oncology,KARL STORZ ENDOSCOPY UK LTD,id:15077014   ,4280.40
Department of Health,Guys and St Thomas NHS Foundation Trust,14/04/2022,(80010) Drug Costs,(id:42474) Surgical Oncology,INHEALTH LTD/ECHOTECH LTD/REPORTING,id:15087635  , 600.00
Department of Health,Guys and St Thomas NHS Foundation Trust,22/04/2022,(81200) Medical Surgical Supplies & Equipment,(id:42474) Surgical Oncology,BIOSPECTRUM LTD,id:15138738, 618.00
Department of Health,Guys and St Thomas NHS Foundation Trust,22/04/2022,(81235) Medical Surgical Supplies & Equipment,(id:42474) Surgical Oncology,BOSTON SCIENTIFIC LTD,id:15086567    , 506.76
Department of Health,Guys and St Thomas NHS Foundation Trust,28/04/2022,(55632) Maintenance Staff,(id:42474) Surgical Oncology,TWOFOLD LIMITED,id:14441760, 516.42
Department of Health,Guys and St Thomas NHS Foundation Trust,14/04/2022,(84600) Establishment,(id:42474) Surgical Oncology,ATOS MEDICAL,id:15117816  , 856.15
Department of Health,Guys and St Thomas NHS Foundation Trust,01/04/2022,(81200) Medical Surgical Supplies & Equipment,(id:42475) Surgical Oncology,LJA MIERS & CO LTD,id:15053823  ,4106.40
Department of Health,Guys and St Thomas NHS Foundation Trust,28/04/2022,(81215) Medical Surgical Supplies & Equipment,(id:42475) Surgical Oncology,NHS SUPPLY CHAIN (MAIDSTONE),id:15056655  ,    36838.80
Department of Health,Guys and St Thomas NHS Foundation Trust,28/04/2022,(81215) Medical Surgical Supplies & Equipment,(id:42475) Surgical Oncology,AUDIT DATA LTD,id:15148306 ,2544.00
Department of Health,Guys and St Thomas NHS Foundation Trust,14/04/2022,(81215) Medical Surgical Supplies & Equipment,(id:42475) Surgical Oncology,COCHLEAR EUROPE LTD,id:15082642 ,7168.80
Department of Health,Guys and St Thomas NHS Foundation Trust,22/04/2022,(81215) Medical Surgical Supplies & Equipment,(id:42475) Surgical Oncology,NHS SUPPLY CHAIN (MAIDSTONE),id:15079695  ,   4.62
Department of Health,Guys and St Thomas NHS Foundation Trust,28/04/2022,(81225) Medical Surgical Supplies & Equipment,(id:42475) Surgical Oncology,NHS SUPPLY CHAIN (MAIDSTONE),id:15056655  ,    24236.68
Department of Health,Guys and St Thomas NHS Foundation Trust,22/04/2022,(81225) Medical Surgical Supplies & Equipment,(id:42475) Surgical Oncology,COCHLEAR EUROPE LTD,id:15138300 , 853.20
Department of Health,Guys and St Thomas NHS Foundation Trust,01/04/2022,(81225) Medical Surgical Supplies & Equipment,(id:42475) Surgical Oncology,COCHLEAR EUROPE LTD,id:15082641 , 680.40
Department of Health,Guys and St Thomas NHS Foundation Trust,01/04/2022,(82800) Bedding & Linen,(id:42286) Surgical Oncology,NHS SUPPLY CHAIN (MAIDSTONE),id:15028097    ,  62.10
Department of Health,Guys and St Thomas NHS Foundation Trust,22/04/2022,(81200) Medical Surgical Supplies & Equipment,(id:42286) Surgical Oncology,MEDTRONIC LTD,id:15109020  ,1889.50
Department of Health,Guys and St Thomas NHS Foundation Trust,22/04/2022,(81200) Medical Surgical Supplies & Equipment,(id:42286) Surgical Oncology,NHS SUPPLY CHAIN (MAIDSTONE),id:15079695  ,6217.23
Department of Health,Guys and St Thomas NHS Foundation Trust,22/04/2022,(81200) Medical Surgical Supplies & Equipment,(id:42286) Surgical Oncology,MEDTRONIC LTD,id:15106185  ,2754.00
Department of Health,Guys and St Thomas NHS Foundation Trust,28/04/2022,(81200) Medical Surgical Supplies & Equipment,(id:42286) Surgical Oncology,MEDTRONIC LTD,id:15120193  , 986.54
Department of Health,Guys and St Thomas NHS Foundation Trust,01/04/2022,(82800) Bedding & Linen,(id:42284) Surgical Oncology,NHS SUPPLY CHAIN (MAIDSTONE),id:15028097    ,  55.61
Department of Health,Guys and St Thomas NHS Foundation Trust,28/04/2022,(81200) Medical Surgical Supplies & Equipment,(id:42284) Surgical Oncology,NHS SUPPLY CHAIN (MAIDSTONE),id:15056655  ,1070.84
Department of Health,Guys and St Thomas NHS Foundation Trust,22/04/2022,(81200) Medical Surgical Supplies & Equipment,(id:42284) Surgical Oncology,NHS SUPPLY CHAIN (MAIDSTONE),id:15079695  ,1889.13
Department of Health,Guys and St Thomas NHS Foundation Trust,01/04/2022,(82700) Uniforms & Clothing,(id:42470) Surgical Oncology,NHS SUPPLY CHAIN (MAIDSTONE),id:15015296,  31.68
Department of Health,Guys and St Thomas NHS Foundation Trust,14/04/2022,(50562) Qualified Nursing Staff,(id:42470) Surgical Oncology,MEDICSPRO LTD,id:15123452 , 636.42
Department of Health,Guys and St Thomas NHS Foundation Trust,01/04/2022,(83400) Office Equipment,(id:42470) Surgical Oncology,NHS SUPPLY CHAIN (MAIDSTONE),id:15028097   ,  73.08
Department of Health,Guys and St Thomas NHS Foundation Trust,28/04/2022,(81200) Medical Surgical Supplies & Equipment,(id:42508) Surgical Oncology,NHS SUPPLY CHAIN (MAIDSTONE),id:15056655  , 123.00
Department of Health,Guys and St Thomas NHS Foundation Trust,01/04/2022,(83400) Office Equipment,(id:41858) Acute & General Medicine,NHS SUPPLY CHAIN (MAIDSTONE),id:15015296 ,  79.97
Department of Health,Guys and St Thomas NHS Foundation Trust,01/04/2022,(83400) Office Equipment,(id:41858) Acute & General Medicine,NHS SUPPLY CHAIN (MAIDSTONE),id:15028097 ,  65.05
Department of Health,Guys and St Thomas NHS Foundation Trust,01/04/2022,(82800) Bedding & Linen,(id:41858) Acute & General Medicine,NHS SUPPLY CHAIN (MAIDSTONE),id:15015296  ,  82.45
Department of Health,Guys and St Thomas NHS Foundation Trust,22/04/2022,(83610) IT Costs,(id:41858) Acute & General Medicine,BANNER GROUP LTD,id:15138725 , 573.23
Department of Health,Guys and St Thomas NHS Foundation Trust,14/04/2022,(50522) Unqualified Nursing Staff,(id:41858) Acute & General Medicine,GLOBE LOCUMS LTD,id:15123608    , 202.12
Department of Health,Guys and St Thomas NHS Foundation Trust,14/04/2022,(50522) Unqualified Nursing Staff,(id:41858) Acute & General Medicine,MSI GROUP LTD,id:15125650  , 268.60
Department of Health,Guys and St Thomas NHS Foundation Trust,01/04/2022,(50522) Unqualified Nursing Staff,(id:41858) Acute & General Medicine,CARE PROVIDERS HEALTHCARE,id:15084632, 200.10
Department of Health,Guys and St Thomas NHS Foundation Trust,08/04/2022,(50522) Unqualified Nursing Staff,(id:41858) Acute & General Medicine,CARE PROVIDERS HEALTHCARE,id:15110172, 273.47
Department of Health,Guys and St Thomas NHS Foundation Trust,22/04/2022,(82000) Provisions & Kitchens,(id:41859) Acute & General Medicine,NHS SUPPLY CHAIN (MAIDSTONE),id:15105380 ,    .66
Department of Health,Guys and St Thomas NHS Foundation Trust,01/04/2022,(82800) Bedding & Linen,(id:41859) Acute & General Medicine,NHS SUPPLY CHAIN (MAIDSTONE),id:15015296  , 102.55
Department of Health,Guys and St Thomas NHS Foundation Trust,08/04/2022,(50552) Qualified Nursing Staff,(id:41859) Acute & General Medicine,CARE PROVIDERS HEALTHCARE,id:15110485  ,1320.10
Department of Health,Guys and St Thomas NHS Foundation Trust,22/04/2022,(50552) Qualified Nursing Staff,(id:41859) Acute & General Medicine,MSI GROUP LTD,id:15140286    , 303.47
Department of Health,Guys and St Thomas NHS Foundation Trust,22/04/2022,(50552) Qualified Nursing Staff,(id:41859) Acute & General Medicine,GLOBE LOCUMS LTD,id:15140296 , 343.95
Department of Health,Guys and St Thomas NHS Foundation Trust,28/04/2022,(50522) Unqualified Nursing Staff,(id:41859) Acute & General Medicine,GLOBE LOCUMS LTD,id:15153804    , 217.71
Department of Health,Guys and St Thomas NHS Foundation Trust,22/04/2022,(81700) Lab Equipment Purchase,(id:41859) Acute & General Medicine,NHS SUPPLY CHAIN (MAIDSTONE),id:15079695,   3.10
Department of Health,Guys and St Thomas NHS Foundation Trust,01/04/2022,(82800) Bedding & Linen,(id:41860) Acute & General Medicine,NHS SUPPLY CHAIN (MAIDSTONE),id:15015296  ,  64.68
Department of Health,Guys and St Thomas NHS Foundation Trust,28/04/2022,(81100) Dressings,(id:41860) Acute & General Medicine,NHS SUPPLY CHAIN (MAIDSTONE),id:15056655   , 268.13
Department of Health,Guys and St Thomas NHS Foundation Trust,22/04/2022,(50552) Qualified Nursing Staff,(id:41860) Acute & General Medicine,CARE PROVIDERS HEALTHCARE,id:15143232  , 741.44
Department of Health,Guys and St Thomas NHS Foundation Trust,08/04/2022,(50552) Qualified Nursing Staff,(id:41860) Acute & General Medicine,GLOBE LOCUMS LTD,id:15110257 ,1032.47
Department of Health,Guys and St Thomas NHS Foundation Trust,08/04/2022,(50552) Qualified Nursing Staff,(id:41860) Acute & General Medicine,MSI GROUP LTD,id:15110660    , 745.74
Department of Health,Guys and St Thomas NHS Foundation Trust,01/04/2022,(81255) Medical Surgical Supplies & Equipment,(id:41860) Acute & General Medicine,NHS SUPPLY CHAIN (MAIDSTONE),id:15028097,  12.31
Department of Health,Guys and St Thomas NHS Foundation Trust,28/04/2022,(50522) Unqualified Nursing Staff,(id:41860) Acute & General Medicine,GLOBE LOCUMS LTD,id:15153870    ,1111.56
Department of Health,Guys and St Thomas NHS Foundation Trust,14/04/2022,(50522) Unqualified Nursing Staff,(id:41860) Acute & General Medicine,GLOBE LOCUMS LTD,id:15125664    ,1352.76
Department of Health,Guys and St Thomas NHS Foundation Trust,22/04/2022,(81200) Medical Surgical Supplies & Equipment,(id:41860) Acute & General Medicine,FISHER & PAYKEL HEALTHCARE LTD,id:15091234   ,2743.78
Department of Health,Guys and St Thomas NHS Foundation Trust,22/04/2022,(81200) Medical Surgical Supplies & Equipment,(id:2182419) Acute & General Medicine,NHS SUPPLY CHAIN (MAIDSTONE),id:15105380   ,1391.29
Department of Health,Guys and St Thomas NHS Foundation Trust,01/04/2022,(81200) Medical Surgical Supplies & Equipment,(id:2182419) Acute & General Medicine,NHS SUPPLY CHAIN (MAIDSTONE),id:15028097   ,2103.83
Department of Health,Guys and St Thomas NHS Foundation Trust,22/04/2022,(50552) Qualified Nursing Staff,(id:2182419) Acute & General Medicine,MSI GROUP LTD,id:15140240  , 516.74
Department of Health,Guys and St Thomas NHS Foundation Trust,14/04/2022,(50552) Qualified Nursing Staff,(id:2182419) Acute & General Medicine,MSI GROUP LTD,id:15123546  , 333.82
Department of Health,Guys and St Thomas NHS Foundation Trust,22/04/2022,(50522) Unqualified Nursing Staff,(id:2182419) Acute & General Medicine,GLOBE LOCUMS LTD,id:15140297  , 261.11
Department of Health,Guys and St Thomas NHS Foundation Trust,22/04/2022,(50522) Unqualified Nursing Staff,(id:2182419) Acute & General Medicine,GLOBE LOCUMS LTD,id:15140244  , 274.72
Department of Health,Guys and St Thomas NHS Foundation Trust,01/04/2022,(50522) Unqualified Nursing Staff,(id:2182419) Acute & General Medicine,CARE PROVIDERS HEALTHCARE,id:15084486   , 525.62
Department of Health,Guys and St Thomas NHS Foundation Trust,28/04/2022,(81100) Dressings,(id:2182419) Acute & General Medicine,NHS SUPPLY CHAIN (MAIDSTONE),id:15056655 , 405.92
Department of Health,Guys and St Thomas NHS Foundation Trust,01/04/2022,(81200) Medical Surgical Supplies & Equipment,(id:860419) Acute & General Medicine,NHS SUPPLY CHAIN (MAIDSTONE),id:15015296    , 315.00
Department of Health,Guys and St Thomas NHS Foundation Trust,01/04/2022,(81225) Medical Surgical Supplies & Equipment,(id:860419) Acute & General Medicine,NHS SUPPLY CHAIN (MAIDSTONE),id:15015296    , 111.60
Department of Health,Guys and St Thomas NHS Foundation Trust,08/04/2022,(50200) Consultants,(id:41868) Acute & General Medicine,SOUTH LONDON AND MAUDSLEY NHS FOUNDATION TRUST,id:15084125   ,3700.00
Department of Health,Guys and St Thomas NHS Foundation Trust,01/04/2022,(81700) Lab Equipment Purchase,(id:41868) Acute & General Medicine,NHS SUPPLY CHAIN (MAIDSTONE),id:15028097,  25.60
Department of Health,Guys and St Thomas NHS Foundation Trust,22/04/2022,(82600) Uniforms & Clothing,(id:41869) Acute & General Medicine,NHS SUPPLY CHAIN (MAIDSTONE),id:15079695   ,   4.50
Department of Health,Guys and St Thomas NHS Foundation Trust,22/04/2022,(82600) Uniforms & Clothing,(id:41869) Acute & General Medicine,NHS SUPPLY CHAIN (MAIDSTONE),id:15105380   ,   9.00
Department of Health,Guys and St Thomas NHS Foundation Trust,22/04/2022,(82000) Provisions & Kitchens,(id:41869) Acute & General Medicine,NHS SUPPLY CHAIN (MAIDSTONE),id:15105380 ,   6.34
Department of Health,Guys and St Thomas NHS Foundation Trust,01/04/2022,(82000) Provisions & Kitchens,(id:41869) Acute & General Medicine,NHS SUPPLY CHAIN (MAIDSTONE),id:15015296 ,  93.80
Department of Health,Guys and St Thomas NHS Foundation Trust,01/04/2022,(84500) Establishment,(id:41869) Acute & General Medicine,WOLVERSON X-RAY LIMITED,id:15075375    ,3000.00
Department of Health,Guys and St Thomas NHS Foundation Trust,01/04/2022,(83400) Office Equipment,(id:41869) Acute & General Medicine,NHS SUPPLY CHAIN (MAIDSTONE),id:15028097 , 517.54
Department of Health,Guys and St Thomas NHS Foundation Trust,08/04/2022,(81225) Medical Surgical Supplies & Equipment,(id:41869) Acute & General Medicine,PROMEDICS ORTHOPAEDICS LTD,id:15083686  , 539.10
Department of Health,Guys and St Thomas NHS Foundation Trust,22/04/2022,(81700) Lab Equipment Purchase,(id:41869) Acute & General Medicine,NHS SUPPLY CHAIN (MAIDSTONE),id:15105380,  47.27
Department of Health,Guys and St Thomas NHS Foundation Trust,22/04/2022,(83400) Office Equipment,(id:41882) Acute & General Medicine,NHS SUPPLY CHAIN (MAIDSTONE),id:15079695 ,  18.52
Department of Health,Guys and St Thomas NHS Foundation Trust,22/04/2022,(82800) Bedding & Linen,(id:41882) Acute & General Medicine,NHS SUPPLY CHAIN (MAIDSTONE),id:15079695  ,  43.12
Department of Health,Guys and St Thomas NHS Foundation Trust,22/04/2022,(81700) Lab Equipment Purchase,(id:41882) Acute & General Medicine,NHS SUPPLY CHAIN (MAIDSTONE),id:15105380,   3.10
Department of Health,Guys and St Thomas NHS Foundation Trust,01/04/2022,(81200) Medical Surgical Supplies & Equipment,(id:41882) Acute & General Medicine,NHS SUPPLY CHAIN (MAIDSTONE),id:15015296, 105.61
Department of Health,Guys and St Thomas NHS Foundation Trust,22/04/2022,(81000) Surgical Appliances,(id:41876) Acute & General Medicine,TALAR MADE ORTHOTICS LTD,id:15137334  ,  43.66
Department of Health,Guys and St Thomas NHS Foundation Trust,08/04/2022,(81000) Surgical Appliances,(id:41876) Acute & General Medicine,TALAR MADE ORTHOTICS LTD,id:15104655  ,   8.24
Department of Health,Guys and St Thomas NHS Foundation Trust,01/04/2022,(81100) Dressings,(id:41878) Acute & General Medicine,NHS SUPPLY CHAIN (MAIDSTONE),id:15015296   , 313.73
Department of Health,Guys and St Thomas NHS Foundation Trust,22/04/2022,(50522) Unqualified Nursing Staff,(id:41878) Acute & General Medicine,GLOBE LOCUMS LTD,id:15139973    , 286.21
Department of Health,Guys and St Thomas NHS Foundation Trust,08/04/2022,(50522) Unqualified Nursing Staff,(id:41878) Acute & General Medicine,GLOBE LOCUMS LTD,id:15110340    , 223.57
Department of Health,Guys and St Thomas NHS Foundation Trust,01/04/2022,(81200) Medical Surgical Supplies & Equipment,(id:41878) Acute & General Medicine,NHS SUPPLY CHAIN (MAIDSTONE),id:15015296, 723.52
Department of Health,Guys and St Thomas NHS Foundation Trust,28/04/2022,(81225) Medical Surgical Supplies & Equipment,(id:41878) Acute & General Medicine,NHS SUPPLY CHAIN (MAIDSTONE),id:15056655,  15.23
Department of Health,Guys and St Thomas NHS Foundation Trust,01/04/2022,(81700) Lab Equipment Purchase,(id:41878) Acute & General Medicine,NHS SUPPLY CHAIN (MAIDSTONE),id:15028097,   9.86
Department of Health,Guys and St Thomas NHS Foundation Trust,22/04/2022,(82800) Bedding & Linen,(id:41879) Acute & General Medicine,NHS SUPPLY CHAIN (MAIDSTONE),id:15079695  , 129.39
Department of Health,Guys and St Thomas NHS Foundation Trust,22/04/2022,(50522) Unqualified Nursing Staff,(id:41879) Acute & General Medicine,CARE PROVIDERS HEALTHCARE,id:15143128,1376.41
Department of Health,Guys and St Thomas NHS Foundation Trust,01/04/2022,(50522) Unqualified Nursing Staff,(id:41879) Acute & General Medicine,CARE PROVIDERS HEALTHCARE,id:15084773, 823.42
Department of Health,Guys and St Thomas NHS Foundation Trust,08/04/2022,(50522) Unqualified Nursing Staff,(id:41879) Acute & General Medicine,MSI GROUP LTD,id:15110188  , 252.93
Department of Health,Guys and St Thomas NHS Foundation Trust,28/04/2022,(81200) Medical Surgical Supplies & Equipment,(id:41879) Acute & General Medicine,NHS SUPPLY CHAIN (MAIDSTONE),id:15056655, 206.32
Department of Health,Guys and St Thomas NHS Foundation Trust,22/04/2022,(81225) Medical Surgical Supplies & Equipment,(id:41879) Acute & General Medicine,NHS SUPPLY CHAIN (MAIDSTONE),id:15105380,  20.30
Department of Health,Guys and St Thomas NHS Foundation Trust,14/04/2022,(50552) Qualified Nursing Staff,(id:41879) Acute & General Medicine,CARE PROVIDERS HEALTHCARE,id:15125691  , 343.95
Department of Health,Guys and St Thomas NHS Foundation Trust,28/04/2022,(82600) Uniforms & Clothing,(id:41880) Acute & General Medicine,NHS SUPPLY CHAIN (MAIDSTONE),id:15056655   ,  84.20
Department of Health,Guys and St Thomas NHS Foundation Trust,01/04/2022,(82000) Provisions & Kitchens,(id:41880) Acute & General Medicine,NHS SUPPLY CHAIN (MAIDSTONE),id:15028097 , 117.07
Department of Health,Guys and St Thomas NHS Foundation Trust,28/04/2022,(50522) Unqualified Nursing Staff,(id:41880) Acute & General Medicine,GLOBE LOCUMS LTD,id:15153807    , 203.04
Department of Health,Guys and St Thomas NHS Foundation Trust,28/04/2022,(82600) Uniforms & Clothing,(id:41881) Acute & General Medicine,NHS SUPPLY CHAIN (MAIDSTONE),id:15056655   , 104.73
Department of Health,Guys and St Thomas NHS Foundation Trust,01/04/2022,(82000) Provisions & Kitchens,(id:41881) Acute & General Medicine,NHS SUPPLY CHAIN (MAIDSTONE),id:15028097 ,  31.20
Department of Health,Guys and St Thomas NHS Foundation Trust,22/04/2022,(81100) Dressings,(id:41881) Acute & General Medicine,NHS SUPPLY CHAIN (MAIDSTONE),id:15079695   , 346.93
Department of Health,Guys and St Thomas NHS Foundation Trust,01/04/2022,(50522) Unqualified Nursing Staff,(id:41881) Acute & General Medicine,CARE PROVIDERS HEALTHCARE,id:15084711, 400.20
Department of Health,Guys and St Thomas NHS Foundation Trust,22/04/2022,(50522) Unqualified Nursing Staff,(id:41881) Acute & General Medicine,CARE PROVIDERS HEALTHCARE,id:15140270, 252.93
Department of Health,Guys and St Thomas NHS Foundation Trust,28/04/2022,(50522) Unqualified Nursing Staff,(id:41881) Acute & General Medicine,GLOBE LOCUMS LTD,id:15153700    , 252.93
Department of Health,Guys and St Thomas NHS Foundation Trust,28/04/2022,(81200) Medical Surgical Supplies & Equipment,(id:41881) Acute & General Medicine,NHS SUPPLY CHAIN (MAIDSTONE),id:15056655, 780.62
Department of Health,Guys and St Thomas NHS Foundation Trust,01/04/2022,(81700) Lab Equipment Purchase,(id:41881) Acute & General Medicine,NHS SUPPLY CHAIN (MAIDSTONE),id:15028097,   3.10
Department of Health,Guys and St Thomas NHS Foundation Trust,22/04/2022,(81255) Medical Surgical Supplies & Equipment,(id:41881) Acute & General Medicine,NHS SUPPLY CHAIN (MAIDSTONE),id:15079695,   8.21
Department of Health,Guys and St Thomas NHS Foundation Trust,22/04/2022,(83880) Building & Engineering,(id:41968) Inpatient Services,GRANTLEIGH LTD,id:15088734,    14475.00
Department of Health,Guys and St Thomas NHS Foundation Trust,22/04/2022,(83400) Office Equipment,(id:41970) Inpatient Services,ARJO UK LIMITED,id:15098914,    34165.91
Department of Health,Guys and St Thomas NHS Foundation Trust,01/04/2022,(81200) Medical Surgical Supplies & Equipment,(id:42025) Dental Services,NHS SUPPLY CHAIN (MAIDSTONE),id:15028097    ,  85.54
Department of Health,Guys and St Thomas NHS Foundation Trust,22/04/2022,(81200) Medical Surgical Supplies & Equipment,(id:42037) Dental Services,HENRY SCHEIN,id:15092254, 833.44
Department of Health,Guys and St Thomas NHS Foundation Trust,28/04/2022,(82600) Uniforms & Clothing,(id:42037) Dental Services,NHS SUPPLY CHAIN (MAIDSTONE),id:15056655  ,  42.48
Department of Health,Guys and St Thomas NHS Foundation Trust,01/04/2022,(81100) Dressings,(id:42037) Dental Services,NHS SUPPLY CHAIN (MAIDSTONE),id:15015296  , 222.33
Department of Health,Guys and St Thomas NHS Foundation Trust,28/04/2022,(83400) Office Equipment,(id:42037) Dental Services,NHS SUPPLY CHAIN (MAIDSTONE),id:15056655, 107.62
Department of Health,Guys and St Thomas NHS Foundation Trust,22/04/2022,(81200) Medical Surgical Supplies & Equipment,(id:42005) Dental Services,ROCIALLE MEDICAL LTD,id:15109814  , 600.14
Department of Health,Guys and St Thomas NHS Foundation Trust,28/04/2022,(50343) Other Medical Grades,(id:42007) Dental Services,KINGS COLLEGE LONDON:03529700,id:14817674,1142.28
Department of Health,Guys and St Thomas NHS Foundation Trust,28/04/2022,(50343) Other Medical Grades,(id:42007) Dental Services,KINGS COLLEGE LONDON:03529700,id:15074355,1152.37
Department of Health,Guys and St Thomas NHS Foundation Trust,28/04/2022,(50343) Other Medical Grades,(id:42007) Dental Services,KINGS COLLEGE LONDON:03529700,id:14634454,1267.76
Department of Health,Guys and St Thomas NHS Foundation Trust,01/04/2022,(81200) Medical Surgical Supplies & Equipment,(id:42007) Dental Services,HENRY SCHEIN,id:15062398, 561.23
Department of Health,Guys and St Thomas NHS Foundation Trust,01/04/2022,(81200) Medical Surgical Supplies & Equipment,(id:42007) Dental Services,NHS SUPPLY CHAIN (MAIDSTONE),id:15015296    ,2433.66
Department of Health,Guys and St Thomas NHS Foundation Trust,01/04/2022,(83400) Office Equipment,(id:42007) Dental Services,NHS SUPPLY CHAIN (MAIDSTONE),id:15028097,  76.74
Department of Health,Guys and St Thomas NHS Foundation Trust,01/04/2022,(81700) Lab Equipment Purchase,(id:42007) Dental Services,NHS SUPPLY CHAIN (MAIDSTONE),id:15015296    ,  59.51
Department of Health,Guys and St Thomas NHS Foundation Trust,08/04/2022,(50470) Medical Training Grades,(id:42033) Dental Services,EAST KENT HOSPITALS UNIVERSITY NHS FOUNDATION TRUST,id:14684254,5169.97
Department of Health,Guys and St Thomas NHS Foundation Trust,22/04/2022,(82600) Uniforms & Clothing,(id:42028) Dental Services,DP MEDICAL SYSTEMS LTD,id:15111174   ,4062.00
Department of Health,Guys and St Thomas NHS Foundation Trust,22/04/2022,(81200) Medical Surgical Supplies & Equipment,(id:42028) Dental Services,NHS SUPPLY CHAIN (MAIDSTONE),id:15105380    , 529.04
Department of Health,Guys and St Thomas NHS Foundation Trust,01/04/2022,(81100) Dressings,(id:42028) Dental Services,NHS SUPPLY CHAIN (MAIDSTONE),id:15015296  , 125.86
Department of Health,Guys and St Thomas NHS Foundation Trust,28/04/2022,(50200) Consultants,(id:42018) Dental Services,KINGS COLLEGE LONDON:03529700,id:14817674    ,1316.77
Department of Health,Guys and St Thomas NHS Foundation Trust,28/04/2022,(50200) Consultants,(id:42019) Dental Services,KINGS COLLEGE LONDON:03529700,id:15074355    ,1323.33
Department of Health,Guys and St Thomas NHS Foundation Trust,22/04/2022,(83610) IT Costs,(id:2884419) Dental Services,TRI-TECH ENGINEERING T/A TRI-TECH 3D,id:15143012   ,7196.40
Department of Health,Guys and St Thomas NHS Foundation Trust,28/04/2022,(50343) Other Medical Grades,(id:42022) Dental Services,KINGS COLLEGE LONDON:03529700,id:14817674,1560.25
Department of Health,Guys and St Thomas NHS Foundation Trust,28/04/2022,(50200) Consultants,(id:3088419) Dental Services,KINGS COLLEGE LONDON:03529700,id:14634454  ,1930.19
Department of Health,Guys and St Thomas NHS Foundation Trust,28/04/2022,(83400) Office Equipment,(id:41994) Dental Services,NHS SUPPLY CHAIN (MAIDSTONE),id:15056655,  26.28
Department of Health,Guys and St Thomas NHS Foundation Trust,01/04/2022,(81400) Medical Surgical Supplies & Equipment,(id:41994) Dental Services,RIVERSIDE ENVIRONMENTAL SERVICES LTD,id:15033961 , 597.50
Department of Health,Guys and St Thomas NHS Foundation Trust,01/04/2022,(50343) Other Medical Grades,(id:42014) Dental Services,KINGS COLLEGE LONDON:03529700,id:15027053,7559.00
Department of Health,Guys and St Thomas NHS Foundation Trust,01/04/2022,(83400) Office Equipment,(id:42014) Dental Services,NHS SUPPLY CHAIN (MAIDSTONE),id:15028097,  66.28
Department of Health,Guys and St Thomas NHS Foundation Trust,01/04/2022,(50542) Unqualified Nursing Staff,(id:1654419) Dental Services,GENEVA HEALTH INTERNATIONAL LIMITED,id:15084568  , 453.38
Department of Health,Guys and St Thomas NHS Foundation Trust,22/04/2022,(50542) Unqualified Nursing Staff,(id:1885419) Dental Services,GENEVA HEALTH INTERNATIONAL LIMITED,id:15143150  , 453.38
Department of Health,Guys and St Thomas NHS Foundation Trust,01/04/2022,(83400) Office Equipment,(id:42043) Dental Services,BUSINESS DICTATION LTD,id:15079543 ,2100.00
Department of Health,Guys and St Thomas NHS Foundation Trust,14/04/2022,(81200) Medical Surgical Supplies & Equipment,(id:42035) Dental Services,DENTSPLY IH LTD,id:15104652  , 933.53
Department of Health,Guys and St Thomas NHS Foundation Trust,22/04/2022,(81200) Medical Surgical Supplies & Equipment,(id:42035) Dental Services,DENTSPLY IH LTD,id:15136834  , 866.91
Department of Health,Guys and St Thomas NHS Foundation Trust,01/04/2022,(81200) Medical Surgical Supplies & Equipment,(id:42035) Dental Services,NOBEL BIOCARE UK LTD,id:15034976  , 573.00
Department of Health,Guys and St Thomas NHS Foundation Trust,01/04/2022,(81200) Medical Surgical Supplies & Equipment,(id:42035) Dental Services,DENTSPLY IH LTD,id:14910057  ,1988.99
Department of Health,Guys and St Thomas NHS Foundation Trust,08/04/2022,(81200) Medical Surgical Supplies & Equipment,(id:42035) Dental Services,DENTSPLY IH LTD,id:15076274  , 568.28
Department of Health,Guys and St Thomas NHS Foundation Trust,14/04/2022,(81200) Medical Surgical Supplies & Equipment,(id:42035) Dental Services,CFES LIMITED,id:15120837,1381.00
Department of Health,Guys and St Thomas NHS Foundation Trust,22/04/2022,(83400) Office Equipment,(id:42035) Dental Services,NHS SUPPLY CHAIN (MAIDSTONE),id:15079695,  11.26
Department of Health,Guys and St Thomas NHS Foundation Trust,01/04/2022,(83400) Office Equipment,(id:4622420) Dental Services,NHS SUPPLY CHAIN (MAIDSTONE),id:15028097   ,  38.62
Department of Health,Guys and St Thomas NHS Foundation Trust,14/04/2022,(81200) Medical Surgical Supplies & Equipment,(id:1634429) Dental Services,JEWEL MANAGEMENT LTD T/A GENERAL MEDICAL,id:15098434,2946.62
Department of Health,Guys and St Thomas NHS Foundation Trust,22/04/2022,(81200) Medical Surgical Supplies & Equipment,(id:1634429) Dental Services,HENRY SCHEIN,id:15091194   ,1395.52
Department of Health,Guys and St Thomas NHS Foundation Trust,22/04/2022,(81200) Medical Surgical Supplies & Equipment,(id:1634433) Dental Services,HENRY SCHEIN,id:15091614   , 630.24
Department of Health,Guys and St Thomas NHS Foundation Trust,08/04/2022,(81200) Medical Surgical Supplies & Equipment,(id:1634433) Dental Services,HENRY SCHEIN,id:15084317   , 583.73
Department of Health,Guys and St Thomas NHS Foundation Trust,28/04/2022,(83400) Office Equipment,(id:1634433) Dental Services,NHS SUPPLY CHAIN (MAIDSTONE),id:15056655   ,  10.08
Department of Health,Guys and St Thomas NHS Foundation Trust,01/04/2022,(83400) Office Equipment,(id:42011) Dental Services,NHS SUPPLY CHAIN (MAIDSTONE),id:15028097,  17.32
Department of Health,Guys and St Thomas NHS Foundation Trust,08/04/2022,(81200) Medical Surgical Supplies & Equipment,(id:1650420) Dental Services,BRACON LIMITED,id:15104866 , 539.40
Department of Health,Guys and St Thomas NHS Foundation Trust,28/04/2022,(81700) Lab Equipment Purchase,(id:641456) Specialist Ambulatory Services,PRO-LAB DIAGNOSTICS,id:15147457  ,1086.85
Department of Health,Guys and St Thomas NHS Foundation Trust,28/04/2022,(81700) Lab Equipment Purchase,(id:641456) Specialist Ambulatory Services,PRO-LAB DIAGNOSTICS,id:15147456  , 554.98
Department of Health,Guys and St Thomas NHS Foundation Trust,28/04/2022,(89440) Research and Development,(id:4232419) Specialist Ambulatory Services,KINGS COLLEGE LONDON:03529700,id:15144914    , 787.50
Department of Health,Guys and St Thomas NHS Foundation Trust,28/04/2022,(89440) Research and Development,(id:4232419) Specialist Ambulatory Services,ESMS GLOBAL LTD,id:15143291   ,6107.76
Department of Health,Guys and St Thomas NHS Foundation Trust,28/04/2022,(81700) Lab Equipment Purchase,(id:4027419) Specialist Ambulatory Services,THERMO FISHER SCIENTIFIC,id:15150140 ,7206.18
Department of Health,Guys and St Thomas NHS Foundation Trust,22/04/2022,(50200) Consultants,(id:42193) Specialist Ambulatory Services,KINGS COLLEGE LONDON:03529700,id:15074475    ,6597.36
Department of Health,Guys and St Thomas NHS Foundation Trust,01/04/2022,(83400) Office Equipment,(id:42193) Specialist Ambulatory Services,NHS SUPPLY CHAIN (MAIDSTONE),id:15015296,  29.02
Department of Health,Guys and St Thomas NHS Foundation Trust,22/04/2022,(50200) Consultants,(id:42215) Specialist Ambulatory Services,KINGS COLLEGE LONDON:03529700,id:15074475    ,1508.63
Department of Health,Guys and St Thomas NHS Foundation Trust,01/04/2022,(84600) Establishment,(id:42099) Specialist Ambulatory Services,CLARITY TRAVEL MANAGEMENT,id:15084313 , 135.62
Department of Health,Guys and St Thomas NHS Foundation Trust,01/04/2022,(81225) Medical Surgical Supplies & Equipment,(id:255405) Specialist Ambulatory Services,NHS SUPPLY CHAIN (MAIDSTONE),id:15028097   ,  39.60
Department of Health,Guys and St Thomas NHS Foundation Trust,01/04/2022,(81100) Dressings,(id:42091) Specialist Ambulatory Services,NHS SUPPLY CHAIN (MAIDSTONE),id:15028097  , 115.08
Department of Health,Guys and St Thomas NHS Foundation Trust,28/04/2022,(81100) Dressings,(id:42091) Specialist Ambulatory Services,NHS SUPPLY CHAIN (MAIDSTONE),id:15056655  ,  53.32
Department of Health,Guys and St Thomas NHS Foundation Trust,22/04/2022,(81200) Medical Surgical Supplies & Equipment,(id:42091) Specialist Ambulatory Services,NHS SUPPLY CHAIN (MAIDSTONE),id:15079695    , 234.00
Department of Health,Guys and St Thomas NHS Foundation Trust,28/04/2022,(83400) Office Equipment,(id:3607419) Specialist Ambulatory Services,NHS SUPPLY CHAIN (MAIDSTONE),id:15056655   ,  48.62
Department of Health,Guys and St Thomas NHS Foundation Trust,22/04/2022,(81100) Dressings,(id:3608419) Specialist Ambulatory Services,NHS SUPPLY CHAIN (MAIDSTONE),id:15105380,   4.50
Department of Health,Guys and St Thomas NHS Foundation Trust,28/04/2022,(81100) Dressings,(id:3608419) Specialist Ambulatory Services,NHS SUPPLY CHAIN (MAIDSTONE),id:15056655,  83.88
Department of Health,Guys and St Thomas NHS Foundation Trust,14/04/2022,(81200) Medical Surgical Supplies & Equipment,(id:3609419) Specialist Ambulatory Services,BRANDON MEDICAL COMPANY LTD,id:15121254   ,  22.20
Department of Health,Guys and St Thomas NHS Foundation Trust,01/04/2022,(81275) Medical Surgical Supplies & Equipment,(id:3609419) Specialist Ambulatory Services,NHS SUPPLY CHAIN (MAIDSTONE),id:15028097  , 100.14
Department of Health,Guys and St Thomas NHS Foundation Trust,22/04/2022,(82800) Bedding & Linen,(id:42079) Specialist Ambulatory Services,NHS SUPPLY CHAIN (MAIDSTONE),id:15105380 ,  76.31
Department of Health,Guys and St Thomas NHS Foundation Trust,22/04/2022,(81100) Dressings,(id:42079) Specialist Ambulatory Services,NHS SUPPLY CHAIN (MAIDSTONE),id:15105380  , 122.57
Department of Health,Guys and St Thomas NHS Foundation Trust,28/04/2022,(80010) Drug Costs,(id:42079) Specialist Ambulatory Services,THERAKOS (UK) LIMITED,id:15119377   ,    22572.00
Department of Health,Guys and St Thomas NHS Foundation Trust,08/04/2022,(80010) Drug Costs,(id:42079) Specialist Ambulatory Services,THERAKOS (UK) LIMITED,id:15093454   ,-752.40
Department of Health,Guys and St Thomas NHS Foundation Trust,22/04/2022,(81200) Medical Surgical Supplies & Equipment,(id:42079) Specialist Ambulatory Services,NHS SUPPLY CHAIN (MAIDSTONE),id:15105380    ,  29.97
Department of Health,Guys and St Thomas NHS Foundation Trust,01/04/2022,(83400) Office Equipment,(id:42097) Specialist Ambulatory Services,NHS SUPPLY CHAIN (MAIDSTONE),id:15015296,  18.17
Department of Health,Guys and St Thomas NHS Foundation Trust,01/04/2022,(81100) Dressings,(id:42097) Specialist Ambulatory Services,NHS SUPPLY CHAIN (MAIDSTONE),id:15015296  , 430.95
Department of Health,Guys and St Thomas NHS Foundation Trust,28/04/2022,(81100) Dressings,(id:42097) Specialist Ambulatory Services,NHS SUPPLY CHAIN (MAIDSTONE),id:15056655  , 445.49
Department of Health,Guys and St Thomas NHS Foundation Trust,14/04/2022,(84400) Transport,(id:42097) Specialist Ambulatory Services,CITYSPRINT (UK) LTD,id:15058285 , 881.67
Department of Health,Guys and St Thomas NHS Foundation Trust,01/04/2022,(81265) Medical Surgical Supplies & Equipment,(id:42097) Specialist Ambulatory Services,NHS SUPPLY CHAIN (MAIDSTONE),id:15028097    ,  69.22
Department of Health,Guys and St Thomas NHS Foundation Trust,28/04/2022,(81200) Medical Surgical Supplies & Equipment,(id:42097) Specialist Ambulatory Services,NHS SUPPLY CHAIN (MAIDSTONE),id:15056655    , 296.17
Department of Health,Guys and St Thomas NHS Foundation Trust,01/04/2022,(81200) Medical Surgical Supplies & Equipment,(id:42097) Specialist Ambulatory Services,NHS SUPPLY CHAIN (MAIDSTONE),id:15028097    , 539.39
Department of Health,Guys and St Thomas NHS Foundation Trust,01/04/2022,(82000) Provisions & Kitchens,(id:42066) Specialist Ambulatory Services,NHS SUPPLY CHAIN (MAIDSTONE),id:15015296,  15.60
Department of Health,Guys and St Thomas NHS Foundation Trust,01/04/2022,(81100) Dressings,(id:42066) Specialist Ambulatory Services,NHS SUPPLY CHAIN (MAIDSTONE),id:15015296  , 961.85
Department of Health,Guys and St Thomas NHS Foundation Trust,22/04/2022,(81200) Medical Surgical Supplies & Equipment,(id:42066) Specialist Ambulatory Services,NHS SUPPLY CHAIN (MAIDSTONE),id:15105380    , 481.77
Department of Health,Guys and St Thomas NHS Foundation Trust,01/04/2022,(83400) Office Equipment,(id:42066) Specialist Ambulatory Services,NHS SUPPLY CHAIN (MAIDSTONE),id:15028097, 111.02
Department of Health,Guys and St Thomas NHS Foundation Trust,08/04/2022,(81000) Surgical Appliances,(id:42066) Specialist Ambulatory Services,MEDI UK LTD,id:15103423    ,  37.07
Department of Health,Guys and St Thomas NHS Foundation Trust,22/04/2022,(81700) Lab Equipment Purchase,(id:42066) Specialist Ambulatory Services,NHS SUPPLY CHAIN (MAIDSTONE),id:15079695    ,  80.16
Department of Health,Guys and St Thomas NHS Foundation Trust,01/04/2022,(81200) Medical Surgical Supplies & Equipment,(id:391417) Specialist Ambulatory Services,NHS SUPPLY CHAIN (MAIDSTONE),id:15028097   ,  27.95
Department of Health,Guys and St Thomas NHS Foundation Trust,01/04/2022,(84600) Establishment,(id:391417) Specialist Ambulatory Services,CLARITY TRAVEL MANAGEMENT,id:15084313, 981.19
Department of Health,Guys and St Thomas NHS Foundation Trust,01/04/2022,(84600) Establishment,(id:391417) Specialist Ambulatory Services,CLARITY TRAVEL MANAGEMENT,id:15084314, 794.47
Department of Health,Guys and St Thomas NHS Foundation Trust,01/04/2022,(82000) Provisions & Kitchens,(id:590565) Specialist Ambulatory Services,NHS SUPPLY CHAIN (MAIDSTONE),id:15015296    ,  98.85
Department of Health,Guys and St Thomas NHS Foundation Trust,01/04/2022,(83400) Office Equipment,(id:42050) Specialist Ambulatory Services,NHS SUPPLY CHAIN (MAIDSTONE),id:15015296, 394.77
Department of Health,Guys and St Thomas NHS Foundation Trust,01/04/2022,(82800) Bedding & Linen,(id:42050) Specialist Ambulatory Services,NHS SUPPLY CHAIN (MAIDSTONE),id:15015296 ,  42.19
Department of Health,Guys and St Thomas NHS Foundation Trust,28/04/2022,(81200) Medical Surgical Supplies & Equipment,(id:42050) Specialist Ambulatory Services,NHS SUPPLY CHAIN (MAIDSTONE),id:15056655    ,1377.68
Department of Health,Guys and St Thomas NHS Foundation Trust,21/04/2022,(53632) Pharmacists,(id:42165) Pharmacy,PRICEWATERHOUSECOOPERS LLP,id:15138781    ,1086.48
Department of Health,Guys and St Thomas NHS Foundation Trust,21/04/2022,(53682) Pharmacists,(id:42165) Pharmacy,PRICEWATERHOUSECOOPERS LLP,id:15138781    ,1637.39
Department of Health,Guys and St Thomas NHS Foundation Trust,26/04/2022,(53662) Pharmacists,(id:42165) Pharmacy,PRICEWATERHOUSECOOPERS LLP,id:15148814    , 659.35
Department of Health,Guys and St Thomas NHS Foundation Trust,08/04/2022,(89000) Other - Training courses and conferences,(id:42162) Pharmacy,KINGS COLLEGE LONDON:03529700,id:15105437  ,1489.00
Department of Health,Guys and St Thomas NHS Foundation Trust,14/04/2022,(89000) Other - Training courses and conferences,(id:42162) Pharmacy,UNIVERSITY COLLEGE LONDON,id:15115354 , 555.00
Department of Health,Guys and St Thomas NHS Foundation Trust,14/04/2022,(89000) Other - Training courses and conferences,(id:42162) Pharmacy,UNIVERSITY COLLEGE LONDON,id:14424899 ,1080.00
Department of Health,Guys and St Thomas NHS Foundation Trust,01/04/2022,(84400) Transport,(id:4622421) Pharmacy,ALLIANCE HEALTHCARE HOSP SERV(UNICHEM),id:15083384  , 540.00
Department of Health,Guys and St Thomas NHS Foundation Trust,01/04/2022,(84400) Transport,(id:4622421) Pharmacy,ALLIANCE HEALTHCARE HOSP SERV(UNICHEM),id:15086911  , 936.00
Department of Health,Guys and St Thomas NHS Foundation Trust,01/04/2022,(84400) Transport,(id:4622421) Pharmacy,ALLIANCE HEALTHCARE HOSP SERV(UNICHEM),id:15086913  ,1080.00
Department of Health,Guys and St Thomas NHS Foundation Trust,01/04/2022,(84400) Transport,(id:4622421) Pharmacy,ALLIANCE HEALTHCARE HOSP SERV(UNICHEM),id:15083415  ,2754.00
Department of Health,Guys and St Thomas NHS Foundation Trust,01/04/2022,(84400) Transport,(id:4622421) Pharmacy,ALLIANCE HEALTHCARE HOSP SERV(UNICHEM),id:15083409  ,3150.00
Department of Health,Guys and St Thomas NHS Foundation Trust,01/04/2022,(89270) Establishment,(id:42159) Pharmacy,DATA INTEGRAL LTD,id:15083518 ,3187.50
Department of Health,Guys and St Thomas NHS Foundation Trust,28/04/2022,(81200) Medical Surgical Supplies & Equipment,(id:42159) Pharmacy,WICKHAM MICRO LIMITED,id:15138122   ,5159.00
Department of Health,Guys and St Thomas NHS Foundation Trust,01/04/2022,(81200) Medical Surgical Supplies & Equipment,(id:42159) Pharmacy,NHS SUPPLY CHAIN (MAIDSTONE),id:15015296 ,  60.71
Department of Health,Guys and St Thomas NHS Foundation Trust,08/04/2022,(81200) Medical Surgical Supplies & Equipment,(id:42159) Pharmacy,RENACLINICAL LTD,id:15108148   ,1284.00
Department of Health,Guys and St Thomas NHS Foundation Trust,21/04/2022,(54052) Technical Officers,(id:42159) Pharmacy,PRICEWATERHOUSECOOPERS LLP,id:15138781  , 186.73
Department of Health,Guys and St Thomas NHS Foundation Trust,26/04/2022,(54052) Technical Officers,(id:42159) Pharmacy,PRICEWATERHOUSECOOPERS LLP,id:15148814  ,2714.54
Department of Health,Guys and St Thomas NHS Foundation Trust,22/04/2022,(55082) Admin & Clerical,(id:42159) Pharmacy,HYPER RECRUITMENT SOLUTIONS LTD,id:15123606    ,2529.90
Department of Health,Guys and St Thomas NHS Foundation Trust,22/04/2022,(55062) Admin & Clerical,(id:42159) Pharmacy,HYPER RECRUITMENT SOLUTIONS LTD,id:15123383    ,1296.00
Department of Health,Guys and St Thomas NHS Foundation Trust,22/04/2022,(55102) Admin & Clerical,(id:42159) Pharmacy,HYPER RECRUITMENT SOLUTIONS LTD,id:15113401    ,1957.50
Department of Health,Guys and St Thomas NHS Foundation Trust,22/04/2022,(55122) Admin & Clerical,(id:42159) Pharmacy,HYPER RECRUITMENT SOLUTIONS LTD,id:15113368    ,5964.00
Department of Health,Guys and St Thomas NHS Foundation Trust,22/04/2022,(55122) Admin & Clerical,(id:42159) Pharmacy,HYPER RECRUITMENT SOLUTIONS LTD,id:15113371    ,5964.00
Department of Health,Guys and St Thomas NHS Foundation Trust,08/04/2022,(55072) Admin & Clerical,(id:42159) Pharmacy,HYPER RECRUITMENT SOLUTIONS LTD,id:15087541    ,1620.00
Department of Health,Guys and St Thomas NHS Foundation Trust,28/04/2022,(83400) Office Equipment,(id:42159) Pharmacy,NHS SUPPLY CHAIN (MAIDSTONE),id:15056655  ,  32.52
Department of Health,Guys and St Thomas NHS Foundation Trust,22/04/2022,(81275) Medical Surgical Supplies & Equipment,(id:42159) Pharmacy,MERCK LIFE SCIENCE UK LTD,id:15139315    , 713.66
Department of Health,Guys and St Thomas NHS Foundation Trust,28/04/2022,(81700) Lab Equipment Purchase,(id:42159) Pharmacy,ADELPHI (TUBES) LTD,id:15148093,1999.20
Department of Health,Guys and St Thomas NHS Foundation Trust,14/04/2022,(81200) Medical Surgical Supplies & Equipment,(id:581409) Pharmacy,AMERCARE LTD,id:15027544 , 589.80
Department of Health,Guys and St Thomas NHS Foundation Trust,14/04/2022,(81200) Medical Surgical Supplies & Equipment,(id:581409) Pharmacy,NITRITEX LTD,id:15105997 ,1597.58
Department of Health,Guys and St Thomas NHS Foundation Trust,01/04/2022,(81200) Medical Surgical Supplies & Equipment,(id:581409) Pharmacy,NHS SUPPLY CHAIN (MAIDSTONE),id:15015296, 576.67
Department of Health,Guys and St Thomas NHS Foundation Trust,22/04/2022,(81200) Medical Surgical Supplies & Equipment,(id:581409) Pharmacy,NHS SUPPLY CHAIN (MAIDSTONE),id:15079695,1200.76
Department of Health,Guys and St Thomas NHS Foundation Trust,21/04/2022,(54052) Technical Officers,(id:581409) Pharmacy,PRICEWATERHOUSECOOPERS LLP,id:15138422 ,1482.59
Department of Health,Guys and St Thomas NHS Foundation Trust,21/04/2022,(54052) Technical Officers,(id:581409) Pharmacy,PRICEWATERHOUSECOOPERS LLP,id:15138781 , 835.57
Department of Health,Guys and St Thomas NHS Foundation Trust,28/04/2022,(83130) Energy Costs,(id:42154) Pharmacy,BOC LTD :02107500,id:15125516  ,    25584.34
Department of Health,Guys and St Thomas NHS Foundation Trust,14/04/2022,(84400) Transport,(id:42156) Pharmacy,CITYSPRINT (UK) LTD,id:15058283   ,7961.77
Department of Health,Guys and St Thomas NHS Foundation Trust,26/04/2022,(51822) Physiotherapists,(id:42156) Pharmacy,PRICEWATERHOUSECOOPERS LLP,id:15148814    , 548.31
Department of Health,Guys and St Thomas NHS Foundation Trust,21/04/2022,(53672) Pharmacists,(id:42160) Pharmacy,PRICEWATERHOUSECOOPERS LLP,id:15138422    ,1838.58
Department of Health,Guys and St Thomas NHS Foundation Trust,28/04/2022,(81275) Medical Surgical Supplies & Equipment,(id:42160) Pharmacy,BOC LTD :02107500,id:15148897  ,    92637.60
Department of Health,Guys and St Thomas NHS Foundation Trust,26/04/2022,(53632) Pharmacists,(id:42160) Pharmacy,PRICEWATERHOUSECOOPERS LLP,id:15148814    , 392.34
Department of Health,Guys and St Thomas NHS Foundation Trust,22/04/2022,(81000) Surgical Appliances,(id:42171) Medical Specialties,TALAR MADE ORTHOTICS LTD,id:15136934  , 168.78
Department of Health,Guys and St Thomas NHS Foundation Trust,01/04/2022,(83500) Furniture & Fittings,(id:42217) Medical Specialties,NHS SUPPLY CHAIN (MAIDSTONE),id:15028097  ,  31.88
Department of Health,Guys and St Thomas NHS Foundation Trust,21/04/2022,(51262) Dieticians,(id:42251) Medical Specialties,PRICEWATERHOUSECOOPERS LLP,id:15139217    , 908.36
Department of Health,Guys and St Thomas NHS Foundation Trust,26/04/2022,(51262) Dieticians,(id:3731419) Medical Specialties,PRICEWATERHOUSECOOPERS LLP,id:15148814  , 674.00
Department of Health,Guys and St Thomas NHS Foundation Trust,28/04/2022,(81400) Medical Surgical Supplies & Equipment,(id:42224) Medical Specialties,TOPCON (GREAT BRITAIN) LTD,id:15143358  , 660.00
Department of Health,Guys and St Thomas NHS Foundation Trust,22/04/2022,(81100) Dressings,(id:42219) Medical Specialties,NHS SUPPLY CHAIN (MAIDSTONE),id:15079695   , 123.36
Department of Health,Guys and St Thomas NHS Foundation Trust,28/04/2022,(83400) Office Equipment,(id:42221) Medical Specialties,NHS SUPPLY CHAIN (MAIDSTONE),id:15056655 , 151.16
Department of Health,Guys and St Thomas NHS Foundation Trust,08/04/2022,(81200) Medical Surgical Supplies & Equipment,(id:42221) Medical Specialties,DORC LTD,id:15107915,3866.40
Department of Health,Guys and St Thomas NHS Foundation Trust,28/04/2022,(81200) Medical Surgical Supplies & Equipment,(id:42223) Medical Specialties,MAINLINE INSTRUMENTS LTD,id:15147377    , 930.00
Department of Health,Guys and St Thomas NHS Foundation Trust,28/04/2022,(81200) Medical Surgical Supplies & Equipment,(id:42223) Medical Specialties,MAINLINE INSTRUMENTS LTD,id:15147376    , 930.00
Department of Health,Guys and St Thomas NHS Foundation Trust,22/04/2022,(81200) Medical Surgical Supplies & Equipment,(id:42223) Medical Specialties,NHS SUPPLY CHAIN (MAIDSTONE),id:15079695, 408.84
Department of Health,Guys and St Thomas NHS Foundation Trust,22/04/2022,(81200) Medical Surgical Supplies & Equipment,(id:42223) Medical Specialties,CARL ZEISS LTD,id:15105440    ,1257.84
Department of Health,Guys and St Thomas NHS Foundation Trust,14/04/2022,(82600) Uniforms & Clothing,(id:42223) Medical Specialties,THE ROYAL COLLEGE OF OPHTHALMOLOGISTS,id:15105977    , 550.00
Department of Health,Guys and St Thomas NHS Foundation Trust,22/04/2022,(82000) Provisions & Kitchens,(id:42208) Medical Specialties,NHS SUPPLY CHAIN (MAIDSTONE),id:15105380 ,  34.32
Department of Health,Guys and St Thomas NHS Foundation Trust,14/04/2022,(81200) Medical Surgical Supplies & Equipment,(id:42208) Medical Specialties,MEDTRONIC LTD,id:15057345, 567.00
Department of Health,Guys and St Thomas NHS Foundation Trust,22/04/2022,(81200) Medical Surgical Supplies & Equipment,(id:42208) Medical Specialties,MEDTRONIC LTD,id:15082486, 649.80
Department of Health,Guys and St Thomas NHS Foundation Trust,28/04/2022,(81200) Medical Surgical Supplies & Equipment,(id:42208) Medical Specialties,DEXCOM INTERNATIONAL LTD,id:15103835    , 600.00
Department of Health,Guys and St Thomas NHS Foundation Trust,28/04/2022,(81200) Medical Surgical Supplies & Equipment,(id:42208) Medical Specialties,DEXCOM INTERNATIONAL LTD,id:15100736    , 600.00
Department of Health,Guys and St Thomas NHS Foundation Trust,28/04/2022,(81200) Medical Surgical Supplies & Equipment,(id:42208) Medical Specialties,MEDTRONIC LTD,id:15112280, 560.81
Department of Health,Guys and St Thomas NHS Foundation Trust,28/04/2022,(81200) Medical Surgical Supplies & Equipment,(id:42208) Medical Specialties,DEXCOM INTERNATIONAL LTD,id:15135454    , 600.00
Department of Health,Guys and St Thomas NHS Foundation Trust,01/04/2022,(81200) Medical Surgical Supplies & Equipment,(id:42208) Medical Specialties,DEXCOM INTERNATIONAL LTD,id:15055117    , 600.00
Department of Health,Guys and St Thomas NHS Foundation Trust,01/04/2022,(81200) Medical Surgical Supplies & Equipment,(id:42208) Medical Specialties,DEXCOM INTERNATIONAL LTD,id:15055120    , 600.00
Department of Health,Guys and St Thomas NHS Foundation Trust,01/04/2022,(81200) Medical Surgical Supplies & Equipment,(id:42208) Medical Specialties,DEXCOM INTERNATIONAL LTD,id:15055134    , 600.00
Department of Health,Guys and St Thomas NHS Foundation Trust,01/04/2022,(81200) Medical Surgical Supplies & Equipment,(id:42208) Medical Specialties,MEDTRONIC LTD,id:15019671, 850.50
Department of Health,Guys and St Thomas NHS Foundation Trust,01/04/2022,(81200) Medical Surgical Supplies & Equipment,(id:42208) Medical Specialties,MEDTRONIC LTD,id:15029000,4048.80
Department of Health,Guys and St Thomas NHS Foundation Trust,28/04/2022,(81200) Medical Surgical Supplies & Equipment,(id:42208) Medical Specialties,AIR LIQUIDE (HOMECARE) LTD,id:14888514  , 828.00
Department of Health,Guys and St Thomas NHS Foundation Trust,28/04/2022,(81200) Medical Surgical Supplies & Equipment,(id:42208) Medical Specialties,MEDTRONIC LTD,id:15061398, 850.50
Department of Health,Guys and St Thomas NHS Foundation Trust,22/04/2022,(81000) Surgical Appliances,(id:42199) Medical Specialties,TALAR MADE ORTHOTICS LTD,id:15137074  ,  43.66
Department of Health,Guys and St Thomas NHS Foundation Trust,22/04/2022,(83400) Office Equipment,(id:42204) Medical Specialties,NHS SUPPLY CHAIN (MAIDSTONE),id:15079695 , 121.39
Department of Health,Guys and St Thomas NHS Foundation Trust,08/04/2022,(80010) Drug Costs,(id:42204) Medical Specialties,INHEALTH LTD/ECHOTECH LTD/REPORTING,id:15087620, 800.00
Department of Health,Guys and St Thomas NHS Foundation Trust,22/04/2022,(81000) Surgical Appliances,(id:42204) Medical Specialties,TALAR MADE ORTHOTICS LTD,id:15136967  ,  87.31
Department of Health,Guys and St Thomas NHS Foundation Trust,22/04/2022,(81000) Surgical Appliances,(id:42204) Medical Specialties,TALAR MADE ORTHOTICS LTD,id:15136934  , 174.62
Department of Health,Guys and St Thomas NHS Foundation Trust,01/04/2022,(81700) Lab Equipment Purchase,(id:302405) Medical Specialties,NHS SUPPLY CHAIN (MAIDSTONE),id:15015296    ,  48.34
Department of Health,Guys and St Thomas NHS Foundation Trust,28/04/2022,(81200) Medical Surgical Supplies & Equipment,(id:42205) Medical Specialties,NHS SUPPLY CHAIN (MAIDSTONE),id:15056655, 202.66
Department of Health,Guys and St Thomas NHS Foundation Trust,22/04/2022,(81400) Medical Surgical Supplies & Equipment,(id:42205) Medical Specialties,OPTIMA MEDICAL LTD,id:15106004,6450.00
Department of Health,Guys and St Thomas NHS Foundation Trust,28/04/2022,(89440) Research and Development,(id:5109419) Medical Specialties,UNIVERSITY COLLEGE LONDON,id:14774111    ,2130.74
Department of Health,Guys and St Thomas NHS Foundation Trust,14/04/2022,(83500) Furniture & Fittings,(id:41938) Medical Specialties,TECHNIBLINDS LTD,id:15036834    , 826.66
Department of Health,Guys and St Thomas NHS Foundation Trust,08/04/2022,(89570) Other – Other Operating Expenditure,(id:42190) Medical Specialties,HEMINGWAYS MARKETING SERVICES,id:15113237,    18000.00
Department of Health,Guys and St Thomas NHS Foundation Trust,01/04/2022,(89595) Non-Healthcare from Foundation Trusts,(id:3235419) Medical Specialties,KING'S COLLEGE HOSPITAL NHS FOUNDATION TRUST,id:15071875  , 516.07
Department of Health,Guys and St Thomas NHS Foundation Trust,28/04/2022,(81200) Medical Surgical Supplies & Equipment,(id:41937) Medical Specialties,TPS HEALTHCARE GROUP,id:15135554   , 660.00
Department of Health,Guys and St Thomas NHS Foundation Trust,22/04/2022,(81100) Dressings,(id:41937) Medical Specialties,NHS SUPPLY CHAIN (MAIDSTONE),id:15105380   ,   1.58
Department of Health,Guys and St Thomas NHS Foundation Trust,28/04/2022,(82800) Bedding & Linen,(id:41937) Medical Specialties,NHS SUPPLY CHAIN (MAIDSTONE),id:15056655  ,  43.13
Department of Health,Guys and St Thomas NHS Foundation Trust,14/04/2022,(81300) Medical Surgical Supplies & Equipment,(id:41937) Medical Specialties,ENEURA (UK) LTD,id:15119465   ,1612.00
Department of Health,Guys and St Thomas NHS Foundation Trust,14/04/2022,(81300) Medical Surgical Supplies & Equipment,(id:41937) Medical Specialties,ENEURA (UK) LTD,id:15121114   ,1612.00
Department of Health,Guys and St Thomas NHS Foundation Trust,22/04/2022,(84656) Establishment,(id:41937) Medical Specialties,DICT8 LIMITED,id:15129554    , 529.44
Department of Health,Guys and St Thomas NHS Foundation Trust,01/04/2022,(84656) Establishment,(id:41937) Medical Specialties,DICT8 LIMITED,id:15081799    ,2207.40
Department of Health,Guys and St Thomas NHS Foundation Trust,26/04/2022,(51862) Physiotherapists,(id:42232) Therapies and Rehabilitation,PRICEWATERHOUSECOOPERS LLP,id:15148814    , 306.43
Department of Health,Guys and St Thomas NHS Foundation Trust,21/04/2022,(51872) Physiotherapists,(id:42232) Therapies and Rehabilitation,PRICEWATERHOUSECOOPERS LLP,id:15138781    ,2989.72
Department of Health,Guys and St Thomas NHS Foundation Trust,21/04/2022,(51872) Physiotherapists,(id:42230) Therapies and Rehabilitation,PRICEWATERHOUSECOOPERS LLP,id:15139217    ,1012.17
Department of Health,Guys and St Thomas NHS Foundation Trust,08/04/2022,(83610) IT Costs,(id:42237) Therapies and Rehabilitation,CBC COMPUTER SYSTEMS LTD,id:15083668    , 740.40
Department of Health,Guys and St Thomas NHS Foundation Trust,28/04/2022,(81100) Dressings,(id:42239) Therapies and Rehabilitation,PROMEDICS ORTHOPAEDICS LTD,id:14831940 , 428.04
Department of Health,Guys and St Thomas NHS Foundation Trust,01/04/2022,(82800) Bedding & Linen,(id:42239) Therapies and Rehabilitation,NHS SUPPLY CHAIN (MAIDSTONE),id:15028097   ,  43.13
Department of Health,Guys and St Thomas NHS Foundation Trust,01/04/2022,(83400) Office Equipment,(id:42239) Therapies and Rehabilitation,NHS SUPPLY CHAIN (MAIDSTONE),id:15015296  , 339.72
Department of Health,Guys and St Thomas NHS Foundation Trust,28/04/2022,(81200) Medical Surgical Supplies & Equipment,(id:42239) Therapies and Rehabilitation,NHS SUPPLY CHAIN (MAIDSTONE),id:15056655 ,  78.53
Department of Health,Guys and St Thomas NHS Foundation Trust,01/04/2022,(81200) Medical Surgical Supplies & Equipment,(id:42239) Therapies and Rehabilitation,RMS (REHABILITATION MANUFACTURING SERVICES LTD),id:15023314  , 732.00
Department of Health,Guys and St Thomas NHS Foundation Trust,22/04/2022,(81100) Dressings,(id:590530) Therapies and Rehabilitation,NHS SUPPLY CHAIN (MAIDSTONE),id:15105380   ,  47.70
Department of Health,Guys and St Thomas NHS Foundation Trust,01/04/2022,(81200) Medical Surgical Supplies & Equipment,(id:590530) Therapies and Rehabilitation,NHS SUPPLY CHAIN (MAIDSTONE),id:15028097, 208.42
Department of Health,Guys and St Thomas NHS Foundation Trust,22/04/2022,(81200) Medical Surgical Supplies & Equipment,(id:590490) Therapies and Rehabilitation,NHS SUPPLY CHAIN (MAIDSTONE),id:15079695,  33.64
Department of Health,Guys and St Thomas NHS Foundation Trust,01/04/2022,(82800) Bedding & Linen,(id:42243) Therapies and Rehabilitation,NHS SUPPLY CHAIN (MAIDSTONE),id:15015296   ,  63.36
Department of Health,Guys and St Thomas NHS Foundation Trust,21/04/2022,(51862) Physiotherapists,(id:184406) Therapies and Rehabilitation,PRICEWATERHOUSECOOPERS LLP,id:15139217   ,1013.39
Department of Health,Guys and St Thomas NHS Foundation Trust,21/04/2022,(53062) Speech Therapists,(id:42248) Therapies and Rehabilitation,PRICEWATERHOUSECOOPERS LLP,id:15138422   ,3074.45
Department of Health,Guys and St Thomas NHS Foundation Trust,01/04/2022,(84500) Establishment,(id:42242) Therapies and Rehabilitation,BANNER GROUP LTD,id:15073474  ,   2.21
Department of Health,Guys and St Thomas NHS Foundation Trust,01/04/2022,(81225) Medical Surgical Supplies & Equipment,(id:590496) Therapies and Rehabilitation,NHS SUPPLY CHAIN (MAIDSTONE),id:15028097,  12.43
Department of Health,Guys and St Thomas NHS Foundation Trust,01/04/2022,(81100) Dressings,(id:590496) Therapies and Rehabilitation,NHS SUPPLY CHAIN (MAIDSTONE),id:15028097   , 108.00
Department of Health,Guys and St Thomas NHS Foundation Trust,28/04/2022,(82800) Bedding & Linen,(id:590496) Therapies and Rehabilitation,NHS SUPPLY CHAIN (MAIDSTONE),id:15056655  ,  46.80
Department of Health,Guys and St Thomas NHS Foundation Trust,01/04/2022,(83360) Premises Services,(id:590496) Therapies and Rehabilitation,REDLAND CONSTRUCTION LIMITED,id:15063434,4113.00
Department of Health,Guys and St Thomas NHS Foundation Trust,22/04/2022,(81225) Medical Surgical Supplies & Equipment,(id:590498) Therapies and Rehabilitation,CHANECO LIMITED,id:15106514   , 570.84
Department of Health,Guys and St Thomas NHS Foundation Trust,01/04/2022,(81225) Medical Surgical Supplies & Equipment,(id:590498) Therapies and Rehabilitation,NHS SUPPLY CHAIN (MAIDSTONE),id:15028097, 323.57
Department of Health,Guys and St Thomas NHS Foundation Trust,01/04/2022,(81225) Medical Surgical Supplies & Equipment,(id:590498) Therapies and Rehabilitation,REED MEDICAL LIMITED,id:15070194   , 690.98
Department of Health,Guys and St Thomas NHS Foundation Trust,08/04/2022,(81225) Medical Surgical Supplies & Equipment,(id:590499) Therapies and Rehabilitation,FLEXEL UK LTD,id:15053875, 565.32
Department of Health,Guys and St Thomas NHS Foundation Trust,28/04/2022,(83610) IT Costs,(id:590500) Therapies and Rehabilitation,CBC COMPUTER SYSTEMS LTD,id:15152174   ,1845.60
Department of Health,Guys and St Thomas NHS Foundation Trust,22/04/2022,(81100) Dressings,(id:1042419) Therapies and Rehabilitation,NHS SUPPLY CHAIN (MAIDSTONE),id:15105380  , 206.64
Department of Health,Guys and St Thomas NHS Foundation Trust,22/04/2022,(81100) Dressings,(id:1042419) Therapies and Rehabilitation,NHS SUPPLY CHAIN (MAIDSTONE),id:15079695  , 380.42
Department of Health,Guys and St Thomas NHS Foundation Trust,28/04/2022,(81100) Dressings,(id:1042419) Therapies and Rehabilitation,NHS SUPPLY CHAIN (MAIDSTONE),id:15056655  , 325.91
Department of Health,Guys and St Thomas NHS Foundation Trust,22/04/2022,(81225) Medical Surgical Supplies & Equipment,(id:1042419) Therapies and Rehabilitation,NHS SUPPLY CHAIN (MAIDSTONE),id:15079695    , 599.85
Department of Health,Guys and St Thomas NHS Foundation Trust,01/04/2022,(81200) Medical Surgical Supplies & Equipment,(id:1042419) Therapies and Rehabilitation,NHS SUPPLY CHAIN (MAIDSTONE),id:15028097    , 126.68
Department of Health,Guys and St Thomas NHS Foundation Trust,28/04/2022,(81200) Medical Surgical Supplies & Equipment,(id:1042419) Therapies and Rehabilitation,NHS SUPPLY CHAIN (MAIDSTONE),id:15056655    , 550.51
Department of Health,Guys and St Thomas NHS Foundation Trust,22/04/2022,(82000) Provisions & Kitchens,(id:1042419) Therapies and Rehabilitation,NHS SUPPLY CHAIN (MAIDSTONE),id:15079695,  16.43
Department of Health,Guys and St Thomas NHS Foundation Trust,01/04/2022,(82800) Bedding & Linen,(id:42366) Clinical Imaging & Med Physics,NHS SUPPLY CHAIN (MAIDSTONE),id:15015296 , 113.62
Department of Health,Guys and St Thomas NHS Foundation Trust,14/04/2022,(81200) Medical Surgical Supplies & Equipment,(id:42366) Clinical Imaging & Med Physics,MERIT MEDICAL UK LTD,id:15053350  ,1146.60
Department of Health,Guys and St Thomas NHS Foundation Trust,14/04/2022,(81200) Medical Surgical Supplies & Equipment,(id:42366) Clinical Imaging & Med Physics,IT’S INTERVENTIONAL LTD.  (FORMERLY UK MEDICAL LTD),id:15086927, 712.14
Department of Health,Guys and St Thomas NHS Foundation Trust,08/04/2022,(81400) Medical Surgical Supplies & Equipment,(id:42366) Clinical Imaging & Med Physics,PROTECTIVE WEAR SUPPLIES,id:15076823   , 509.40
Department of Health,Guys and St Thomas NHS Foundation Trust,01/04/2022,(89595) Non-Healthcare from Foundation Trusts,(id:42366) Clinical Imaging & Med Physics,GREAT ORMOND STREET HOSPITAL FOR CHILDREN NHS FOUNDATION TRUST,id:14683974,1874.20
Department of Health,Guys and St Thomas NHS Foundation Trust,28/04/2022,(81500) X Ray Equipment Purchase,(id:42366) Clinical Imaging & Med Physics,BANNER GROUP LTD,id:15149474    , 734.98
Department of Health,Guys and St Thomas NHS Foundation Trust,01/04/2022,(83400) Office Equipment,(id:42367) Clinical Imaging & Med Physics,NHS SUPPLY CHAIN (MAIDSTONE),id:15028097, 358.39
Department of Health,Guys and St Thomas NHS Foundation Trust,28/04/2022,(83400) Office Equipment,(id:42367) Clinical Imaging & Med Physics,NHS SUPPLY CHAIN (MAIDSTONE),id:15056655, 349.39
Department of Health,Guys and St Thomas NHS Foundation Trust,22/04/2022,(83500) Furniture & Fittings,(id:42367) Clinical Imaging & Med Physics,NHS SUPPLY CHAIN (MAIDSTONE),id:15079695 , 430.70
Department of Health,Guys and St Thomas NHS Foundation Trust,28/04/2022,(82800) Bedding & Linen,(id:42367) Clinical Imaging & Med Physics,NHS SUPPLY CHAIN (MAIDSTONE),id:15056655 ,1255.52
Department of Health,Guys and St Thomas NHS Foundation Trust,01/04/2022,(81100) Dressings,(id:42367) Clinical Imaging & Med Physics,NHS SUPPLY CHAIN (MAIDSTONE),id:15015296  , 295.63
Department of Health,Guys and St Thomas NHS Foundation Trust,08/04/2022,(89270) Establishment,(id:42367) Clinical Imaging & Med Physics,CONSENSIO PARTNERS RESOLUTION LTD,id:15105492   ,1966.50
Department of Health,Guys and St Thomas NHS Foundation Trust,01/04/2022,(89595) Non-Healthcare from Foundation Trusts,(id:42367) Clinical Imaging & Med Physics,KING'S COLLEGE HOSPITAL NHS FOUNDATION TRUST,id:15077201   ,-509.92
Department of Health,Guys and St Thomas NHS Foundation Trust,14/04/2022,(80010) Drug Costs,(id:42367) Clinical Imaging & Med Physics,INHEALTH LTD/ECHOTECH LTD/REPORTING,id:15025895    ,    46345.20
Department of Health,Guys and St Thomas NHS Foundation Trust,14/04/2022,(81200) Medical Surgical Supplies & Equipment,(id:42367) Clinical Imaging & Med Physics,BOSTON SCIENTIFIC LTD,id:15074390 ,3672.00
Department of Health,Guys and St Thomas NHS Foundation Trust,14/04/2022,(81200) Medical Surgical Supplies & Equipment,(id:42367) Clinical Imaging & Med Physics,MACROMED (UK) LTD,id:15125530,2142.00
Department of Health,Guys and St Thomas NHS Foundation Trust,14/04/2022,(81200) Medical Surgical Supplies & Equipment,(id:42367) Clinical Imaging & Med Physics,MACROMED (UK) LTD,id:15125536,3090.00
Department of Health,Guys and St Thomas NHS Foundation Trust,14/04/2022,(81200) Medical Surgical Supplies & Equipment,(id:42367) Clinical Imaging & Med Physics,MEDTRONIC LTD,id:15063079    ,1140.00
Department of Health,Guys and St Thomas NHS Foundation Trust,22/04/2022,(81200) Medical Surgical Supplies & Equipment,(id:42367) Clinical Imaging & Med Physics,AQUILANT LTD,id:15114595, 930.00
Department of Health,Guys and St Thomas NHS Foundation Trust,08/04/2022,(81200) Medical Surgical Supplies & Equipment,(id:42367) Clinical Imaging & Med Physics,TERUMO UK LTD,id:15076535    ,1140.00
Department of Health,Guys and St Thomas NHS Foundation Trust,28/04/2022,(81200) Medical Surgical Supplies & Equipment,(id:42367) Clinical Imaging & Med Physics,MEDTRONIC LTD,id:15061335    ,1140.00
Department of Health,Guys and St Thomas NHS Foundation Trust,28/04/2022,(81200) Medical Surgical Supplies & Equipment,(id:42367) Clinical Imaging & Med Physics,ABBOTT MEDICAL UK LTD,id:15135975 ,1800.00
Department of Health,Guys and St Thomas NHS Foundation Trust,28/04/2022,(81235) Medical Surgical Supplies & Equipment,(id:42367) Clinical Imaging & Med Physics,BOSTON SCIENTIFIC LTD,id:15112202 , 204.00
Department of Health,Guys and St Thomas NHS Foundation Trust,08/04/2022,(81235) Medical Surgical Supplies & Equipment,(id:42367) Clinical Imaging & Med Physics,BOSTON SCIENTIFIC LTD,id:15038064 , 186.00
Department of Health,Guys and St Thomas NHS Foundation Trust,19/04/2022,(81235) Medical Surgical Supplies & Equipment,(id:42367) Clinical Imaging & Med Physics,MEDALLIANCE S.A.,id:14981122 ,2844.00
Department of Health,Guys and St Thomas NHS Foundation Trust,14/04/2022,(81230) Medical Surgical Supplies & Equipment,(id:42367) Clinical Imaging & Med Physics,VYGON (UK) LTD,id:15081121   ,2304.04
Department of Health,Guys and St Thomas NHS Foundation Trust,28/04/2022,(81225) Medical Surgical Supplies & Equipment,(id:42367) Clinical Imaging & Med Physics,NHS SUPPLY CHAIN (MAIDSTONE),id:15056655    ,  25.92
Department of Health,Guys and St Thomas NHS Foundation Trust,01/04/2022,(81500) X Ray Equipment Purchase,(id:42367) Clinical Imaging & Med Physics,NHS SUPPLY CHAIN (MAIDSTONE),id:15028097  ,2160.00
Department of Health,Guys and St Thomas NHS Foundation Trust,01/04/2022,(50200) Consultants,(id:42368) Clinical Imaging & Med Physics,KING'S COLLEGE HOSPITAL NHS FOUNDATION TRUST,id:8931108, 940.16
Department of Health,Guys and St Thomas NHS Foundation Trust,01/04/2022,(50200) Consultants,(id:42368) Clinical Imaging & Med Physics,KING'S COLLEGE HOSPITAL NHS FOUNDATION TRUST,id:15077140    ,-927.21
Department of Health,Guys and St Thomas NHS Foundation Trust,21/04/2022,(52072) Radiographers,(id:42368) Clinical Imaging & Med Physics,PRICEWATERHOUSECOOPERS LLP,id:15139217,    10913.04
Department of Health,Guys and St Thomas NHS Foundation Trust,08/04/2022,(83400) Office Equipment,(id:42372) Clinical Imaging & Med Physics,BAYER PLC,id:15107437    ,2112.00
Department of Health,Guys and St Thomas NHS Foundation Trust,08/04/2022,(83400) Office Equipment,(id:42372) Clinical Imaging & Med Physics,BAYER PLC,id:14844896    ,2112.00
Department of Health,Guys and St Thomas NHS Foundation Trust,08/04/2022,(83400) Office Equipment,(id:42372) Clinical Imaging & Med Physics,BAYER PLC,id:14844901    ,2112.00
Department of Health,Guys and St Thomas NHS Foundation Trust,01/04/2022,(82800) Bedding & Linen,(id:42372) Clinical Imaging & Med Physics,NHS SUPPLY CHAIN (MAIDSTONE),id:15028097 ,  21.56
Department of Health,Guys and St Thomas NHS Foundation Trust,22/04/2022,(81700) Lab Equipment Purchase,(id:42372) Clinical Imaging & Med Physics,NHS SUPPLY CHAIN (MAIDSTONE),id:15079695    ,   6.36
Department of Health,Guys and St Thomas NHS Foundation Trust,22/04/2022,(81200) Medical Surgical Supplies & Equipment,(id:42372) Clinical Imaging & Med Physics,NHS SUPPLY CHAIN (MAIDSTONE),id:15105380    , 475.90
Department of Health,Guys and St Thomas NHS Foundation Trust,28/04/2022,(81200) Medical Surgical Supplies & Equipment,(id:42372) Clinical Imaging & Med Physics,WICKHAM MICRO LIMITED,id:15138123 , 515.00
Department of Health,Guys and St Thomas NHS Foundation Trust,28/04/2022,(81200) Medical Surgical Supplies & Equipment,(id:42372) Clinical Imaging & Med Physics,ADVANCED ACCELERATOR APPLICATIONS (UK & IRELAND) LTD,id:15108314,8861.26
Department of Health,Guys and St Thomas NHS Foundation Trust,28/04/2022,(81200) Medical Surgical Supplies & Equipment,(id:42372) Clinical Imaging & Med Physics,ADVANCED ACCELERATOR APPLICATIONS (UK & IRELAND) LTD,id:15056618,    15658.50
Department of Health,Guys and St Thomas NHS Foundation Trust,28/04/2022,(81200) Medical Surgical Supplies & Equipment,(id:42372) Clinical Imaging & Med Physics,ADVANCED ACCELERATOR APPLICATIONS (UK & IRELAND) LTD,id:15108395,    16690.50
Department of Health,Guys and St Thomas NHS Foundation Trust,14/04/2022,(81275) Medical Surgical Supplies & Equipment,(id:42372) Clinical Imaging & Med Physics,GE HEALTHCARE (50652318),id:15105979   , 756.00
Department of Health,Guys and St Thomas NHS Foundation Trust,22/04/2022,(81275) Medical Surgical Supplies & Equipment,(id:42372) Clinical Imaging & Med Physics,CURIUM PHARMA UK LTD,id:15133414  , 852.00
Department of Health,Guys and St Thomas NHS Foundation Trust,01/04/2022,(81275) Medical Surgical Supplies & Equipment,(id:42372) Clinical Imaging & Med Physics,GE HEALTHCARE (50652318),id:15018121   ,4200.00
Department of Health,Guys and St Thomas NHS Foundation Trust,01/04/2022,(81275) Medical Surgical Supplies & Equipment,(id:42372) Clinical Imaging & Med Physics,GE HEALTHCARE (50652318),id:15043854   , 756.00
Department of Health,Guys and St Thomas NHS Foundation Trust,22/04/2022,(81500) X Ray Equipment Purchase,(id:42372) Clinical Imaging & Med Physics,CURIUM PHARMA UK LTD,id:15080477,1875.60
Department of Health,Guys and St Thomas NHS Foundation Trust,01/04/2022,(81500) X Ray Equipment Purchase,(id:42372) Clinical Imaging & Med Physics,HEALTHCARE EQUIPMENT & SUPPLIES,id:15083329    ,1032.24
Department of Health,Guys and St Thomas NHS Foundation Trust,08/04/2022,(81500) X Ray Equipment Purchase,(id:42372) Clinical Imaging & Med Physics,CURIUM PHARMA UK LTD,id:15088217,1875.60
Department of Health,Guys and St Thomas NHS Foundation Trust,08/04/2022,(81500) X Ray Equipment Purchase,(id:4187419) Clinical Imaging & Med Physics,ADVANCED ACCELERATOR APPLICATIONS (UK & IRELAND) LTD,id:14856015 ,    16690.50
Department of Health,Guys and St Thomas NHS Foundation Trust,08/04/2022,(81500) X Ray Equipment Purchase,(id:4187419) Clinical Imaging & Med Physics,ADVANCED ACCELERATOR APPLICATIONS (UK & IRELAND) LTD,id:14921877 ,    16690.50
Department of Health,Guys and St Thomas NHS Foundation Trust,14/04/2022,(81400) Medical Surgical Supplies & Equipment,(id:42376) Clinical Imaging & Med Physics,LEEDS TEST OBJECTS LTD T/A MEDISCIENTIFIC,id:15111409 ,3540.00
Department of Health,Guys and St Thomas NHS Foundation Trust,14/04/2022,(81400) Medical Surgical Supplies & Equipment,(id:42378) Clinical Imaging & Med Physics,ONCOLOGY IMAGING SYSTEMS LTD,id:15113774    ,    11580.00
Department of Health,Guys and St Thomas NHS Foundation Trust,22/04/2022,(81400) Medical Surgical Supplies & Equipment,(id:42379) Clinical Imaging & Med Physics,TENACORE UK LTD,id:15121214  , 795.00
Department of Health,Guys and St Thomas NHS Foundation Trust,01/04/2022,(81400) Medical Surgical Supplies & Equipment,(id:42379) Clinical Imaging & Med Physics,PHILIPS HEALTHCARE,id:15081654    ,    25350.00
Department of Health,Guys and St Thomas NHS Foundation Trust,01/04/2022,(81200) Medical Surgical Supplies & Equipment,(id:42379) Clinical Imaging & Med Physics,MEDACX LIMITED,id:15082606   ,4473.60
Department of Health,Guys and St Thomas NHS Foundation Trust,01/04/2022,(81200) Medical Surgical Supplies & Equipment,(id:42379) Clinical Imaging & Med Physics,SRA DEVELOPMENTS LTD,id:15044554  ,1692.00
Department of Health,Guys and St Thomas NHS Foundation Trust,08/04/2022,(81200) Medical Surgical Supplies & Equipment,(id:42379) Clinical Imaging & Med Physics,SPACELABS HEALTHCARE LTD,id:15087216   , 500.40
Department of Health,Guys and St Thomas NHS Foundation Trust,28/04/2022,(81200) Medical Surgical Supplies & Equipment,(id:42379) Clinical Imaging & Med Physics,GE HEALTHCARE (50652318),id:15080647   , 549.90
Department of Health,Guys and St Thomas NHS Foundation Trust,01/04/2022,(84600) Establishment,(id:42382) Clinical Imaging & Med Physics,CLARITY TRAVEL MANAGEMENT,id:15084314 ,  84.15
Department of Health,Guys and St Thomas NHS Foundation Trust,01/04/2022,(81400) Medical Surgical Supplies & Equipment,(id:5336419) Clinical Imaging & Med Physics,PHILIPS HEALTHCARE,id:15081694  ,4266.00
Department of Health,Guys and St Thomas NHS Foundation Trust,14/04/2022,(81250) Medical Surgical Supplies & Equipment,(id:1348419) Clinical Imaging & Med Physics,MACROMED (UK) LTD,id:15125529   ,1170.00
Department of Health,Guys and St Thomas NHS Foundation Trust,01/04/2022,(81200) Medical Surgical Supplies & Equipment,(id:1348419) Clinical Imaging & Med Physics,NHS SUPPLY CHAIN (MAIDSTONE),id:15015296  ,1855.02
Department of Health,Guys and St Thomas NHS Foundation Trust,22/04/2022,(81200) Medical Surgical Supplies & Equipment,(id:1348419) Clinical Imaging & Med Physics,GUERBET LABORATORIES LIMITED,id:15095154  ,1170.00
Department of Health,Guys and St Thomas NHS Foundation Trust,22/04/2022,(83400) Office Equipment,(id:1348419) Clinical Imaging & Med Physics,NHS SUPPLY CHAIN (MAIDSTONE),id:15079695   ,  10.28
Department of Health,Guys and St Thomas NHS Foundation Trust,01/04/2022,(82000) Provisions & Kitchens,(id:42255) Integrated Local Services,NHS SUPPLY CHAIN (MAIDSTONE),id:15028097,   5.16
Department of Health,Guys and St Thomas NHS Foundation Trust,22/04/2022,(82000) Provisions & Kitchens,(id:42255) Integrated Local Services,NHS SUPPLY CHAIN (MAIDSTONE),id:15079695,   7.74
Department of Health,Guys and St Thomas NHS Foundation Trust,22/04/2022,(83400) Office Equipment,(id:590598) Integrated Local Services,NHS SUPPLY CHAIN (MAIDSTONE),id:15079695    ,  57.20
Department of Health,Guys and St Thomas NHS Foundation Trust,28/04/2022,(82800) Bedding & Linen,(id:590469) Integrated Local Services,NHS SUPPLY CHAIN (MAIDSTONE),id:15056655, 193.83
Department of Health,Guys and St Thomas NHS Foundation Trust,28/04/2022,(84200) Rental under Operating Lease,(id:590467) Integrated Local Services,MARSH LTD,id:15142998 ,2071.50
Department of Health,Guys and St Thomas NHS Foundation Trust,01/04/2022,(82000) Provisions & Kitchens,(id:590464) Integrated Local Services,NHS SUPPLY CHAIN (MAIDSTONE),id:15015296    ,   9.66
Department of Health,Guys and St Thomas NHS Foundation Trust,01/04/2022,(82000) Provisions & Kitchens,(id:590427) Integrated Local Services,NHS SUPPLY CHAIN (MAIDSTONE),id:15028097    ,   3.22
Department of Health,Guys and St Thomas NHS Foundation Trust,08/04/2022,(83350) Premises Services,(id:4631420) Integrated Local Services,ASSIST SECURITY LIMITED,id:15111397  ,1260.00
Department of Health,Guys and St Thomas NHS Foundation Trust,01/04/2022,(81200) Medical Surgical Supplies & Equipment,(id:590574) Integrated Local Services,NHS SUPPLY CHAIN (MAIDSTONE),id:15015296   ,  76.50
Department of Health,Guys and St Thomas NHS Foundation Trust,22/04/2022,(81100) Dressings,(id:590563) Integrated Local Services,NHS SUPPLY CHAIN (MAIDSTONE),id:15079695 ,  18.48
Department of Health,Guys and St Thomas NHS Foundation Trust,14/04/2022,(86300) Healthcare from non-NHS bodies,(id:590579) Integrated Local Services,LORDSHIP LANE SURGERY,id:15121864  ,1036.48
Department of Health,Guys and St Thomas NHS Foundation Trust,22/04/2022,(86300) Healthcare from non-NHS bodies,(id:590492) Integrated Local Services,NHS SUPPLY CHAIN (MAIDSTONE),id:15105380,  88.99
Department of Health,Guys and St Thomas NHS Foundation Trust,22/04/2022,(82800) Bedding & Linen,(id:699422) Integrated Local Services,NHS SUPPLY CHAIN (MAIDSTONE),id:15105380,  14.76
Department of Health,Guys and St Thomas NHS Foundation Trust,01/04/2022,(50562) Qualified Nursing Staff,(id:590523) Integrated Local Services,MSI GROUP LTD,id:15084727  ,1106.16
Department of Health,Guys and St Thomas NHS Foundation Trust,08/04/2022,(50562) Qualified Nursing Staff,(id:590523) Integrated Local Services,MSI GROUP LTD,id:15110191  ,1106.16
Department of Health,Guys and St Thomas NHS Foundation Trust,01/04/2022,(82600) Uniforms & Clothing,(id:684420) Integrated Local Services,NHS SUPPLY CHAIN (MAIDSTONE),id:15028097 ,  13.50
Department of Health,Guys and St Thomas NHS Foundation Trust,01/04/2022,(50200) Consultants,(id:1913419) Integrated Local Services,KING'S COLLEGE HOSPITAL NHS FOUNDATION TRUST,id:9592431   ,5155.94
Department of Health,Guys and St Thomas NHS Foundation Trust,01/04/2022,(81200) Medical Surgical Supplies & Equipment,(id:684419) Integrated Local Services,NHS SUPPLY CHAIN (MAIDSTONE),id:15028097   ,  18.96
Department of Health,Guys and St Thomas NHS Foundation Trust,28/04/2022,(81400) Medical Surgical Supplies & Equipment,(id:684419) Integrated Local Services,SPACELABS HEALTHCARE LTD,id:15136676  , 828.00
Department of Health,Guys and St Thomas NHS Foundation Trust,21/04/2022,(51842) Physiotherapists,(id:684419) Integrated Local Services,PRICEWATERHOUSECOOPERS LLP,id:15139217 , 587.08
Department of Health,Guys and St Thomas NHS Foundation Trust,22/04/2022,(81200) Medical Surgical Supplies & Equipment,(id:590470) Integrated Local Services,NHS SUPPLY CHAIN (MAIDSTONE),id:15079695   ,  17.88
Department of Health,Guys and St Thomas NHS Foundation Trust,01/04/2022,(50552) Qualified Nursing Staff,(id:590471) Integrated Local Services,NURSING 2000 LTD,id:15087413    , 625.02
Department of Health,Guys and St Thomas NHS Foundation Trust,28/04/2022,(84200) Rental under Operating Lease,(id:590473) Integrated Local Services,MARSH LTD,id:15142998 ,2071.50
Department of Health,Guys and St Thomas NHS Foundation Trust,22/04/2022,(81200) Medical Surgical Supplies & Equipment,(id:590473) Integrated Local Services,BARD LTD,id:14342462   ,1530.00
Department of Health,Guys and St Thomas NHS Foundation Trust,28/04/2022,(81700) Lab Equipment Purchase,(id:590473) Integrated Local Services,NHS SUPPLY CHAIN (MAIDSTONE),id:15056655   ,  53.40
Department of Health,Guys and St Thomas NHS Foundation Trust,22/04/2022,(81700) Lab Equipment Purchase,(id:590473) Integrated Local Services,NHS SUPPLY CHAIN (MAIDSTONE),id:15105380   ,  38.68
Department of Health,Guys and St Thomas NHS Foundation Trust,28/04/2022,(81200) Medical Surgical Supplies & Equipment,(id:590522) Integrated Local Services,NHS SUPPLY CHAIN (MAIDSTONE),id:15056655   ,  56.40
Department of Health,Guys and St Thomas NHS Foundation Trust,22/04/2022,(50552) Qualified Nursing Staff,(id:590522) Integrated Local Services,MSI GROUP LTD,id:15139969  , 909.70
Department of Health,Guys and St Thomas NHS Foundation Trust,01/04/2022,(82000) Provisions & Kitchens,(id:590521) Integrated Local Services,NHS SUPPLY CHAIN (MAIDSTONE),id:15028097    ,  23.52
Department of Health,Guys and St Thomas NHS Foundation Trust,28/04/2022,(84200) Rental under Operating Lease,(id:590520) Integrated Local Services,MARSH LTD,id:15142998 ,6214.50
Department of Health,Guys and St Thomas NHS Foundation Trust,22/04/2022,(82800) Bedding & Linen,(id:590520) Integrated Local Services,NHS SUPPLY CHAIN (MAIDSTONE),id:15079695,  88.70
Department of Health,Guys and St Thomas NHS Foundation Trust,28/04/2022,(83400) Office Equipment,(id:590520) Integrated Local Services,NHS SUPPLY CHAIN (MAIDSTONE),id:15056655    ,  60.84
Department of Health,Guys and St Thomas NHS Foundation Trust,22/04/2022,(82000) Provisions & Kitchens,(id:590520) Integrated Local Services,NHS SUPPLY CHAIN (MAIDSTONE),id:15105380    ,   4.83
Department of Health,Guys and St Thomas NHS Foundation Trust,28/04/2022,(81700) Lab Equipment Purchase,(id:590535) Integrated Local Services,NHS SUPPLY CHAIN (MAIDSTONE),id:15056655   ,  24.17
Department of Health,Guys and St Thomas NHS Foundation Trust,28/04/2022,(84200) Rental under Operating Lease,(id:590535) Integrated Local Services,MARSH LTD,id:15142998 ,4143.00
Department of Health,Guys and St Thomas NHS Foundation Trust,28/04/2022,(81200) Medical Surgical Supplies & Equipment,(id:590463) Integrated Local Services,NHS SUPPLY CHAIN (MAIDSTONE),id:15056655   , 201.65
Department of Health,Guys and St Thomas NHS Foundation Trust,01/04/2022,(50562) Qualified Nursing Staff,(id:590463) Integrated Local Services,COYLE PERSONNEL PLC,id:15084748 ,1750.00
Department of Health,Guys and St Thomas NHS Foundation Trust,22/04/2022,(83400) Office Equipment,(id:590527) Integrated Local Services,NHS SUPPLY CHAIN (MAIDSTONE),id:15105380    ,  56.79
Department of Health,Guys and St Thomas NHS Foundation Trust,22/04/2022,(83400) Office Equipment,(id:590527) Integrated Local Services,NHS SUPPLY CHAIN (MAIDSTONE),id:15079695    ,  50.04
Department of Health,Guys and St Thomas NHS Foundation Trust,01/04/2022,(81200) Medical Surgical Supplies & Equipment,(id:590527) Integrated Local Services,NHS SUPPLY CHAIN (MAIDSTONE),id:15028097   , 137.90
Department of Health,Guys and St Thomas NHS Foundation Trust,01/04/2022,(81700) Lab Equipment Purchase,(id:590527) Integrated Local Services,NHS SUPPLY CHAIN (MAIDSTONE),id:15028097   ,  25.65
Department of Health,Guys and St Thomas NHS Foundation Trust,28/04/2022,(83610) IT Costs,(id:590527) Integrated Local Services,PROBRAND LIMITED,id:15152054    , 544.98
Department of Health,Guys and St Thomas NHS Foundation Trust,22/04/2022,(82800) Bedding & Linen,(id:1379420) Integrated Local Services,NHS SUPPLY CHAIN (MAIDSTONE),id:15105380    ,  21.56
Department of Health,Guys and St Thomas NHS Foundation Trust,08/04/2022,(50552) Qualified Nursing Staff,(id:4834421) Integrated Local Services,NURSING 2000 LTD,id:15087524   ,1207.92
Department of Health,Guys and St Thomas NHS Foundation Trust,01/04/2022,(50552) Qualified Nursing Staff,(id:4834422) Integrated Local Services,NURSING 2000 LTD,id:15061859   , 449.79
Department of Health,Guys and St Thomas NHS Foundation Trust,01/04/2022,(50552) Qualified Nursing Staff,(id:4263423) Integrated Local Services,NURSING 2000 LTD,id:15061825   ,1065.30
Department of Health,Guys and St Thomas NHS Foundation Trust,28/04/2022,(50552) Qualified Nursing Staff,(id:4263423) Integrated Local Services,NURSING 2000 LTD,id:15125572   , 830.11
Department of Health,Guys and St Thomas NHS Foundation Trust,28/04/2022,(82700) Uniforms & Clothing,(id:42518) Evelina Womens Services,NHS SUPPLY CHAIN (MAIDSTONE),id:15056655    ,  12.85
Department of Health,Guys and St Thomas NHS Foundation Trust,01/04/2022,(81700) Lab Equipment Purchase,(id:42518) Evelina Womens Services,NHS SUPPLY CHAIN (MAIDSTONE),id:15028097 ,   4.84
Department of Health,Guys and St Thomas NHS Foundation Trust,22/04/2022,(80010) Drug Costs,(id:42517) Evelina Womens Services,FUJIFILM UK LTD,id:15135900 ,1200.00
Department of Health,Guys and St Thomas NHS Foundation Trust,08/04/2022,(80010) Drug Costs,(id:42517) Evelina Womens Services,FUJIFILM UK LTD,id:15105062 ,2470.02
Department of Health,Guys and St Thomas NHS Foundation Trust,22/04/2022,(81400) Medical Surgical Supplies & Equipment,(id:42517) Evelina Womens Services,ALS INDUSTRIAL SERVICES LTD,id:15128434  , 875.00
Department of Health,Guys and St Thomas NHS Foundation Trust,22/04/2022,(81255) Medical Surgical Supplies & Equipment,(id:42517) Evelina Womens Services,NHS SUPPLY CHAIN (MAIDSTONE),id:15079695 , 288.00
Department of Health,Guys and St Thomas NHS Foundation Trust,22/04/2022,(83880) Building & Engineering,(id:42517) Evelina Womens Services,1ST CALL ELECTRICAL SERVICES LTD,id:15109917  , 970.00
Department of Health,Guys and St Thomas NHS Foundation Trust,28/04/2022,(89270) Establishment,(id:42517) Evelina Womens Services,PERSONAL HOMECARE PHARMACY LTD,id:15144000   ,   -20894.96
Department of Health,Guys and St Thomas NHS Foundation Trust,08/04/2022,(89595) Non-Healthcare from Foundation Trusts,(id:42517) Evelina Womens Services,FRIMLEY HEALTH NHS FOUNDATION TRUST,id:12387471    ,1976.51
Department of Health,Guys and St Thomas NHS Foundation Trust,22/04/2022,(89595) Non-Healthcare from Foundation Trusts,(id:42517) Evelina Womens Services,ROYAL DEVON AND EXETER NHS FOUNDATION TRUST,id:14747903 ,1587.00
Department of Health,Guys and St Thomas NHS Foundation Trust,14/04/2022,(81200) Medical Surgical Supplies & Equipment,(id:42517) Evelina Womens Services,VITROLIFE LTD,id:15122824 ,1144.78
Department of Health,Guys and St Thomas NHS Foundation Trust,14/04/2022,(81200) Medical Surgical Supplies & Equipment,(id:42517) Evelina Womens Services,COOK UK LTD,id:15012735   ,2280.00
Department of Health,Guys and St Thomas NHS Foundation Trust,08/04/2022,(81700) Lab Equipment Purchase,(id:42517) Evelina Womens Services,IVF SYNERGY,id:15107874   ,1290.00
Department of Health,Guys and St Thomas NHS Foundation Trust,22/04/2022,(83400) Office Equipment,(id:42513) Evelina Womens Services,NHS SUPPLY CHAIN (MAIDSTONE),id:15079695  , 193.45
Department of Health,Guys and St Thomas NHS Foundation Trust,22/04/2022,(81100) Dressings,(id:42513) Evelina Womens Services,NHS SUPPLY CHAIN (MAIDSTONE),id:15105380    , 150.47
Department of Health,Guys and St Thomas NHS Foundation Trust,01/04/2022,(81100) Dressings,(id:42509) Evelina Womens Services,NHS SUPPLY CHAIN (MAIDSTONE),id:15028097    , 179.04
Department of Health,Guys and St Thomas NHS Foundation Trust,22/04/2022,(81100) Dressings,(id:42509) Evelina Womens Services,NHS SUPPLY CHAIN (MAIDSTONE),id:15105380    , 123.45
Department of Health,Guys and St Thomas NHS Foundation Trust,14/04/2022,(50522) Unqualified Nursing Staff,(id:42509) Evelina Womens Services,GLOBE LOCUMS LTD,id:15123620, 255.31
Department of Health,Guys and St Thomas NHS Foundation Trust,14/04/2022,(50522) Unqualified Nursing Staff,(id:42509) Evelina Womens Services,GLOBE LOCUMS LTD,id:15123580, 258.72
Department of Health,Guys and St Thomas NHS Foundation Trust,14/04/2022,(50522) Unqualified Nursing Staff,(id:42509) Evelina Womens Services,MSI GROUP LTD,id:15125650   , 268.60
Department of Health,Guys and St Thomas NHS Foundation Trust,28/04/2022,(81200) Medical Surgical Supplies & Equipment,(id:42509) Evelina Womens Services,EMMAT MEDICAL LTD,id:15080185  ,1330.32
Department of Health,Guys and St Thomas NHS Foundation Trust,22/04/2022,(81100) Dressings,(id:42510) Evelina Womens Services,NHS SUPPLY CHAIN (MAIDSTONE),id:15079695    ,   1.58
Department of Health,Guys and St Thomas NHS Foundation Trust,22/04/2022,(81200) Medical Surgical Supplies & Equipment,(id:42510) Evelina Womens Services,NHS SUPPLY CHAIN (MAIDSTONE),id:15105380 , 102.79
Department of Health,Guys and St Thomas NHS Foundation Trust,01/04/2022,(83400) Office Equipment,(id:42506) Evelina Womens Services,NHS SUPPLY CHAIN (MAIDSTONE),id:15015296  , 102.08
Department of Health,Guys and St Thomas NHS Foundation Trust,01/04/2022,(81100) Dressings,(id:42506) Evelina Womens Services,NHS SUPPLY CHAIN (MAIDSTONE),id:15015296    ,   7.00
Department of Health,Guys and St Thomas NHS Foundation Trust,08/04/2022,(81700) Lab Equipment Purchase,(id:42486) Evelina Womens Services,HOLOGIC UK LTD,id:15076898,5460.00
Department of Health,Guys and St Thomas NHS Foundation Trust,08/04/2022,(81700) Lab Equipment Purchase,(id:42486) Evelina Womens Services,QUEEN MARY UNIVERSITY OF LONDON,id:15084124   ,2308.80
Department of Health,Guys and St Thomas NHS Foundation Trust,28/04/2022,(81200) Medical Surgical Supplies & Equipment,(id:42486) Evelina Womens Services,NHS SUPPLY CHAIN (MAIDSTONE),id:15056655 ,  79.25
Department of Health,Guys and St Thomas NHS Foundation Trust,01/04/2022,(81200) Medical Surgical Supplies & Equipment,(id:42486) Evelina Womens Services,NHS SUPPLY CHAIN (MAIDSTONE),id:15015296 ,  33.32
Department of Health,Guys and St Thomas NHS Foundation Trust,01/04/2022,(83400) Office Equipment,(id:42486) Evelina Womens Services,NHS SUPPLY CHAIN (MAIDSTONE),id:15028097  ,  21.39
Department of Health,Guys and St Thomas NHS Foundation Trust,08/04/2022,(89600) Non-Healthcare from other NHS bodies,(id:42486) Evelina Womens Services,BARKING HAVERING AND REDBRIDGE UNIVERSITY HOSPITALS NHS TRUST,id:15031916    , 985.50
Department of Health,Guys and St Thomas NHS Foundation Trust,22/04/2022,(89600) Non-Healthcare from other NHS bodies,(id:42486) Evelina Womens Services,NHS BLOOD AND TRANSPLANT,id:15119594 , 814.84
Department of Health,Guys and St Thomas NHS Foundation Trust,01/04/2022,(83400) Office Equipment,(id:42488) Evelina Womens Services,NHS SUPPLY CHAIN (MAIDSTONE),id:15028097  ,  25.24
Department of Health,Guys and St Thomas NHS Foundation Trust,28/04/2022,(82700) Uniforms & Clothing,(id:42491) Evelina Womens Services,NHS SUPPLY CHAIN (MAIDSTONE),id:15056655    ,  76.73
Department of Health,Guys and St Thomas NHS Foundation Trust,22/04/2022,(82700) Uniforms & Clothing,(id:42491) Evelina Womens Services,NHS SUPPLY CHAIN (MAIDSTONE),id:15079695    ,  47.52
Department of Health,Guys and St Thomas NHS Foundation Trust,28/04/2022,(82000) Provisions & Kitchens,(id:42491) Evelina Womens Services,NHS SUPPLY CHAIN (MAIDSTONE),id:15056655  , 268.98
Department of Health,Guys and St Thomas NHS Foundation Trust,22/04/2022,(82000) Provisions & Kitchens,(id:42491) Evelina Womens Services,NHS SUPPLY CHAIN (MAIDSTONE),id:15105380  ,  54.26
Department of Health,Guys and St Thomas NHS Foundation Trust,28/04/2022,(83400) Office Equipment,(id:42491) Evelina Womens Services,NHS SUPPLY CHAIN (MAIDSTONE),id:15056655  ,  64.66
Department of Health,Guys and St Thomas NHS Foundation Trust,01/04/2022,(82800) Bedding & Linen,(id:42491) Evelina Womens Services,NHS SUPPLY CHAIN (MAIDSTONE),id:15028097   ,  70.00
Department of Health,Guys and St Thomas NHS Foundation Trust,22/04/2022,(81275) Medical Surgical Supplies & Equipment,(id:42491) Evelina Womens Services,NHS SUPPLY CHAIN (MAIDSTONE),id:15079695 ,   5.34
Department of Health,Guys and St Thomas NHS Foundation Trust,01/04/2022,(81275) Medical Surgical Supplies & Equipment,(id:42491) Evelina Womens Services,NHS SUPPLY CHAIN (MAIDSTONE),id:15028097 ,   5.34
Department of Health,Guys and St Thomas NHS Foundation Trust,01/04/2022,(81200) Medical Surgical Supplies & Equipment,(id:42491) Evelina Womens Services,NHS SUPPLY CHAIN (MAIDSTONE),id:15015296 , 713.81
Department of Health,Guys and St Thomas NHS Foundation Trust,01/04/2022,(82600) Uniforms & Clothing,(id:42492) Evelina Womens Services,NHS SUPPLY CHAIN (MAIDSTONE),id:15015296    , 199.02
Department of Health,Guys and St Thomas NHS Foundation Trust,22/04/2022,(82600) Uniforms & Clothing,(id:42492) Evelina Womens Services,NHS SUPPLY CHAIN (MAIDSTONE),id:15079695    , 180.62
Department of Health,Guys and St Thomas NHS Foundation Trust,22/04/2022,(81200) Medical Surgical Supplies & Equipment,(id:42492) Evelina Womens Services,NHS SUPPLY CHAIN (MAIDSTONE),id:15079695 ,5999.49
Department of Health,Guys and St Thomas NHS Foundation Trust,28/04/2022,(81225) Medical Surgical Supplies & Equipment,(id:42492) Evelina Womens Services,NHS SUPPLY CHAIN (MAIDSTONE),id:15056655 ,  89.04
Department of Health,Guys and St Thomas NHS Foundation Trust,22/04/2022,(81225) Medical Surgical Supplies & Equipment,(id:42492) Evelina Womens Services,NHS SUPPLY CHAIN (MAIDSTONE),id:15105380 ,  52.92
Department of Health,Guys and St Thomas NHS Foundation Trust,28/04/2022,(81255) Medical Surgical Supplies & Equipment,(id:42492) Evelina Womens Services,NHS SUPPLY CHAIN (MAIDSTONE),id:15056655 ,   4.20
Department of Health,Guys and St Thomas NHS Foundation Trust,01/04/2022,(82600) Uniforms & Clothing,(id:42493) Evelina Womens Services,NHS SUPPLY CHAIN (MAIDSTONE),id:15028097    ,   4.21
Department of Health,Guys and St Thomas NHS Foundation Trust,01/04/2022,(82600) Uniforms & Clothing,(id:42493) Evelina Womens Services,NHS SUPPLY CHAIN (MAIDSTONE),id:15015296    ,   4.21
Department of Health,Guys and St Thomas NHS Foundation Trust,01/04/2022,(83400) Office Equipment,(id:42493) Evelina Womens Services,NHS SUPPLY CHAIN (MAIDSTONE),id:15015296  ,  61.71
Department of Health,Guys and St Thomas NHS Foundation Trust,28/04/2022,(81225) Medical Surgical Supplies & Equipment,(id:42493) Evelina Womens Services,KORN WALL LTD T/A KWICKSCREEN,id:14825457,1872.00
Department of Health,Guys and St Thomas NHS Foundation Trust,28/04/2022,(82800) Bedding & Linen,(id:42496) Evelina Womens Services,NHS SUPPLY CHAIN (MAIDSTONE),id:15056655   ,   3.52
Department of Health,Guys and St Thomas NHS Foundation Trust,22/04/2022,(81700) Lab Equipment Purchase,(id:42496) Evelina Womens Services,NHS SUPPLY CHAIN (MAIDSTONE),id:15105380 ,  24.77
Department of Health,Guys and St Thomas NHS Foundation Trust,14/04/2022,(81700) Lab Equipment Purchase,(id:42497) Evelina Womens Services,HOLOGIC UK LTD,id:15111384,4368.00
Department of Health,Guys and St Thomas NHS Foundation Trust,28/04/2022,(50200) Consultants,(id:42504) Evelina Womens Services,KINGS COLLEGE LONDON:03529700,id:15150754 ,    -1629.95
Department of Health,Guys and St Thomas NHS Foundation Trust,01/04/2022,(89640) Non-Healthcare from NHS Trusts,(id:42504) Evelina Womens Services,NORTH BRISTOL NHS TRUST,id:15054289   ,-535.00
Department of Health,Guys and St Thomas NHS Foundation Trust,22/04/2022,(82800) Bedding & Linen,(id:42331) Evelina Central,NHS SUPPLY CHAIN (MAIDSTONE),id:15079695 ,  91.72
Department of Health,Guys and St Thomas NHS Foundation Trust,22/04/2022,(81200) Medical Surgical Supplies & Equipment,(id:42331) Evelina Central,NHS SUPPLY CHAIN (MAIDSTONE),id:15079695    ,2643.59
Department of Health,Guys and St Thomas NHS Foundation Trust,22/04/2022,(81200) Medical Surgical Supplies & Equipment,(id:42331) Evelina Central,NHS SUPPLY CHAIN (MAIDSTONE),id:15105380    , 957.13
Department of Health,Guys and St Thomas NHS Foundation Trust,28/04/2022,(83400) Office Equipment,(id:42331) Evelina Central,NHS SUPPLY CHAIN (MAIDSTONE),id:15056655, 244.95
Department of Health,Guys and St Thomas NHS Foundation Trust,01/04/2022,(81100) Dressings,(id:42331) Evelina Central,NHS SUPPLY CHAIN (MAIDSTONE),id:15028097  , 544.42
Department of Health,Guys and St Thomas NHS Foundation Trust,01/04/2022,(81700) Lab Equipment Purchase,(id:42331) Evelina Central,NHS SUPPLY CHAIN (MAIDSTONE),id:15015296    ,  45.40
Department of Health,Guys and St Thomas NHS Foundation Trust,01/04/2022,(82800) Bedding & Linen,(id:42348) Evelina Central,NHS SUPPLY CHAIN (MAIDSTONE),id:15028097 ,  73.87
Department of Health,Guys and St Thomas NHS Foundation Trust,28/04/2022,(81200) Medical Surgical Supplies & Equipment,(id:42348) Evelina Central,MEDTRONIC LTD,id:15112247    , 504.00
Department of Health,Guys and St Thomas NHS Foundation Trust,28/04/2022,(83400) Office Equipment,(id:42348) Evelina Central,NHS SUPPLY CHAIN (MAIDSTONE),id:15056655, 225.34
Department of Health,Guys and St Thomas NHS Foundation Trust,22/04/2022,(83400) Office Equipment,(id:42348) Evelina Central,NHS SUPPLY CHAIN (MAIDSTONE),id:15079695, 224.19
Department of Health,Guys and St Thomas NHS Foundation Trust,22/04/2022,(81700) Lab Equipment Purchase,(id:42348) Evelina Central,NHS SUPPLY CHAIN (MAIDSTONE),id:15105380    ,  50.47
Department of Health,Guys and St Thomas NHS Foundation Trust,22/04/2022,(81700) Lab Equipment Purchase,(id:42348) Evelina Central,NHS SUPPLY CHAIN (MAIDSTONE),id:15079695    ,  52.90
Department of Health,Guys and St Thomas NHS Foundation Trust,01/04/2022,(89280) Other - Consultancy costs,(id:4198419) Evelina Central,KINGS COLLEGE LONDON:03529700,id:15083277   ,-634.52
Department of Health,Guys and St Thomas NHS Foundation Trust,01/04/2022,(83400) Office Equipment,(id:2709419) Evelina Central,NHS SUPPLY CHAIN (MAIDSTONE),id:15028097   ,4320.00
Department of Health,Guys and St Thomas NHS Foundation Trust,28/04/2022,(81225) Medical Surgical Supplies & Equipment,(id:590444) Evelina Children's Community Services,UNIVERSAL AIDS LTD,id:15147445 ,1857.39
Department of Health,Guys and St Thomas NHS Foundation Trust,01/04/2022,(81225) Medical Surgical Supplies & Equipment,(id:590444) Evelina Children's Community Services,NHS SUPPLY CHAIN (MAIDSTONE),id:15015296 ,2835.29
Department of Health,Guys and St Thomas NHS Foundation Trust,01/04/2022,(81100) Dressings,(id:590444) Evelina Children's Community Services,NHS SUPPLY CHAIN (MAIDSTONE),id:15015296    ,  97.63
Department of Health,Guys and St Thomas NHS Foundation Trust,14/04/2022,(81225) Medical Surgical Supplies & Equipment,(id:590550) Evelina Children's Community Services,THE HELPING HAND CO (LEDBURY)LTD,id:15033818  ,1629.36
Department of Health,Guys and St Thomas NHS Foundation Trust,01/04/2022,(83610) IT Costs,(id:590451) Evelina Children's Community Services,PROBRAND LIMITED,id:15051839  , 538.20
Department of Health,Guys and St Thomas NHS Foundation Trust,01/04/2022,(84600) Establishment,(id:590451) Evelina Children's Community Services,SOHO HOTEL,id:15083286   , 620.40
Department of Health,Guys and St Thomas NHS Foundation Trust,22/04/2022,(82000) Provisions & Kitchens,(id:1831419) Evelina Children's Community Services,NHS SUPPLY CHAIN (MAIDSTONE),id:15079695 , 457.92
Department of Health,Guys and St Thomas NHS Foundation Trust,01/04/2022,(82800) Bedding & Linen,(id:590557) Evelina Children's Community Services,NHS SUPPLY CHAIN (MAIDSTONE),id:15015296   ,  81.48
Department of Health,Guys and St Thomas NHS Foundation Trust,01/04/2022,(83500) Furniture & Fittings,(id:590557) Evelina Children's Community Services,JOHN LEWIS PLC (£1000 MIN ORDER),id:15086901    ,2209.48
Department of Health,Guys and St Thomas NHS Foundation Trust,01/04/2022,(83400) Office Equipment,(id:590446) Evelina Children's Community Services,NHS SUPPLY CHAIN (MAIDSTONE),id:15028097  , 489.47
Department of Health,Guys and St Thomas NHS Foundation Trust,22/04/2022,(82800) Bedding & Linen,(id:590446) Evelina Children's Community Services,NHS SUPPLY CHAIN (MAIDSTONE),id:15079695   , 172.36
Department of Health,Guys and St Thomas NHS Foundation Trust,22/04/2022,(82800) Bedding & Linen,(id:590539) Evelina Children's Community Services,NHS SUPPLY CHAIN (MAIDSTONE),id:15079695   ,  87.48
Department of Health,Guys and St Thomas NHS Foundation Trust,22/04/2022,(83400) Office Equipment,(id:590539) Evelina Children's Community Services,NHS SUPPLY CHAIN (MAIDSTONE),id:15079695  ,  33.95
Department of Health,Guys and St Thomas NHS Foundation Trust,01/04/2022,(83400) Office Equipment,(id:590539) Evelina Children's Community Services,NHS SUPPLY CHAIN (MAIDSTONE),id:15015296  ,  14.08
Department of Health,Guys and St Thomas NHS Foundation Trust,22/04/2022,(82000) Provisions & Kitchens,(id:590539) Evelina Children's Community Services,NHS SUPPLY CHAIN (MAIDSTONE),id:15079695  , 136.32
Department of Health,Guys and St Thomas NHS Foundation Trust,14/04/2022,(50562) Qualified Nursing Staff,(id:590539) Evelina Children's Community Services,MSI GROUP LTD,id:15123387,1425.00
Department of Health,Guys and St Thomas NHS Foundation Trust,08/04/2022,(50562) Qualified Nursing Staff,(id:590539) Evelina Children's Community Services,MSI GROUP LTD,id:15110513, 855.00
Department of Health,Guys and St Thomas NHS Foundation Trust,01/04/2022,(81200) Medical Surgical Supplies & Equipment,(id:590537) Evelina Children's Community Services,NHS SUPPLY CHAIN (MAIDSTONE),id:15015296 , 119.38
Department of Health,Guys and St Thomas NHS Foundation Trust,01/04/2022,(50562) Qualified Nursing Staff,(id:590423) Evelina Children's Community Services,ARTHUR RAI MEDICAL SERVICES LTD,id:15084509  ,1317.00
Department of Health,Guys and St Thomas NHS Foundation Trust,22/04/2022,(50562) Qualified Nursing Staff,(id:590423) Evelina Children's Community Services,ARTHUR RAI MEDICAL SERVICES LTD,id:15140160  , 790.20
Department of Health,Guys and St Thomas NHS Foundation Trust,01/04/2022,(81200) Medical Surgical Supplies & Equipment,(id:2356419) Evelina Children's Medicine & Neonatology,GBUK ENTERAL UK,id:15066854    ,1814.40
Department of Health,Guys and St Thomas NHS Foundation Trust,28/04/2022,(84200) Rental under Operating Lease,(id:2356419) Evelina Children's Medicine & Neonatology,MARSH LTD,id:15142998    ,    16572.00
Department of Health,Guys and St Thomas NHS Foundation Trust,22/04/2022,(81100) Dressings,(id:2356419) Evelina Children's Medicine & Neonatology,NHS SUPPLY CHAIN (MAIDSTONE),id:15105380    , 130.20
Department of Health,Guys and St Thomas NHS Foundation Trust,01/04/2022,(81100) Dressings,(id:2356419) Evelina Children's Medicine & Neonatology,NHS SUPPLY CHAIN (MAIDSTONE),id:15015296    , 146.04
Department of Health,Guys and St Thomas NHS Foundation Trust,01/04/2022,(84600) Establishment,(id:2499420) Evelina Children's Medicine & Neonatology,CLARITY TRAVEL MANAGEMENT,id:15084313   ,   9.19
Department of Health,Guys and St Thomas NHS Foundation Trust,22/04/2022,(81200) Medical Surgical Supplies & Equipment,(id:42349) Evelina Children's Medicine & Neonatology,NHS SUPPLY CHAIN (MAIDSTONE),id:15079695   ,  14.76
Department of Health,Guys and St Thomas NHS Foundation Trust,01/04/2022,(84400) Transport,(id:42349) Evelina Children's Medicine & Neonatology,IMT MEDICAL TRANSPORT LTD,id:15079642    , 998.18
Department of Health,Guys and St Thomas NHS Foundation Trust,08/04/2022,(84400) Transport,(id:42349) Evelina Children's Medicine & Neonatology,IMT MEDICAL TRANSPORT LTD,id:15089035    , 982.49
Department of Health,Guys and St Thomas NHS Foundation Trust,22/04/2022,(80010) Drug Costs,(id:42349) Evelina Children's Medicine & Neonatology,BAXTER HEALTHCARE LTD,id:15105894  ,1022.20
Department of Health,Guys and St Thomas NHS Foundation Trust,29/04/2022,(84650) Establishment,(id:42349) Evelina Children's Medicine & Neonatology,TNT ANIMATION COMPANY LTD,id:15159855,1981.53
Department of Health,Guys and St Thomas NHS Foundation Trust,22/04/2022,(81200) Medical Surgical Supplies & Equipment,(id:42350) Evelina Children's Medicine & Neonatology,NHS SUPPLY CHAIN (MAIDSTONE),id:15105380   , 742.80
Department of Health,Guys and St Thomas NHS Foundation Trust,22/04/2022,(81000) Surgical Appliances,(id:42350) Evelina Children's Medicine & Neonatology,TALAR MADE ORTHOTICS LTD,id:15137394,  43.66
Department of Health,Guys and St Thomas NHS Foundation Trust,01/04/2022,(84600) Establishment,(id:42336) Evelina Children's Medicine & Neonatology,CLARITY TRAVEL MANAGEMENT,id:15084314,  63.03
Department of Health,Guys and St Thomas NHS Foundation Trust,01/04/2022,(82800) Bedding & Linen,(id:42335) Evelina Children's Medicine & Neonatology,NHS SUPPLY CHAIN (MAIDSTONE),id:15015296,   2.86
Department of Health,Guys and St Thomas NHS Foundation Trust,01/04/2022,(89595) Non-Healthcare from Foundation Trusts,(id:42335) Evelina Children's Medicine & Neonatology,KING'S COLLEGE HOSPITAL NHS FOUNDATION TRUST,id:9412492   ,2597.40
Department of Health,Guys and St Thomas NHS Foundation Trust,01/04/2022,(81000) Surgical Appliances,(id:42335) Evelina Children's Medicine & Neonatology,JOHN FLORENCE LTD,id:15076188  , 982.16
Department of Health,Guys and St Thomas NHS Foundation Trust,08/04/2022,(81000) Surgical Appliances,(id:42335) Evelina Children's Medicine & Neonatology,TALAR MADE ORTHOTICS LTD,id:15087978,  87.31
Department of Health,Guys and St Thomas NHS Foundation Trust,08/04/2022,(81200) Medical Surgical Supplies & Equipment,(id:42327) Evelina Children's Medicine & Neonatology,BOC LTD :02107500,id:14528274    ,2424.00
Department of Health,Guys and St Thomas NHS Foundation Trust,14/04/2022,(81200) Medical Surgical Supplies & Equipment,(id:42327) Evelina Children's Medicine & Neonatology,FISHER & PAYKEL HEALTHCARE LTD,id:15119810 , 525.96
Department of Health,Guys and St Thomas NHS Foundation Trust,22/04/2022,(83400) Office Equipment,(id:42327) Evelina Children's Medicine & Neonatology,NHS SUPPLY CHAIN (MAIDSTONE),id:15105380    , 132.82
Department of Health,Guys and St Thomas NHS Foundation Trust,22/04/2022,(81700) Lab Equipment Purchase,(id:42327) Evelina Children's Medicine & Neonatology,NHS SUPPLY CHAIN (MAIDSTONE),id:15105380   ,  48.30
Department of Health,Guys and St Thomas NHS Foundation Trust,14/04/2022,(81200) Medical Surgical Supplies & Equipment,(id:1196420) Evelina Children's Medicine & Neonatology,MEDTRONIC LTD,id:15061396 ,1266.66
Department of Health,Guys and St Thomas NHS Foundation Trust,08/04/2022,(81200) Medical Surgical Supplies & Equipment,(id:1196420) Evelina Children's Medicine & Neonatology,DEXCOM INTERNATIONAL LTD,id:15076906, 600.00
Department of Health,Guys and St Thomas NHS Foundation Trust,22/04/2022,(81200) Medical Surgical Supplies & Equipment,(id:3736419) Evelina Children's Medicine & Neonatology,NHS SUPPLY CHAIN (MAIDSTONE),id:15079695 ,  65.63
Department of Health,Guys and St Thomas NHS Foundation Trust,08/04/2022,(50552) Qualified Nursing Staff,(id:41874) Evelina Children's Medicine & Neonatology,HAYS HEALTHCARE LTD,id:15110535 , 770.16
Department of Health,Guys and St Thomas NHS Foundation Trust,22/04/2022,(81200) Medical Surgical Supplies & Equipment,(id:41874) Evelina Children's Medicine & Neonatology,NHS SUPPLY CHAIN (MAIDSTONE),id:15079695   , 166.51
Department of Health,Guys and St Thomas NHS Foundation Trust,01/04/2022,(81100) Dressings,(id:41874) Evelina Children's Medicine & Neonatology,NHS SUPPLY CHAIN (MAIDSTONE),id:15028097 ,  14.62
Department of Health,Guys and St Thomas NHS Foundation Trust,08/04/2022,(84500) Establishment,(id:41874) Evelina Children's Medicine & Neonatology,UK PODS LTD,id:14476001    , 830.52
Department of Health,Guys and St Thomas NHS Foundation Trust,01/04/2022,(83400) Office Equipment,(id:41874) Evelina Children's Medicine & Neonatology,NHS SUPPLY CHAIN (MAIDSTONE),id:15015296    ,   2.28
Department of Health,Guys and St Thomas NHS Foundation Trust,01/04/2022,(50200) Consultants,(id:42326) Evelina Children's Medicine & Neonatology,KING'S COLLEGE HOSPITAL NHS FOUNDATION TRUST,id:15077149   ,    -5176.19
Department of Health,Guys and St Thomas NHS Foundation Trust,01/04/2022,(89270) Establishment,(id:42326) Evelina Children's Medicine & Neonatology,QUEEN MARY UNIVERSITY OF LONDON,id:14316994    ,    16216.39
Department of Health,Guys and St Thomas NHS Foundation Trust,14/04/2022,(84656) Establishment,(id:42326) Evelina Children's Medicine & Neonatology,DICT8 LIMITED,id:15011454  ,2835.24
Department of Health,Guys and St Thomas NHS Foundation Trust,28/04/2022,(81200) Medical Surgical Supplies & Equipment,(id:2495419) Evelina Children's Medicine & Neonatology,NHS SUPPLY CHAIN (MAIDSTONE),id:15056655 ,1233.17
Department of Health,Guys and St Thomas NHS Foundation Trust,28/04/2022,(81100) Dressings,(id:2495419) Evelina Children's Medicine & Neonatology,NHS SUPPLY CHAIN (MAIDSTONE),id:15056655    , 276.26
Department of Health,Guys and St Thomas NHS Foundation Trust,22/04/2022,(81100) Dressings,(id:2495419) Evelina Children's Medicine & Neonatology,NHS SUPPLY CHAIN (MAIDSTONE),id:15105380    ,  38.10
Department of Health,Guys and St Thomas NHS Foundation Trust,22/04/2022,(81100) Dressings,(id:2495419) Evelina Children's Medicine & Neonatology,NHS SUPPLY CHAIN (MAIDSTONE),id:15079695    , 110.34
Department of Health,Guys and St Thomas NHS Foundation Trust,22/04/2022,(81255) Medical Surgical Supplies & Equipment,(id:2495419) Evelina Children's Medicine & Neonatology,NHS SUPPLY CHAIN (MAIDSTONE),id:15079695 , 294.48
Department of Health,Guys and St Thomas NHS Foundation Trust,22/04/2022,(50532) Unqualified Nursing Staff,(id:2495419) Evelina Children's Medicine & Neonatology,GLOBE LOCUMS LTD,id:15140295, 896.03
Department of Health,Guys and St Thomas NHS Foundation Trust,01/04/2022,(83400) Office Equipment,(id:42323) Evelina Children's Medicine & Neonatology,NHS SUPPLY CHAIN (MAIDSTONE),id:15015296    ,  44.16
Department of Health,Guys and St Thomas NHS Foundation Trust,28/04/2022,(81100) Dressings,(id:42323) Evelina Children's Medicine & Neonatology,NHS SUPPLY CHAIN (MAIDSTONE),id:15056655 ,  94.56
Department of Health,Guys and St Thomas NHS Foundation Trust,01/04/2022,(81275) Medical Surgical Supplies & Equipment,(id:42323) Evelina Children's Medicine & Neonatology,NHS SUPPLY CHAIN (MAIDSTONE),id:15015296   ,  14.46
Department of Health,Guys and St Thomas NHS Foundation Trust,28/04/2022,(81700) Lab Equipment Purchase,(id:42323) Evelina Children's Medicine & Neonatology,NHS SUPPLY CHAIN (MAIDSTONE),id:15056655   ,  23.40
Department of Health,Guys and St Thomas NHS Foundation Trust,01/04/2022,(81700) Lab Equipment Purchase,(id:42323) Evelina Children's Medicine & Neonatology,NHS SUPPLY CHAIN (MAIDSTONE),id:15028097   ,   8.92
Department of Health,Guys and St Thomas NHS Foundation Trust,28/04/2022,(81200) Medical Surgical Supplies & Equipment,(id:42323) Evelina Children's Medicine & Neonatology,NHS SUPPLY CHAIN (MAIDSTONE),id:15056655   , 112.68
Department of Health,Guys and St Thomas NHS Foundation Trust,22/04/2022,(81200) Medical Surgical Supplies & Equipment,(id:42323) Evelina Children's Medicine & Neonatology,NHS SUPPLY CHAIN (MAIDSTONE),id:15079695   ,  56.95
Department of Health,Guys and St Thomas NHS Foundation Trust,28/04/2022,(82800) Bedding & Linen,(id:42323) Evelina Children's Medicine & Neonatology,NHS SUPPLY CHAIN (MAIDSTONE),id:15056655, 108.67
Department of Health,Guys and St Thomas NHS Foundation Trust,01/04/2022,(81225) Medical Surgical Supplies & Equipment,(id:42323) Evelina Children's Medicine & Neonatology,NHS SUPPLY CHAIN (MAIDSTONE),id:15015296   ,  17.66
Department of Health,Guys and St Thomas NHS Foundation Trust,28/04/2022,(81225) Medical Surgical Supplies & Equipment,(id:42323) Evelina Children's Medicine & Neonatology,NHS SUPPLY CHAIN (MAIDSTONE),id:15056655   ,  17.66
Department of Health,Guys and St Thomas NHS Foundation Trust,01/04/2022,(82800) Bedding & Linen,(id:42315) Evelina Children's Medicine & Neonatology,NHS SUPPLY CHAIN (MAIDSTONE),id:15028097,  21.56
Department of Health,Guys and St Thomas NHS Foundation Trust,22/04/2022,(81100) Dressings,(id:42315) Evelina Children's Medicine & Neonatology,NHS SUPPLY CHAIN (MAIDSTONE),id:15079695 , 153.87
Department of Health,Guys and St Thomas NHS Foundation Trust,28/04/2022,(81200) Medical Surgical Supplies & Equipment,(id:42315) Evelina Children's Medicine & Neonatology,NHS SUPPLY CHAIN (MAIDSTONE),id:15056655   , 648.38
Department of Health,Guys and St Thomas NHS Foundation Trust,14/04/2022,(81200) Medical Surgical Supplies & Equipment,(id:42315) Evelina Children's Medicine & Neonatology,Q MEDICAL TECHNOLOGIES LTD,id:15119274,6168.00
Department of Health,Guys and St Thomas NHS Foundation Trust,01/04/2022,(81200) Medical Surgical Supplies & Equipment,(id:42058) Evelina Children's Medicine & Neonatology,BIO DIAGNOSTICS LTD,id:15051812  ,  35.94
Department of Health,Guys and St Thomas NHS Foundation Trust,22/04/2022,(81200) Medical Surgical Supplies & Equipment,(id:42058) Evelina Children's Medicine & Neonatology,NHS SUPPLY CHAIN (MAIDSTONE),id:15105380   ,  63.80
Department of Health,Guys and St Thomas NHS Foundation Trust,01/04/2022,(81100) Dressings,(id:42058) Evelina Children's Medicine & Neonatology,NHS SUPPLY CHAIN (MAIDSTONE),id:15028097 ,   2.71
Department of Health,Guys and St Thomas NHS Foundation Trust,08/04/2022,(81700) Lab Equipment Purchase,(id:42058) Evelina Children's Medicine & Neonatology,BIO DIAGNOSTICS LTD,id:14428215  ,2280.00
Department of Health,Guys and St Thomas NHS Foundation Trust,22/04/2022,(81100) Dressings,(id:42351) Evelina Childrens Surgery Theatres and Anaesthesia (CSTA),NHS SUPPLY CHAIN (MAIDSTONE),id:15079695,  54.62
Department of Health,Guys and St Thomas NHS Foundation Trust,22/04/2022,(82600) Uniforms & Clothing,(id:41914) Evelina Childrens Surgery Theatres and Anaesthesia (CSTA),NHS SUPPLY CHAIN (MAIDSTONE),id:15079695,  63.72
Department of Health,Guys and St Thomas NHS Foundation Trust,01/04/2022,(82800) Bedding & Linen,(id:41914) Evelina Childrens Surgery Theatres and Anaesthesia (CSTA),NHS SUPPLY CHAIN (MAIDSTONE),id:15015296    , 274.14
Department of Health,Guys and St Thomas NHS Foundation Trust,01/04/2022,(82800) Bedding & Linen,(id:41914) Evelina Childrens Surgery Theatres and Anaesthesia (CSTA),NHS SUPPLY CHAIN (MAIDSTONE),id:15028097    , 274.07
Department of Health,Guys and St Thomas NHS Foundation Trust,28/04/2022,(82800) Bedding & Linen,(id:41914) Evelina Childrens Surgery Theatres and Anaesthesia (CSTA),NHS SUPPLY CHAIN (MAIDSTONE),id:15056655    , 343.75
Department of Health,Guys and St Thomas NHS Foundation Trust,28/04/2022,(81200) Medical Surgical Supplies & Equipment,(id:41914) Evelina Childrens Surgery Theatres and Anaesthesia (CSTA),PLS MEDICAL LTD,id:15113855,1959.84
Department of Health,Guys and St Thomas NHS Foundation Trust,01/04/2022,(81200) Medical Surgical Supplies & Equipment,(id:41914) Evelina Childrens Surgery Theatres and Anaesthesia (CSTA),NHS SUPPLY CHAIN (MAIDSTONE),id:15015296  , 878.42
Department of Health,Guys and St Thomas NHS Foundation Trust,01/04/2022,(50562) Qualified Nursing Staff,(id:41914) Evelina Childrens Surgery Theatres and Anaesthesia (CSTA),MEDICSPRO LTD,id:15087409 , 790.35
Department of Health,Guys and St Thomas NHS Foundation Trust,22/04/2022,(81100) Dressings,(id:41914) Evelina Childrens Surgery Theatres and Anaesthesia (CSTA),NHS SUPPLY CHAIN (MAIDSTONE),id:15105380, 233.19
Department of Health,Guys and St Thomas NHS Foundation Trust,14/04/2022,(81200) Medical Surgical Supplies & Equipment,(id:41910) Evelina Childrens Surgery Theatres and Anaesthesia (CSTA),ALBYN MEDICAL LTD,id:15116374   ,4461.60
Department of Health,Guys and St Thomas NHS Foundation Trust,01/04/2022,(81100) Dressings,(id:41910) Evelina Childrens Surgery Theatres and Anaesthesia (CSTA),NHS SUPPLY CHAIN (MAIDSTONE),id:15015296, 154.76
Department of Health,Guys and St Thomas NHS Foundation Trust,28/04/2022,(81100) Dressings,(id:41910) Evelina Childrens Surgery Theatres and Anaesthesia (CSTA),NHS SUPPLY CHAIN (MAIDSTONE),id:15056655, 178.12
Department of Health,Guys and St Thomas NHS Foundation Trust,01/04/2022,(82600) Uniforms & Clothing,(id:41910) Evelina Childrens Surgery Theatres and Anaesthesia (CSTA),NHS SUPPLY CHAIN (MAIDSTONE),id:15028097,  25.44
Department of Health,Guys and St Thomas NHS Foundation Trust,22/04/2022,(82600) Uniforms & Clothing,(id:41910) Evelina Childrens Surgery Theatres and Anaesthesia (CSTA),NHS SUPPLY CHAIN (MAIDSTONE),id:15105380,  32.64
Department of Health,Guys and St Thomas NHS Foundation Trust,22/04/2022,(81200) Medical Surgical Supplies & Equipment,(id:1196421) Evelina Childrens Surgery Theatres and Anaesthesia (CSTA),NUVASIVE UK LTD,id:15111219   ,1488.00
Department of Health,Guys and St Thomas NHS Foundation Trust,28/04/2022,(81200) Medical Surgical Supplies & Equipment,(id:1196421) Evelina Childrens Surgery Theatres and Anaesthesia (CSTA),NUVASIVE UK LTD,id:15148254   ,6857.22
Department of Health,Guys and St Thomas NHS Foundation Trust,01/04/2022,(81200) Medical Surgical Supplies & Equipment,(id:1196421) Evelina Childrens Surgery Theatres and Anaesthesia (CSTA),NHS SUPPLY CHAIN (MAIDSTONE),id:15028097, 246.00
Department of Health,Guys and St Thomas NHS Foundation Trust,08/04/2022,(81200) Medical Surgical Supplies & Equipment,(id:1196421) Evelina Childrens Surgery Theatres and Anaesthesia (CSTA),NUVASIVE UK LTD,id:15104454   ,6951.66
Department of Health,Guys and St Thomas NHS Foundation Trust,14/04/2022,(81300) Medical Surgical Supplies & Equipment,(id:1196421) Evelina Childrens Surgery Theatres and Anaesthesia (CSTA),NUVASIVE UK LTD,id:15058684   , 675.00
Department of Health,Guys and St Thomas NHS Foundation Trust,01/04/2022,(81100) Dressings,(id:431409) Evelina Childrens Surgery Theatres and Anaesthesia (CSTA),NHS SUPPLY CHAIN (MAIDSTONE),id:15015296    ,  23.95
Department of Health,Guys and St Thomas NHS Foundation Trust,14/04/2022,(81300) Medical Surgical Supplies & Equipment,(id:431409) Evelina Childrens Surgery Theatres and Anaesthesia (CSTA),LAVENDER MEDICAL LTD,id:15054249    ,3642.00
Department of Health,Guys and St Thomas NHS Foundation Trust,28/04/2022,(81200) Medical Surgical Supplies & Equipment,(id:431409) Evelina Childrens Surgery Theatres and Anaesthesia (CSTA),NHS SUPPLY CHAIN (MAIDSTONE),id:15056655 ,    13335.38
Department of Health,Guys and St Thomas NHS Foundation Trust,01/04/2022,(81200) Medical Surgical Supplies & Equipment,(id:431409) Evelina Childrens Surgery Theatres and Anaesthesia (CSTA),NHS SUPPLY CHAIN (MAIDSTONE),id:15015296 ,    51480.77
Department of Health,Guys and St Thomas NHS Foundation Trust,01/04/2022,(81200) Medical Surgical Supplies & Equipment,(id:431409) Evelina Childrens Surgery Theatres and Anaesthesia (CSTA),NHS SUPPLY CHAIN (MAIDSTONE),id:15028097 , 793.78
Department of Health,Guys and St Thomas NHS Foundation Trust,28/04/2022,(81200) Medical Surgical Supplies & Equipment,(id:431409) Evelina Childrens Surgery Theatres and Anaesthesia (CSTA),T J SMITH & NEPHEW LTD,id:15135808  , 588.89
Department of Health,Guys and St Thomas NHS Foundation Trust,22/04/2022,(81200) Medical Surgical Supplies & Equipment,(id:431409) Evelina Childrens Surgery Theatres and Anaesthesia (CSTA),JOHNSON & JOHNSON MEDICAL LTD,id:15082446,1297.58
Department of Health,Guys and St Thomas NHS Foundation Trust,22/04/2022,(81000) Surgical Appliances,(id:431409) Evelina Childrens Surgery Theatres and Anaesthesia (CSTA),TALAR MADE ORTHOTICS LTD,id:15137114   ,  54.00
Department of Health,Guys and St Thomas NHS Foundation Trust,01/04/2022,(81000) Surgical Appliances,(id:431409) Evelina Childrens Surgery Theatres and Anaesthesia (CSTA),JOHN FLORENCE LTD,id:15075895, 832.18
Department of Health,Guys and St Thomas NHS Foundation Trust,01/04/2022,(81000) Surgical Appliances,(id:431409) Evelina Childrens Surgery Theatres and Anaesthesia (CSTA),JOHN FLORENCE LTD,id:15076094, 993.57
Department of Health,Guys and St Thomas NHS Foundation Trust,08/04/2022,(81000) Surgical Appliances,(id:431409) Evelina Childrens Surgery Theatres and Anaesthesia (CSTA),TALAR MADE ORTHOTICS LTD,id:15104812   ,  43.66
Department of Health,Guys and St Thomas NHS Foundation Trust,28/04/2022,(81200) Medical Surgical Supplies & Equipment,(id:468409) Evelina Childrens Surgery Theatres and Anaesthesia (CSTA),NHS SUPPLY CHAIN (MAIDSTONE),id:15056655 , 190.42
Department of Health,Guys and St Thomas NHS Foundation Trust,01/04/2022,(81200) Medical Surgical Supplies & Equipment,(id:468409) Evelina Childrens Surgery Theatres and Anaesthesia (CSTA),NHS SUPPLY CHAIN (MAIDSTONE),id:15028097 , 233.48
Department of Health,Guys and St Thomas NHS Foundation Trust,22/04/2022,(81200) Medical Surgical Supplies & Equipment,(id:468409) Evelina Childrens Surgery Theatres and Anaesthesia (CSTA),T J SMITH & NEPHEW LTD,id:15135814  ,3154.27
Department of Health,Guys and St Thomas NHS Foundation Trust,01/04/2022,(81200) Medical Surgical Supplies & Equipment,(id:2495421) Evelina Childrens Surgery Theatres and Anaesthesia (CSTA),NHS SUPPLY CHAIN (MAIDSTONE),id:15028097, 268.32
Department of Health,Guys and St Thomas NHS Foundation Trust,01/04/2022,(81225) Medical Surgical Supplies & Equipment,(id:2495421) Evelina Childrens Surgery Theatres and Anaesthesia (CSTA),NHS SUPPLY CHAIN (MAIDSTONE),id:15015296, 115.20
Department of Health,Guys and St Thomas NHS Foundation Trust,28/04/2022,(50552) Qualified Nursing Staff,(id:2495421) Evelina Childrens Surgery Theatres and Anaesthesia (CSTA),CONTINENTAL NURSE LTD,id:15153874 , 590.96
Department of Health,Guys and St Thomas NHS Foundation Trust,28/04/2022,(81400) Medical Surgical Supplies & Equipment,(id:42347) Evelina Childrens Surgery Theatres and Anaesthesia (CSTA),LABORIE MEDICAL TECHNOLOGIES UK,id:15149977    ,    10583.34
Department of Health,Guys and St Thomas NHS Foundation Trust,22/04/2022,(81100) Dressings,(id:42347) Evelina Childrens Surgery Theatres and Anaesthesia (CSTA),NHS SUPPLY CHAIN (MAIDSTONE),id:15105380,  21.96
Department of Health,Guys and St Thomas NHS Foundation Trust,01/04/2022,(81200) Medical Surgical Supplies & Equipment,(id:42347) Evelina Childrens Surgery Theatres and Anaesthesia (CSTA),NHS SUPPLY CHAIN (MAIDSTONE),id:15015296  , 260.52
Department of Health,Guys and St Thomas NHS Foundation Trust,01/04/2022,(81200) Medical Surgical Supplies & Equipment,(id:1196422) Evelina Childrens Surgery Theatres and Anaesthesia (CSTA),NHS SUPPLY CHAIN (MAIDSTONE),id:15028097, 792.00
Department of Health,Guys and St Thomas NHS Foundation Trust,14/04/2022,(81200) Medical Surgical Supplies & Equipment,(id:1196422) Evelina Childrens Surgery Theatres and Anaesthesia (CSTA),LAWMED LTD,id:15119455   ,1600.20
Department of Health,Guys and St Thomas NHS Foundation Trust,28/04/2022,(81400) Medical Surgical Supplies & Equipment,(id:1196422) Evelina Childrens Surgery Theatres and Anaesthesia (CSTA),LINDSAY SURGICAL SUPPLIES LIMITED,id:15149297, 497.80
Department of Health,Guys and St Thomas NHS Foundation Trust,08/04/2022,(81700) Lab Equipment Purchase,(id:4755419) Evelina R&D and Charity,METTLER-TOLEDO LTD,id:15078874    ,1479.20
Department of Health,Guys and St Thomas NHS Foundation Trust,22/04/2022,(83400) Office Equipment,(id:43060) Evelina R&D and Charity,JBS EXECUTIVE EDUCATION LTD,id:15083587   , 906.44
Department of Health,Guys and St Thomas NHS Foundation Trust,01/04/2022,(89270) Establishment,(id:2634419) Evelina R&D and Charity,KING'S COLLEGE HOSPITAL NHS FOUNDATION TRUST,id:15072477  , 514.61
Department of Health,Guys and St Thomas NHS Foundation Trust,08/04/2022,(89270) Establishment,(id:2634419) Evelina R&D and Charity,KING'S COLLEGE HOSPITAL NHS FOUNDATION TRUST,id:15052634  , 515.14
Department of Health,Guys and St Thomas NHS Foundation Trust,01/04/2022,(81265) Medical Surgical Supplies & Equipment,(id:42312) Evelina Childrens Cardio Respiratory & Critical Care (CRIC),NHS SUPPLY CHAIN (MAIDSTONE),id:15015296,1296.00
Department of Health,Guys and St Thomas NHS Foundation Trust,01/04/2022,(81200) Medical Surgical Supplies & Equipment,(id:42312) Evelina Childrens Cardio Respiratory & Critical Care (CRIC),TERUMO UK LTD,id:15066554, 540.00
Department of Health,Guys and St Thomas NHS Foundation Trust,14/04/2022,(81200) Medical Surgical Supplies & Equipment,(id:42312) Evelina Childrens Cardio Respiratory & Critical Care (CRIC),EDWARDS LIFESCIENCES LTD,id:15035794    , 648.00
Department of Health,Guys and St Thomas NHS Foundation Trust,08/04/2022,(81200) Medical Surgical Supplies & Equipment,(id:42312) Evelina Childrens Cardio Respiratory & Critical Care (CRIC),BAYLIS MEDICAL CO.INC,id:15058537  ,1680.00
Department of Health,Guys and St Thomas NHS Foundation Trust,01/04/2022,(81400) Medical Surgical Supplies & Equipment,(id:42312) Evelina Childrens Cardio Respiratory & Critical Care (CRIC),NHS SUPPLY CHAIN (MAIDSTONE),id:15015296, 805.36
Department of Health,Guys and St Thomas NHS Foundation Trust,01/04/2022,(81400) Medical Surgical Supplies & Equipment,(id:42312) Evelina Childrens Cardio Respiratory & Critical Care (CRIC),NHS SUPPLY CHAIN ( CAPITAL FUND ONLY),id:15079995 ,2792.26
Department of Health,Guys and St Thomas NHS Foundation Trust,01/04/2022,(84600) Establishment,(id:42312) Evelina Childrens Cardio Respiratory & Critical Care (CRIC),CLARITY TRAVEL MANAGEMENT,id:15084314  ,1298.70
Department of Health,Guys and St Thomas NHS Foundation Trust,22/04/2022,(81280) Medical Surgical Supplies & Equipment,(id:42312) Evelina Childrens Cardio Respiratory & Critical Care (CRIC),NHS SUPPLY CHAIN (MAIDSTONE),id:15079695,1554.00
Department of Health,Guys and St Thomas NHS Foundation Trust,14/04/2022,(84656) Establishment,(id:42312) Evelina Childrens Cardio Respiratory & Critical Care (CRIC),DICT8 LIMITED,id:15119600    ,2867.76
Department of Health,Guys and St Thomas NHS Foundation Trust,22/04/2022,(83400) Office Equipment,(id:42312) Evelina Childrens Cardio Respiratory & Critical Care (CRIC),NHS SUPPLY CHAIN (MAIDSTONE),id:15079695 ,  50.46
Department of Health,Guys and St Thomas NHS Foundation Trust,28/04/2022,(82600) Uniforms & Clothing,(id:42312) Evelina Childrens Cardio Respiratory & Critical Care (CRIC),PROTECX MEDICAL LTD,id:15143397  , 861.49
Department of Health,Guys and St Thomas NHS Foundation Trust,28/04/2022,(81100) Dressings,(id:42312) Evelina Childrens Cardio Respiratory & Critical Care (CRIC),NHS SUPPLY CHAIN (MAIDSTONE),id:15056655   , 102.24
Department of Health,Guys and St Thomas NHS Foundation Trust,28/04/2022,(81200) Medical Surgical Supplies & Equipment,(id:4082419) Evelina Childrens Cardio Respiratory & Critical Care (CRIC),NHS SUPPLY CHAIN (MAIDSTONE),id:15056655   ,1032.38
Department of Health,Guys and St Thomas NHS Foundation Trust,01/04/2022,(83400) Office Equipment,(id:4082419) Evelina Childrens Cardio Respiratory & Critical Care (CRIC),NHS SUPPLY CHAIN (MAIDSTONE),id:15028097    ,  12.49
Department of Health,Guys and St Thomas NHS Foundation Trust,01/04/2022,(81100) Dressings,(id:4082419) Evelina Childrens Cardio Respiratory & Critical Care (CRIC),NHS SUPPLY CHAIN (MAIDSTONE),id:15028097 , 125.33
Department of Health,Guys and St Thomas NHS Foundation Trust,08/04/2022,(81230) Medical Surgical Supplies & Equipment,(id:42344) Evelina Childrens Cardio Respiratory & Critical Care (CRIC),GETINGE LTD,id:14360435  , 958.80
Department of Health,Guys and St Thomas NHS Foundation Trust,22/04/2022,(81200) Medical Surgical Supplies & Equipment,(id:42344) Evelina Childrens Cardio Respiratory & Critical Care (CRIC),NHS SUPPLY CHAIN (MAIDSTONE),id:15105380, 124.80
Department of Health,Guys and St Thomas NHS Foundation Trust,22/04/2022,(84400) Transport,(id:42344) Evelina Childrens Cardio Respiratory & Critical Care (CRIC),STARCROSS TRADING LTD T/A BEARS,id:15126178,    -2907.70
Department of Health,Guys and St Thomas NHS Foundation Trust,22/04/2022,(84400) Transport,(id:42344) Evelina Childrens Cardio Respiratory & Critical Care (CRIC),STARCROSS TRADING LTD T/A BEARS,id:15126229,    -2907.70
Department of Health,Guys and St Thomas NHS Foundation Trust,22/04/2022,(84400) Transport,(id:42344) Evelina Childrens Cardio Respiratory & Critical Care (CRIC),STARCROSS TRADING LTD T/A BEARS,id:15126186,    -2907.70
Department of Health,Guys and St Thomas NHS Foundation Trust,01/04/2022,(82700) Uniforms & Clothing,(id:42339) Evelina Childrens Cardio Respiratory & Critical Care (CRIC),NHS SUPPLY CHAIN (MAIDSTONE),id:15028097   ,  19.92
Department of Health,Guys and St Thomas NHS Foundation Trust,22/04/2022,(82000) Provisions & Kitchens,(id:42339) Evelina Childrens Cardio Respiratory & Critical Care (CRIC),NHS SUPPLY CHAIN (MAIDSTONE),id:15105380 , 130.15
Department of Health,Guys and St Thomas NHS Foundation Trust,22/04/2022,(83500) Furniture & Fittings,(id:42339) Evelina Childrens Cardio Respiratory & Critical Care (CRIC),NHS SUPPLY CHAIN (MAIDSTONE),id:15079695  , 199.20
Department of Health,Guys and St Thomas NHS Foundation Trust,22/04/2022,(82800) Bedding & Linen,(id:42339) Evelina Childrens Cardio Respiratory & Critical Care (CRIC),NHS SUPPLY CHAIN (MAIDSTONE),id:15105380  , 100.32
Department of Health,Guys and St Thomas NHS Foundation Trust,22/04/2022,(81100) Dressings,(id:42339) Evelina Childrens Cardio Respiratory & Critical Care (CRIC),NHS SUPPLY CHAIN (MAIDSTONE),id:15105380   , 921.02
Department of Health,Guys and St Thomas NHS Foundation Trust,28/04/2022,(81100) Dressings,(id:42339) Evelina Childrens Cardio Respiratory & Critical Care (CRIC),NHS SUPPLY CHAIN (MAIDSTONE),id:15056655   , 185.63
Department of Health,Guys and St Thomas NHS Foundation Trust,01/04/2022,(81200) Medical Surgical Supplies & Equipment,(id:42339) Evelina Childrens Cardio Respiratory & Critical Care (CRIC),NHS SUPPLY CHAIN (MAIDSTONE),id:15015296,9124.14
Department of Health,Guys and St Thomas NHS Foundation Trust,22/04/2022,(81200) Medical Surgical Supplies & Equipment,(id:42339) Evelina Childrens Cardio Respiratory & Critical Care (CRIC),INTERSURGICAL LTD,id:15134674 , 846.00
Department of Health,Guys and St Thomas NHS Foundation Trust,14/04/2022,(81200) Medical Surgical Supplies & Equipment,(id:42339) Evelina Childrens Cardio Respiratory & Critical Care (CRIC),GETINGE LTD,id:15123295  , 547.20
Department of Health,Guys and St Thomas NHS Foundation Trust,14/04/2022,(84200) Rental under Operating Lease,(id:42339) Evelina Childrens Cardio Respiratory & Critical Care (CRIC),STARCROSS TRADING LTD T/A BEARS,id:15125816 ,2907.70
Department of Health,Guys and St Thomas NHS Foundation Trust,14/04/2022,(84200) Rental under Operating Lease,(id:42339) Evelina Childrens Cardio Respiratory & Critical Care (CRIC),STARCROSS TRADING LTD T/A BEARS,id:15125814 ,2907.70
Department of Health,Guys and St Thomas NHS Foundation Trust,22/04/2022,(84200) Rental under Operating Lease,(id:42339) Evelina Childrens Cardio Respiratory & Critical Care (CRIC),STARCROSS TRADING LTD T/A BEARS,id:15126301 ,    11630.80
Department of Health,Guys and St Thomas NHS Foundation Trust,22/04/2022,(81230) Medical Surgical Supplies & Equipment,(id:42339) Evelina Childrens Cardio Respiratory & Critical Care (CRIC),NHS SUPPLY CHAIN (MAIDSTONE),id:15079695, 450.00
Department of Health,Guys and St Thomas NHS Foundation Trust,22/04/2022,(81225) Medical Surgical Supplies & Equipment,(id:42339) Evelina Childrens Cardio Respiratory & Critical Care (CRIC),NHS SUPPLY CHAIN (MAIDSTONE),id:15105380,  36.84
Department of Health,Guys and St Thomas NHS Foundation Trust,22/04/2022,(81700) Lab Equipment Purchase,(id:42339) Evelina Childrens Cardio Respiratory & Critical Care (CRIC),NHS SUPPLY CHAIN (MAIDSTONE),id:15105380,  43.92
Department of Health,Guys and St Thomas NHS Foundation Trust,22/04/2022,(82700) Uniforms & Clothing,(id:2496419) Evelina Childrens Cardio Respiratory & Critical Care (CRIC),NHS SUPPLY CHAIN (MAIDSTONE),id:15079695 ,  11.29
Department of Health,Guys and St Thomas NHS Foundation Trust,22/04/2022,(81100) Dressings,(id:1127419) Cardiovascular Services,NHS SUPPLY CHAIN (MAIDSTONE),id:15105380  ,  58.50
Department of Health,Guys and St Thomas NHS Foundation Trust,01/04/2022,(81100) Dressings,(id:1127419) Cardiovascular Services,NHS SUPPLY CHAIN (MAIDSTONE),id:15028097  , 151.19
Department of Health,Guys and St Thomas NHS Foundation Trust,22/04/2022,(81700) Lab Equipment Purchase,(id:1127419) Cardiovascular Services,NHS SUPPLY CHAIN (MAIDSTONE),id:15079695    ,   4.84
Department of Health,Guys and St Thomas NHS Foundation Trust,01/04/2022,(81000) Surgical Appliances,(id:1127419) Cardiovascular Services,NHS SUPPLY CHAIN (MAIDSTONE),id:15028097  , 429.54
Department of Health,Guys and St Thomas NHS Foundation Trust,28/04/2022,(81225) Medical Surgical Supplies & Equipment,(id:1127419) Cardiovascular Services,NHS SUPPLY CHAIN (MAIDSTONE),id:15056655    ,  79.73
Department of Health,Guys and St Thomas NHS Foundation Trust,14/04/2022,(81230) Medical Surgical Supplies & Equipment,(id:639421) Cardiovascular Services,COOK UK LTD,id:15081172  , 943.44
Department of Health,Guys and St Thomas NHS Foundation Trust,28/04/2022,(81200) Medical Surgical Supplies & Equipment,(id:639421) Cardiovascular Services,VASCULAR PERSPECTIVES LTD,id:15147411   , 660.00
Department of Health,Guys and St Thomas NHS Foundation Trust,28/04/2022,(81200) Medical Surgical Supplies & Equipment,(id:639421) Cardiovascular Services,WL GORE & ASSOCIATES (UK) LTD,id:15120228    ,4146.00
Department of Health,Guys and St Thomas NHS Foundation Trust,28/04/2022,(81200) Medical Surgical Supplies & Equipment,(id:639421) Cardiovascular Services,WL GORE & ASSOCIATES (UK) LTD,id:15081207    ,2284.80
Department of Health,Guys and St Thomas NHS Foundation Trust,14/04/2022,(81200) Medical Surgical Supplies & Equipment,(id:639421) Cardiovascular Services,PHILIPS MARKET UK (FORMERLYVOLCANO EUROPE BVBA/SPRL),id:15118034 , 540.00
Department of Health,Guys and St Thomas NHS Foundation Trust,22/04/2022,(81200) Medical Surgical Supplies & Equipment,(id:639421) Cardiovascular Services,BENTLEY INNOMED GMBH,id:15098454   ,2040.00
Department of Health,Guys and St Thomas NHS Foundation Trust,22/04/2022,(81235) Medical Surgical Supplies & Equipment,(id:639421) Cardiovascular Services,NHS SUPPLY CHAIN (MAIDSTONE),id:15079695,1317.60
Department of Health,Guys and St Thomas NHS Foundation Trust,22/04/2022,(82600) Uniforms & Clothing,(id:780420) Cardiovascular Services,NHS SUPPLY CHAIN (MAIDSTONE),id:15079695   ,  85.35
Department of Health,Guys and St Thomas NHS Foundation Trust,22/04/2022,(82600) Uniforms & Clothing,(id:780420) Cardiovascular Services,NHS SUPPLY CHAIN (MAIDSTONE),id:15105380   ,  16.84
Department of Health,Guys and St Thomas NHS Foundation Trust,28/04/2022,(81200) Medical Surgical Supplies & Equipment,(id:780420) Cardiovascular Services,NHS SUPPLY CHAIN (MAIDSTONE),id:15056655, 982.67
Department of Health,Guys and St Thomas NHS Foundation Trust,22/04/2022,(81200) Medical Surgical Supplies & Equipment,(id:780420) Cardiovascular Services,NHS SUPPLY CHAIN (MAIDSTONE),id:15079695, 505.51
Department of Health,Guys and St Thomas NHS Foundation Trust,01/04/2022,(81700) Lab Equipment Purchase,(id:780420) Cardiovascular Services,NHS SUPPLY CHAIN (MAIDSTONE),id:15015296,  27.87
Department of Health,Guys and St Thomas NHS Foundation Trust,22/04/2022,(81275) Medical Surgical Supplies & Equipment,(id:780420) Cardiovascular Services,NHS SUPPLY CHAIN (MAIDSTONE),id:15079695,  14.46
Department of Health,Guys and St Thomas NHS Foundation Trust,01/04/2022,(50522) Unqualified Nursing Staff,(id:780420) Cardiovascular Services,CARE PROVIDERS HEALTHCARE,id:15084625, 273.47
Department of Health,Guys and St Thomas NHS Foundation Trust,01/04/2022,(82800) Bedding & Linen,(id:780420) Cardiovascular Services,NHS SUPPLY CHAIN (MAIDSTONE),id:15015296  , 141.30
Department of Health,Guys and St Thomas NHS Foundation Trust,28/04/2022,(82800) Bedding & Linen,(id:41952) Cardiovascular Services,NHS SUPPLY CHAIN (MAIDSTONE),id:15056655   ,  11.35
Department of Health,Guys and St Thomas NHS Foundation Trust,22/04/2022,(81100) Dressings,(id:41952) Cardiovascular Services,NHS SUPPLY CHAIN (MAIDSTONE),id:15105380    , 512.57
Department of Health,Guys and St Thomas NHS Foundation Trust,22/04/2022,(81100) Dressings,(id:41952) Cardiovascular Services,NHS SUPPLY CHAIN (MAIDSTONE),id:15079695    , 410.82
Department of Health,Guys and St Thomas NHS Foundation Trust,28/04/2022,(81100) Dressings,(id:41952) Cardiovascular Services,NHS SUPPLY CHAIN (MAIDSTONE),id:15056655    ,1141.19
Department of Health,Guys and St Thomas NHS Foundation Trust,14/04/2022,(81200) Medical Surgical Supplies & Equipment,(id:41950) Cardiovascular Services,BOSTON SCIENTIFIC LTD,id:15081107   , 612.00
Department of Health,Guys and St Thomas NHS Foundation Trust,01/04/2022,(81200) Medical Surgical Supplies & Equipment,(id:41950) Cardiovascular Services,BOSTON SCIENTIFIC LTD,id:15035380   , 504.00
Department of Health,Guys and St Thomas NHS Foundation Trust,01/04/2022,(81200) Medical Surgical Supplies & Equipment,(id:41950) Cardiovascular Services,BOSTON SCIENTIFIC LTD,id:15019802   , 372.00
Department of Health,Guys and St Thomas NHS Foundation Trust,01/04/2022,(81200) Medical Surgical Supplies & Equipment,(id:41950) Cardiovascular Services,ABBOTT MEDICAL UK LTD,id:15038294   , 540.00
Department of Health,Guys and St Thomas NHS Foundation Trust,08/04/2022,(81200) Medical Surgical Supplies & Equipment,(id:41950) Cardiovascular Services,BOSTON SCIENTIFIC LTD,id:15038060   , 930.00
Department of Health,Guys and St Thomas NHS Foundation Trust,28/04/2022,(81200) Medical Surgical Supplies & Equipment,(id:41950) Cardiovascular Services,ABBOTT MEDICAL UK LTD,id:15149320   ,1500.00
Department of Health,Guys and St Thomas NHS Foundation Trust,22/04/2022,(81000) Surgical Appliances,(id:41950) Cardiovascular Services,TALAR MADE ORTHOTICS LTD,id:15136934   ,  16.49
Department of Health,Guys and St Thomas NHS Foundation Trust,22/04/2022,(81000) Surgical Appliances,(id:41950) Cardiovascular Services,TALAR MADE ORTHOTICS LTD,id:15137174   , 130.97
Department of Health,Guys and St Thomas NHS Foundation Trust,22/04/2022,(81000) Surgical Appliances,(id:41950) Cardiovascular Services,MEDI UK LTD,id:15132654 , 996.67
Department of Health,Guys and St Thomas NHS Foundation Trust,08/04/2022,(81000) Surgical Appliances,(id:41950) Cardiovascular Services,TALAR MADE ORTHOTICS LTD,id:15087997   , 218.28
Department of Health,Guys and St Thomas NHS Foundation Trust,08/04/2022,(81000) Surgical Appliances,(id:41950) Cardiovascular Services,TALAR MADE ORTHOTICS LTD,id:15104735   , 308.47
Department of Health,Guys and St Thomas NHS Foundation Trust,08/04/2022,(81000) Surgical Appliances,(id:41950) Cardiovascular Services,MEDI UK LTD,id:15103437 , 407.47
Department of Health,Guys and St Thomas NHS Foundation Trust,08/04/2022,(81000) Surgical Appliances,(id:41950) Cardiovascular Services,TALAR MADE ORTHOTICS LTD,id:15104635   , 523.87
Department of Health,Guys and St Thomas NHS Foundation Trust,22/04/2022,(81100) Dressings,(id:41950) Cardiovascular Services,NHS SUPPLY CHAIN (MAIDSTONE),id:15079695    ,  22.08
Department of Health,Guys and St Thomas NHS Foundation Trust,28/04/2022,(82800) Bedding & Linen,(id:41950) Cardiovascular Services,NHS SUPPLY CHAIN (MAIDSTONE),id:15056655   , 275.34
Department of Health,Guys and St Thomas NHS Foundation Trust,22/04/2022,(81225) Medical Surgical Supplies & Equipment,(id:41950) Cardiovascular Services,NHS SUPPLY CHAIN (MAIDSTONE),id:15105380 ,   5.08
Department of Health,Guys and St Thomas NHS Foundation Trust,14/04/2022,(81200) Medical Surgical Supplies & Equipment,(id:41948) Cardiovascular Services,VASCUTEK LTD,id:15066322  , 642.60
Department of Health,Guys and St Thomas NHS Foundation Trust,01/04/2022,(81230) Medical Surgical Supplies & Equipment,(id:41948) Cardiovascular Services,FRONTMED TRADING LTD,id:15072298    ,2553.00
Department of Health,Guys and St Thomas NHS Foundation Trust,22/04/2022,(81200) Medical Surgical Supplies & Equipment,(id:41947) Cardiovascular Services,NHS SUPPLY CHAIN (MAIDSTONE),id:15079695 ,  25.07
Department of Health,Guys and St Thomas NHS Foundation Trust,14/04/2022,(84656) Establishment,(id:42305) Cardiovascular Services,DICT8 LIMITED,id:15114814, 669.84
Department of Health,Guys and St Thomas NHS Foundation Trust,22/04/2022,(82000) Provisions & Kitchens,(id:42300) Cardiovascular Services,NHS SUPPLY CHAIN (MAIDSTONE),id:15105380  ,  25.13
Department of Health,Guys and St Thomas NHS Foundation Trust,01/04/2022,(81225) Medical Surgical Supplies & Equipment,(id:42300) Cardiovascular Services,NHS SUPPLY CHAIN (MAIDSTONE),id:15028097 ,  18.35
Department of Health,Guys and St Thomas NHS Foundation Trust,22/04/2022,(81225) Medical Surgical Supplies & Equipment,(id:42300) Cardiovascular Services,NHS SUPPLY CHAIN (MAIDSTONE),id:15105380 ,   5.08
Department of Health,Guys and St Thomas NHS Foundation Trust,28/04/2022,(50522) Unqualified Nursing Staff,(id:42300) Cardiovascular Services,CARE PROVIDERS HEALTHCARE,id:15154042 , 258.37
Department of Health,Guys and St Thomas NHS Foundation Trust,28/04/2022,(81100) Dressings,(id:42301) Cardiovascular Services,NHS SUPPLY CHAIN (MAIDSTONE),id:15056655    ,  11.33
Department of Health,Guys and St Thomas NHS Foundation Trust,22/04/2022,(82800) Bedding & Linen,(id:42302) Cardiovascular Services,NHS SUPPLY CHAIN (MAIDSTONE),id:15079695   , 220.80
Department of Health,Guys and St Thomas NHS Foundation Trust,28/04/2022,(81200) Medical Surgical Supplies & Equipment,(id:42302) Cardiovascular Services,BOSTON SCIENTIFIC LTD,id:15114926   , 990.00
Department of Health,Guys and St Thomas NHS Foundation Trust,28/04/2022,(81200) Medical Surgical Supplies & Equipment,(id:42302) Cardiovascular Services,TERUMO UK LTD,id:15143261 ,1140.00
Department of Health,Guys and St Thomas NHS Foundation Trust,14/04/2022,(81200) Medical Surgical Supplies & Equipment,(id:42302) Cardiovascular Services,BOSTON SCIENTIFIC LTD,id:15060417   , 990.00
Department of Health,Guys and St Thomas NHS Foundation Trust,22/04/2022,(81200) Medical Surgical Supplies & Equipment,(id:42302) Cardiovascular Services,MEDTRONIC LTD,id:15086640 , 504.00
Department of Health,Guys and St Thomas NHS Foundation Trust,01/04/2022,(81200) Medical Surgical Supplies & Equipment,(id:42302) Cardiovascular Services,XAVIOURMED LLP,id:15076967,2040.00
Department of Health,Guys and St Thomas NHS Foundation Trust,01/04/2022,(81100) Dressings,(id:42302) Cardiovascular Services,NHS SUPPLY CHAIN (MAIDSTONE),id:15028097    ,  13.25
Department of Health,Guys and St Thomas NHS Foundation Trust,21/04/2022,(54072) Technical Officers,(id:42303) Cardiovascular Services,PRICEWATERHOUSECOOPERS LLP,id:15138781  ,2701.05
Department of Health,Guys and St Thomas NHS Foundation Trust,21/04/2022,(54072) Technical Officers,(id:42303) Cardiovascular Services,PRICEWATERHOUSECOOPERS LLP,id:15138422  ,4729.92
Department of Health,Guys and St Thomas NHS Foundation Trust,14/04/2022,(89595) Non-Healthcare from Foundation Trusts,(id:42304) Cardiovascular Services,BIRMINGHAM WOMENS AND CHILDREN'S HOSPITAL NHS FOUNDATION TRUST,id:14134999  , 585.25
Department of Health,Guys and St Thomas NHS Foundation Trust,14/04/2022,(89595) Non-Healthcare from Foundation Trusts,(id:42304) Cardiovascular Services,OXFORD UNIVERSITY HOSPITALS NHS FOUNDATION TRUST,id:14771135 ,3716.00
Department of Health,Guys and St Thomas NHS Foundation Trust,14/04/2022,(89000) Other - Training courses and conferences,(id:42304) Cardiovascular Services,KING'S COLLEGE HOSPITAL NHS FOUNDATION TRUST,id:15052474  ,2803.00
Department of Health,Guys and St Thomas NHS Foundation Trust,08/04/2022,(83760) Rent,(id:1664419) Cardiovascular Services,BEXLEY MEDICAL GROUP,id:12743158,1771.00
Department of Health,Guys and St Thomas NHS Foundation Trust,08/04/2022,(50201) Consultants,(id:1664419) Cardiovascular Services,CRAYFORD TOWN SURGERY,id:13872674  ,9573.80
Department of Health,Guys and St Thomas NHS Foundation Trust,22/04/2022,(83400) Office Equipment,(id:3923419) Cardiovascular Services,NHS SUPPLY CHAIN (MAIDSTONE),id:15079695,  37.27
Department of Health,Guys and St Thomas NHS Foundation Trust,01/04/2022,(83400) Office Equipment,(id:3923419) Cardiovascular Services,NHS SUPPLY CHAIN (MAIDSTONE),id:15015296,  65.14
Department of Health,Guys and St Thomas NHS Foundation Trust,01/04/2022,(82700) Uniforms & Clothing,(id:3923419) Cardiovascular Services,NHS SUPPLY CHAIN (MAIDSTONE),id:15028097  ,  31.68
Department of Health,Guys and St Thomas NHS Foundation Trust,14/04/2022,(50522) Unqualified Nursing Staff,(id:3923419) Cardiovascular Services,CARE PROVIDERS HEALTHCARE,id:15123374    , 200.10
Department of Health,Guys and St Thomas NHS Foundation Trust,28/04/2022,(83400) Office Equipment,(id:42291) Cardiovascular Services,NHS SUPPLY CHAIN (MAIDSTONE),id:15056655  ,  25.06
